Workbook

Sheet Página de rosto
B20: (I
A26: Auditoria Pré-Demolição Modelos

Sheet Índice
A1: Índice
A3: 1 | B3: Auditoria Pré-Demolição
A4: 2 | B4: Detalhes do projeto
A5: 3 | B5: Estudo documental
A6: 4 | B6: Como utilizar o inventário
A7: 5 | B7: Cálculo de quantidades
A8: 6 | B8: Inventário
A9: 7 | B9: Síntese da auditoria
A10: 8 | B10: Elemento de construção
A11: 9 | B11: Lista de resíduos
A12: 10 | B12: Glossário
A26: Os modelos apresentados foram elaborados em conjunto com o Guia Português de Auditorias Pré-Demolição, no âmbito do projeto CLOSER - Close to Resources Recovery, co-financiado pelo Programa Ambiente dos EEA Grants. Com este projeto, pretende-se aumentar a reutilização de materiais e elementos de construção e a reciclagem dos RCD produzidos na demolição e reabilitação de edifícios.
A28: Os auditores que realizam a Auditoria Pré-Demolição têm que ter competências reconhecidas para a sua execução e ser independentes relativamente à entidade responsável pela demolição ou reabilitação. Os autores e a entidade financiadora do projecto CLOSER não se responsabilizam por qualquer uso que possa ser feito dos dados colhidos e das informações inseridas nestes modelos.
A30: Informação adicional em http://closer.lnec.pt/

Sheet 1-Auditoria pré-demolição
A1: Auditoria pré-demolição
A4: A auditoria pré-demolição (APD) consiste numa avaliação dos fluxos de materiais, elementos de construção e resíduos de construção e demolição associados à atividade de demolição ou reabilitação de edifícios, sendo identificados os diversos recursos, as respetivas quantidades e potenciais aplicações facilitando a sua reintrodução na economia.
A5: A APD fornece ao dono da obra um aconselhamento independente sobre materiais e elementos de construção que podem ser reutilizados ou reciclados previamente à demolição ou reabilitação, privilegiando a reutilização de modo a contribuir para a diminuição do carbono incorporado.
A6: As auditorias pré-demolição ou reabilitação de edifícios compreendem duas etapas de recolha de informação, o estudo documental e o estudo in situ, que contribuem para a construção do inventário. Com base nessa informação, são efetuadas recomendações dos destinos mais adequados para a valorização dos diversos recursos identificados e a minimização da perigosidade dos mesmos.
A10: Etapas
A25: Informação adicional em http://closer.lnec.pt/

Sheet 2-Detalhes do projeto
A1: Detalhes do projeto
A2: Data da auditoria pré-demolição i
C3: <inserir conteúdo>
A4: Identificação do projeto i
B5: Nome do Projeto | C5: <inserir conteúdo>
B6: Morada | C6: <inserir conteúdo>
B7: Data de construção | C7: <inserir conteúdo>
B8: Tipo de intervenção | C8: <selecionar opção>
B9: Área de reabilitação/demolição (m2) | C9: 150
A10: Dono da obra i
B11: Nome | C11: <inserir conteúdo>
B12: Morada | C12: <inserir conteúdo>
B13: Telefone | C13: <inserir conteúdo>
B14: Email | C14: <inserir conteúdo>
B15: Pessoa de contacto | C15: <inserir conteúdo>
A16: Gestor do projeto i | C16: (if applicable)
B17: Nome | C17: <inserir conteúdo>
B18: Empresa / Organização | C18: <inserir conteúdo>
B19: Telefone | C19: <inserir conteúdo>
B20: Email | C20: <inserir conteúdo>
A21: Empreiteiro
B22: Nome | C22: <inserir conteúdo>
B23: Empresa / Organização | C23: <inserir conteúdo>
B24: Telefone | C24: <inserir conteúdo>
B25: Email | C25: <inserir conteúdo>
A26: Sub-empreiteiro i
B27: Nome | C27: <inserir conteúdo>
B28: Empresa / Organização | C28: <inserir conteúdo>
B29: Telefone | C29: <inserir conteúdo>
B30: Email | C30: <inserir conteúdo>
A31: Responsável pela remoção de amianto i
B32: Nome | C32: <inserir conteúdo>
B33: Empresa / Organização | C33: <inserir conteúdo>
B34: Telefone | C34: <inserir conteúdo>
B35: Email | C35: <inserir conteúdo>
A36: Auditor i
B37: Nome | C37: <inserir conteúdo>
B38: Empresa / Organização | C38: <inserir conteúdo>
B39: Telefone | C39: <inserir conteúdo>
B40: Email | C40: <inserir conteúdo>

Sheet 3-Estudo documental
A1: Estudo documental
A2: Idade do edifício (anos)
C3: <inserir conteúdo>
A4: Número de pisos (se aplicável)
C5: <inserir conteúdo>
A6: Tipologia de construção
A8: Utilização do edifício
A10: Imediações e acesso ao edifício
C11: <inserir conteúdo>
A12: Lista de documentos de projeto de construção consultados
C13: <inserir conteúdo>
C14: <inserir conteúdo>
C15: <inserir conteúdo>
C16: <inserir conteúdo>
C17: <inserir conteúdo>
A18: Histórico de manutenção
C19: <inserir conteúdo>
C20: <inserir conteúdo>
C21: <inserir conteúdo>
C22: <inserir conteúdo>
A23: Histórico de renovações
C24: <inserir conteúdo>
C25: <inserir conteúdo>
C26: <inserir conteúdo>
C27: <inserir conteúdo>
A28: Existência de substâncias perigosas e locais
C29: <inserir conteúdo>
C30: <inserir conteúdo>
C31: <inserir conteúdo>
A44: Informação adicional em http://closer.lnec.pt/

Sheet 4-Como utilizar inventário
A1: Como utilizar o inventário
A2: O modelo de inventário de reabilitaçãi/demolição de edifícios abrange materiais e elementos passíveis de reutilização e resíduos de construção e demolição que podem ser valorizados ou eliminados tendo em consideração a sua perigosidade e as suas características. O modelo é uma combinação do template adotado no nível 2 do LEVEL(s) com as orientações para auditorias de pré-demolição de edifícios e do protocolo de gestão de RCD na UE, bem como de outros Estados-membros da UE. A síntese da auditoria é gerada automaticamente a partir do inventário exceto no que respeita a custos de deposição em aterro.
A3: 1. ID | B3: Identificação única do material ou elemento (exº. código numérico ou alfanumérico)
A5: 2. Material / Elemento | B5: Seleccionar os materiais ou elementos com a seta. Se não encontar a descrição correta na lista faça a adição manualmente. Ao seleccionar um material da lista é automaticamente associado o código do Capítulo 17 do LER. Para resíduos de equipamentos elétridos e eletrónicos, REEE, usar os códigos dos Capítulos 16 e 20 apresentados no separador "8-Lista de resíduos".
A7: 3. Código LER | B7: Código de seleção automática relacionado com o material. No caso da utilização de uma descrição de material personalizada, é necessário inserir o código que melhor representa esse material.
A9: 4. Natureza do resíduo | B9: A natureza do resíduo pode ser selecionada entre as opções: i) material inerte / não perigoso e ii) material perigoso. Neste âmbito, deve ter-se em consideração as propriedades do material isolado, a sua mistura com substâncias perigosas e o código LER. Se forem efetuadas análises para comprovar a perigosidade e o resultado for negativo a célula terá um fundo verde e se o resultados for positivo terá um fundo vermelho.
A11: 5. Quantidade | B11: Quantidade de material resultante do estudo documental (peças desenhadas ou escritas do projeto) ou do levantamento in situ. No cálculo de quantidades deve ser privilegiado o uso das regras de medição.
A13: 6. Unidade | B13: A unidade pode ser variável, no entanto a mais frequente é o m3 ou m2. Para elementos por vezes é apenas o número de unidades existentes.
A15: 7. Fator de conversão | B15: Fator que converte as unidades usadas para kg e que pode ser utilizado para tornar os itens da lista comparáveis e compatíveis.
A17: 8. Quantidade estimada | B17: A quantidade de material ou elementos é estimada em kg com base no fator de conversão.
A19: 9. Condição | B19: A condição em que o material/elemento se encontra dá informação sobre e sua degradação usando uma escala de 4 niveis: Muito boa - Anomalias inexistentes ou insignificantes; Boa - Anomalias estéticas; Média - Anomalias que podem prejudicar a reutilização; Má - Anomalias que colocam em risco a segurança e/ou saúde. Na informação adicional incluir a extensão das anomalias: localizada, extensa, totalidade
A21: 10. Localização | B21: Representa o local onde o material/elemento se encontra na obra, bem como a acessibilidade a esse material.
A23: 11. Destino recomendado | B23: A recomendação do destino pode ser considerada na forma de reutilização, de reciclagem e de recuperação, podendo ser selecionado para ocorrer na obra ou fora dela. É projetado com base na hierarquia de resíduos. Este é o destino mais adequado proposto pelo auditor com base nos princípios da economia circular.
A25: 12. Precauções a tomar | B25: As ações a tomar devem considerar medidas de precaução em obra, visando a proteção dos trabalhadores e a preservação do ambiente.
A27: 13. Informação adicional | B27: Incluir informação complementar se necessário (exº: ensaios de avaliação da perigosidade).
A29: 14. Fotografia | B29: A fotografia melhora a precisão da informação (800x600 pixels min.; formato - jpg, jpeg, png). A fotografia deve ser bloqueada com a célula para garantir que não se altera quando são acrescentadas linhas ou são feitas outras alterações à tabela do inventário. As fotografias de componentes devem mostrar o contexto do elemento relevante. Relativamente a defeitos deve-se fotografar para cada tipo de material.

Sheet 5-Cálculo de quantidades
A1: Cálculo de quantidades
B2: Quantidade | C2: D1 (m) | D2: D2 (m) | E2: D3 (m) | F2: Sub-total | G2: Total (m3)
A3: Exº:Vigas de betão | B3: 6 | C3: 0.3 | D3: 0.3 | E3: 3.3 | F3: =E3*D3*C3*B3 -> 1.782 | G3: =SUM(F3:F6) -> 4.86 | H3: =G3 -> 4.86
B4: 6 | C4: 0.2 | D4: 0.25 | E4: 4.5 | F4: =E4*D4*C4*B4 -> 1.35
B5: 4 | C5: 0.2 | D5: 0.2 | E5: 4.5 | F5: =E5*D5*C5*B5 -> 0.72
B6: 4 | C6: 0.3 | D6: 0.3 | E6: 2.8 | F6: =E6*D6*C6*B6 -> 1.008
B8: Quantidade | C8: D1 (m) | D8: D2 (m) | E8: D3 (m) | F8: Sub-total | G8: Total

Sheet 6-Inventário de recursos
A1: Inventário de Recursos
A2: Materiais/Elementos e Resíduos de Construção e Demolição (RCD)
A3: Data do inventário | G3: Data das visitas in situ
A5: ID | B5: Material | C5: LoW Code | D5: Nature of waste | E5: Quantity | F5: Unit | G5: Conversion factor | H5: Estimated quantity (kg) | I5: Quality (Condition) | J5: Floor | K5: Location(s) of material in building / building site | L5: Recommended destination (auditor) | M5: Precautions to take | N5: Additional information | O5: Photo
A6: ID | B6: Material / Elemento | C6: Código LER | D6: Natureza do resíduos | E6: Quantidade | F6: Unidade | G6: Fator de conversão | H6: Quantidade estimada (kg) | I6: Condição | J6: Andar | K6: Localização | L6: Destino recomendado | M6: Precauções a tomar | N6: Informações adicionais | O6: Fotografia
A7: E1 | B7: betão | C7: =IFERROR(VLOOKUP($B7,Ref!B$3:C$52,2,FALSE),0) -> 17 01 01 | D7: Inerte/Não perigoso | E7: 5 | F7: m3 | G7: =IFERROR(VLOOKUP($B7,Ref!$B$3:$E$52,3,FALSE),0) -> 2300 | H7: =Table2[[#This Row],[Quantidade]]*Table2[[#This Row],[Fator de conversão]] -> 11500 | I7: Boa – Anomalias estéticas | J7: 1 | K7: Estrutura da cobertura | L7: Reciclagem na obra
A8: E2 | B8: vidro | C8: =IFERROR(VLOOKUP($B8,Ref!B$3:C$52,2,FALSE),0) -> 17 02 02 | D8: Inerte/Não perigoso | E8: 1 | F8: m3 | G8: =IFERROR(VLOOKUP($B8,Ref!$B$3:$E$52,3,FALSE),0) -> 2500 | H8: =Table2[[#This Row],[Quantidade]]*Table2[[#This Row],[Fator de conversão]] -> 2500 | I8: Muito boa – Anomalias insignificantes | J8: 1 | K8: Tipo de envidraçado de vãos exteriores | L8: Preparação para reutilizar elemento/material na obra
A9: E3 | B9: madeira | C9: =IFERROR(VLOOKUP($B9,Ref!B$3:C$52,2,FALSE),0) -> 17 02 01 | D9: Inerte/Não perigoso | E9: 300 | F9: kg | G9: =IFERROR(VLOOKUP($B9,Ref!$B$3:$E$52,3,FALSE),0) -> 700 | H9: =Table2[[#This Row],[Quantidade]] -> 300 | I9: Média – Anomalias podem prejudicar a reutilização | J9: r/c | K9: Revestimento de piso | L9: Recuperação no local como material enchimento
A10: E4 | B10: ladrilhos, telhas e materiais cerâmicos | C10: =IFERROR(VLOOKUP($B10,Ref!B$3:C$52,2,FALSE),0) -> 17 01 03 | D10: Inerte/Não perigoso | E10: 1500 | F10: kg | G10: =IFERROR(VLOOKUP($B10,Ref!$B$3:$E$52,3,FALSE),0) -> 830.6 | H10: =Table2[[#This Row],[Quantidade]] -> 1500 | I10: Boa – Anomalias estéticas | J10: r/c | K10: Revestimento dos paramentos interiores | L10: Reutilização do elemento/material fora da obra
A11: E5 | B11: vidro, plástico e madeira contendo ou contaminados com substâncias perigosas | C11: =IFERROR(VLOOKUP($B11,Ref!B$3:C$52,2,FALSE),0) -> 17 02 04* | D11: Perigoso | E11: 45 | F11: kg | G11: =IFERROR(VLOOKUP($B11,Ref!$B$3:$E$52,3,FALSE),0) -> 0 | H11: =Table2[[#This Row],[Quantidade]] -> 45 | I11: Má – Anomalias colocam em risco segurança/saúde. | J11: r/c | K11: Revestimento de piso | L11: Aterro de resíduos perigosos
A12: E6 | B12: lâmpadas fluorescentes e outros resíduos contendo mercúrio | C12: =IFERROR(VLOOKUP($B12,Ref!B$3:C$52,2,FALSE),0) -> 20 01 21* | D12: Perigoso | E12: 10 | F12: unidade | G12: =IFERROR(VLOOKUP($B12,Ref!$B$3:$E$52,3,FALSE),0) -> 0 | H12: 4 | I12: Má – Anomalias colocam em risco segurança/saúde. | J12: r/c | K12: Tosco de paredes interiores | L12: Entrega em instalação de gestão de REEE
C13: =IFERROR(VLOOKUP($B13,Ref!B$3:C$52,2,FALSE),0) -> 0 | G13: =IFERROR(VLOOKUP($B13,Ref!$B$3:$E$52,3,FALSE),0) -> 0
C14: =IFERROR(VLOOKUP($B14,Ref!B$3:C$52,2,FALSE),0) -> 0 | G14: =IFERROR(VLOOKUP($B14,Ref!$B$3:$E$52,3,FALSE),0) -> 0
C15: =IFERROR(VLOOKUP($B15,Ref!B$3:C$52,2,FALSE),0) -> 0 | G15: =IFERROR(VLOOKUP($B15,Ref!$B$3:$E$52,3,FALSE),0) -> 0
C16: =IFERROR(VLOOKUP($B16,Ref!B$3:C$52,2,FALSE),0) -> 0 | G16: =IFERROR(VLOOKUP($B16,Ref!$B$3:$E$52,3,FALSE),0) -> 0
C17: =IFERROR(VLOOKUP($B17,Ref!B$3:C$52,2,FALSE),0) -> 0 | G17: =IFERROR(VLOOKUP($B17,Ref!$B$3:$E$52,3,FALSE),0) -> 0
C18: =IFERROR(VLOOKUP($B18,Ref!B$3:C$52,2,FALSE),0) -> 0 | G18: =IFERROR(VLOOKUP($B18,Ref!$B$3:$E$52,3,FALSE),0) -> 0
C19: =IFERROR(VLOOKUP($B19,Ref!B$3:C$52,2,FALSE),0) -> 0 | G19: =IFERROR(VLOOKUP($B19,Ref!$B$3:$E$52,3,FALSE),0) -> 0
C20: =IFERROR(VLOOKUP($B20,Ref!B$3:C$52,2,FALSE),0) -> 0 | G20: =IFERROR(VLOOKUP($B20,Ref!$B$3:$E$52,3,FALSE),0) -> 0
C21: =IFERROR(VLOOKUP($B21,Ref!B$3:C$52,2,FALSE),0) -> 0 | G21: =IFERROR(VLOOKUP($B21,Ref!$B$3:$E$52,3,FALSE),0) -> 0
C22: =IFERROR(VLOOKUP($B22,Ref!B$3:C$52,2,FALSE),0) -> 0 | F22: =IFERROR(VLOOKUP($B22,Ref!$B$3:$F$24,4,FALSE),0) -> 0 | G22: =IFERROR(VLOOKUP($B22,Ref!$B$3:$E$52,3,FALSE),0) -> 0
C23: =IFERROR(VLOOKUP($B23,Ref!B$3:C$52,2,FALSE),0) -> 0 | F23: =IFERROR(VLOOKUP($B23,Ref!$B$3:$F$24,4,FALSE),0) -> 0 | G23: =IFERROR(VLOOKUP($B23,Ref!$B$3:$E$52,3,FALSE),0) -> 0
C24: =IFERROR(VLOOKUP($B24,Ref!B$3:C$52,2,FALSE),0) -> 0 | F24: =IFERROR(VLOOKUP($B24,Ref!$B$3:$F$24,4,FALSE),0) -> 0 | G24: =IFERROR(VLOOKUP($B24,Ref!$B$3:$E$52,3,FALSE),0) -> 0
C25: =IFERROR(VLOOKUP($B25,Ref!B$3:C$52,2,FALSE),0) -> 0 | F25: =IFERROR(VLOOKUP($B25,Ref!$B$3:$F$24,4,FALSE),0) -> 0 | G25: =IFERROR(VLOOKUP($B25,Ref!$B$3:$E$52,3,FALSE),0) -> 0
C26: =IFERROR(VLOOKUP($B26,Ref!B$3:C$52,2,FALSE),0) -> 0 | F26: =IFERROR(VLOOKUP($B26,Ref!$B$3:$F$24,4,FALSE),0) -> 0 | G26: =IFERROR(VLOOKUP($B26,Ref!$B$3:$E$52,3,FALSE),0) -> 0
C27: =IFERROR(VLOOKUP($B27,Ref!B$3:C$52,2,FALSE),0) -> 0 | F27: =IFERROR(VLOOKUP($B27,Ref!$B$3:$F$24,4,FALSE),0) -> 0 | G27: =IFERROR(VLOOKUP($B27,Ref!$B$3:$E$52,3,FALSE),0) -> 0
C28: =IFERROR(VLOOKUP($B28,Ref!B$3:C$52,2,FALSE),0) -> 0 | F28: =IFERROR(VLOOKUP($B28,Ref!$B$3:$F$24,4,FALSE),0) -> 0 | G28: =IFERROR(VLOOKUP($B28,Ref!$B$3:$E$52,3,FALSE),0) -> 0
C29: =IFERROR(VLOOKUP($B29,Ref!B$3:C$52,2,FALSE),0) -> 0 | F29: =IFERROR(VLOOKUP($B29,Ref!$B$3:$F$24,4,FALSE),0) -> 0 | G29: =IFERROR(VLOOKUP($B29,Ref!$B$3:$E$52,3,FALSE),0) -> 0
C30: =IFERROR(VLOOKUP($B30,Ref!B$3:C$52,2,FALSE),0) -> 0 | F30: =IFERROR(VLOOKUP($B30,Ref!$B$3:$F$24,4,FALSE),0) -> 0 | G30: =IFERROR(VLOOKUP($B30,Ref!$B$3:$E$52,3,FALSE),0) -> 0
C31: =IFERROR(VLOOKUP($B31,Ref!B$3:C$52,2,FALSE),0) -> 0 | F31: =IFERROR(VLOOKUP($B31,Ref!$B$3:$F$24,4,FALSE),0) -> 0 | G31: =IFERROR(VLOOKUP($B31,Ref!$B$3:$E$52,3,FALSE),0) -> 0
C32: =IFERROR(VLOOKUP($B32,Ref!B$3:C$52,2,FALSE),0) -> 0 | F32: =IFERROR(VLOOKUP($B32,Ref!$B$3:$F$24,4,FALSE),0) -> 0 | G32: =IFERROR(VLOOKUP($B32,Ref!$B$3:$E$52,3,FALSE),0) -> 0
C33: =IFERROR(VLOOKUP($B33,Ref!B$3:C$52,2,FALSE),0) -> 0 | F33: =IFERROR(VLOOKUP($B33,Ref!$B$3:$F$24,4,FALSE),0) -> 0 | G33: =IFERROR(VLOOKUP($B33,Ref!$B$3:$E$52,3,FALSE),0) -> 0
C34: =IFERROR(VLOOKUP($B34,Ref!B$3:C$52,2,FALSE),0) -> 0 | F34: =IFERROR(VLOOKUP($B34,Ref!$B$3:$F$24,4,FALSE),0) -> 0 | G34: =IFERROR(VLOOKUP($B34,Ref!$B$3:$E$52,3,FALSE),0) -> 0
C35: =IFERROR(VLOOKUP($B35,Ref!B$3:C$52,2,FALSE),0) -> 0 | F35: =IFERROR(VLOOKUP($B35,Ref!$B$3:$F$24,4,FALSE),0) -> 0 | G35: =IFERROR(VLOOKUP($B35,Ref!$B$3:$E$52,3,FALSE),0) -> 0
C36: =IFERROR(VLOOKUP($B36,Ref!B$3:C$52,2,FALSE),0) -> 0 | F36: =IFERROR(VLOOKUP($B36,Ref!$B$3:$F$24,4,FALSE),0) -> 0 | G36: =IFERROR(VLOOKUP($B36,Ref!$B$3:$E$52,3,FALSE),0) -> 0
C37: =IFERROR(VLOOKUP($B37,Ref!B$3:C$52,2,FALSE),0) -> 0 | F37: =IFERROR(VLOOKUP($B37,Ref!$B$3:$F$24,4,FALSE),0) -> 0 | G37: =IFERROR(VLOOKUP($B37,Ref!$B$3:$E$52,3,FALSE),0) -> 0
C38: =IFERROR(VLOOKUP($B38,Ref!B$3:C$52,2,FALSE),0) -> 0 | F38: =IFERROR(VLOOKUP($B38,Ref!$B$3:$F$24,4,FALSE),0) -> 0 | G38: =IFERROR(VLOOKUP($B38,Ref!$B$3:$E$52,3,FALSE),0) -> 0
C39: =IFERROR(VLOOKUP($B39,Ref!B$3:C$52,2,FALSE),0) -> 0 | F39: =IFERROR(VLOOKUP($B39,Ref!$B$3:$F$24,4,FALSE),0) -> 0 | G39: =IFERROR(VLOOKUP($B39,Ref!$B$3:$E$52,3,FALSE),0) -> 0
C40: =IFERROR(VLOOKUP($B40,Ref!B$3:C$52,2,FALSE),0) -> 0 | F40: =IFERROR(VLOOKUP($B40,Ref!$B$3:$F$24,4,FALSE),0) -> 0 | G40: =IFERROR(VLOOKUP($B40,Ref!$B$3:$E$52,3,FALSE),0) -> 0
C41: =IFERROR(VLOOKUP($B41,Ref!B$3:C$52,2,FALSE),0) -> 0 | F41: =IFERROR(VLOOKUP($B41,Ref!$B$3:$F$24,4,FALSE),0) -> 0 | G41: =IFERROR(VLOOKUP($B41,Ref!$B$3:$E$52,3,FALSE),0) -> 0
C42: =IFERROR(VLOOKUP($B42,Ref!B$3:C$52,2,FALSE),0) -> 0 | F42: =IFERROR(VLOOKUP($B42,Ref!$B$3:$F$24,4,FALSE),0) -> 0 | G42: =IFERROR(VLOOKUP($B42,Ref!$B$3:$E$52,3,FALSE),0) -> 0
C43: =IFERROR(VLOOKUP($B43,Ref!B$3:C$52,2,FALSE),0) -> 0 | F43: =IFERROR(VLOOKUP($B43,Ref!$B$3:$F$24,4,FALSE),0) -> 0 | G43: =IFERROR(VLOOKUP($B43,Ref!$B$3:$E$52,3,FALSE),0) -> 0
C44: =IFERROR(VLOOKUP($B44,Ref!B$3:C$52,2,FALSE),0) -> 0 | F44: =IFERROR(VLOOKUP($B44,Ref!$B$3:$F$24,4,FALSE),0) -> 0 | G44: =IFERROR(VLOOKUP($B44,Ref!$B$3:$E$52,3,FALSE),0) -> 0
C45: =IFERROR(VLOOKUP($B45,Ref!B$3:C$52,2,FALSE),0) -> 0 | F45: =IFERROR(VLOOKUP($B45,Ref!$B$3:$F$24,4,FALSE),0) -> 0 | G45: =IFERROR(VLOOKUP($B45,Ref!$B$3:$E$52,3,FALSE),0) -> 0
G46: =IFERROR(VLOOKUP($B46,Ref!$B$3:$E$52,3,FALSE),0) -> 0
C47: =IFERROR(VLOOKUP($B47,Ref!$B$3:$C$52,2,FALSE),0) -> 0 | F47: =IFERROR(VLOOKUP($B47,Ref!$B$3:$F$24,4,FALSE),0) -> 0 | G47: =IFERROR(VLOOKUP($B47,Ref!$B$3:$E$52,3,FALSE),0) -> 0
C48: =IFERROR(VLOOKUP($B48,Ref!$B$3:$C$52,2,FALSE),0) -> 0 | F48: =IFERROR(VLOOKUP($B48,Ref!$B$3:$F$24,4,FALSE),0) -> 0 | G48: =IFERROR(VLOOKUP($B48,Ref!$B$3:$E$52,3,FALSE),0) -> 0
C49: =IFERROR(VLOOKUP($B49,Ref!$B$3:$C$52,2,FALSE),0) -> 0 | F49: =IFERROR(VLOOKUP($B49,Ref!$B$3:$F$24,4,FALSE),0) -> 0 | G49: =IFERROR(VLOOKUP($B49,Ref!$B$3:$E$52,3,FALSE),0) -> 0
C50: =IFERROR(VLOOKUP($B50,Ref!$B$3:$C$52,2,FALSE),0) -> 0 | F50: =IFERROR(VLOOKUP($B50,Ref!$B$3:$F$24,4,FALSE),0) -> 0 | G50: =IFERROR(VLOOKUP($B50,Ref!$B$3:$E$52,3,FALSE),0) -> 0
C51: =IFERROR(VLOOKUP($B51,Ref!$B$3:$C$52,2,FALSE),0) -> 0 | F51: =IFERROR(VLOOKUP($B51,Ref!$B$3:$F$24,4,FALSE),0) -> 0 | G51: =IFERROR(VLOOKUP($B51,Ref!$B$3:$E$52,3,FALSE),0) -> 0
C52: =IFERROR(VLOOKUP($B52,Ref!$B$3:$C$52,2,FALSE),0) -> 0 | F52: =IFERROR(VLOOKUP($B52,Ref!$B$3:$F$24,4,FALSE),0) -> 0 | G52: =IFERROR(VLOOKUP($B52,Ref!$B$3:$E$52,3,FALSE),0) -> 0
C53: =IFERROR(VLOOKUP($B53,Ref!$B$3:$C$52,2,FALSE),0) -> 0 | F53: =IFERROR(VLOOKUP($B53,Ref!$B$3:$F$24,4,FALSE),0) -> 0 | G53: =IFERROR(VLOOKUP($B53,Ref!$B$3:$E$52,3,FALSE),0) -> 0
C54: =IFERROR(VLOOKUP($B54,Ref!$B$3:$C$52,2,FALSE),0) -> 0 | F54: =IFERROR(VLOOKUP($B54,Ref!$B$3:$F$24,4,FALSE),0) -> 0 | G54: =IFERROR(VLOOKUP($B54,Ref!$B$3:$E$52,3,FALSE),0) -> 0
C55: =IFERROR(VLOOKUP($B55,Ref!$B$3:$C$52,2,FALSE),0) -> 0 | F55: =IFERROR(VLOOKUP($B55,Ref!$B$3:$F$24,4,FALSE),0) -> 0 | G55: =IFERROR(VLOOKUP($B55,Ref!$B$3:$E$52,3,FALSE),0) -> 0
C56: =IFERROR(VLOOKUP($B56,Ref!$B$3:$C$52,2,FALSE),0) -> 0 | F56: =IFERROR(VLOOKUP($B56,Ref!$B$3:$F$24,4,FALSE),0) -> 0 | G56: =IFERROR(VLOOKUP($B56,Ref!$B$3:$E$52,3,FALSE),0) -> 0
C57: =IFERROR(VLOOKUP($B57,Ref!$B$3:$C$52,2,FALSE),0) -> 0 | F57: =IFERROR(VLOOKUP($B57,Ref!$B$3:$F$24,4,FALSE),0) -> 0 | G57: =IFERROR(VLOOKUP($B57,Ref!$B$3:$E$52,3,FALSE),0) -> 0
C58: =IFERROR(VLOOKUP($B58,Ref!$B$3:$C$52,2,FALSE),0) -> 0 | F58: =IFERROR(VLOOKUP($B58,Ref!$B$3:$F$24,4,FALSE),0) -> 0 | G58: =IFERROR(VLOOKUP($B58,Ref!$B$3:$E$52,3,FALSE),0) -> 0
C59: =IFERROR(VLOOKUP($B59,Ref!$B$3:$C$52,2,FALSE),0) -> 0 | F59: =IFERROR(VLOOKUP($B59,Ref!$B$3:$F$24,4,FALSE),0) -> 0 | G59: =IFERROR(VLOOKUP($B59,Ref!$B$3:$E$52,3,FALSE),0) -> 0
C60: =IFERROR(VLOOKUP($B60,Ref!$B$3:$C$52,2,FALSE),0) -> 0 | F60: =IFERROR(VLOOKUP($B60,Ref!$B$3:$F$24,4,FALSE),0) -> 0 | G60: =IFERROR(VLOOKUP($B60,Ref!$B$3:$E$52,3,FALSE),0) -> 0
C61: =IFERROR(VLOOKUP($B61,Ref!$B$3:$C$52,2,FALSE),0) -> 0 | F61: =IFERROR(VLOOKUP($B61,Ref!$B$3:$F$24,4,FALSE),0) -> 0 | G61: =IFERROR(VLOOKUP($B61,Ref!$B$3:$E$52,3,FALSE),0) -> 0
C62: =IFERROR(VLOOKUP($B62,Ref!$B$3:$C$52,2,FALSE),0) -> 0 | F62: =IFERROR(VLOOKUP($B62,Ref!$B$3:$F$24,4,FALSE),0) -> 0 | G62: =IFERROR(VLOOKUP($B62,Ref!$B$3:$E$52,3,FALSE),0) -> 0
C63: =IFERROR(VLOOKUP($B63,Ref!$B$3:$C$52,2,FALSE),0) -> 0 | F63: =IFERROR(VLOOKUP($B63,Ref!$B$3:$F$24,4,FALSE),0) -> 0 | G63: =IFERROR(VLOOKUP($B63,Ref!$B$3:$E$52,3,FALSE),0) -> 0
C64: =IFERROR(VLOOKUP($B64,Ref!$B$3:$C$52,2,FALSE),0) -> 0 | F64: =IFERROR(VLOOKUP($B64,Ref!$B$3:$F$24,4,FALSE),0) -> 0 | G64: =IFERROR(VLOOKUP($B64,Ref!$B$3:$E$52,3,FALSE),0) -> 0
C65: =IFERROR(VLOOKUP($B65,Ref!$B$3:$C$52,2,FALSE),0) -> 0 | F65: =IFERROR(VLOOKUP($B65,Ref!$B$3:$F$24,4,FALSE),0) -> 0 | G65: =IFERROR(VLOOKUP($B65,Ref!$B$3:$E$52,3,FALSE),0) -> 0
C66: =IFERROR(VLOOKUP($B66,Ref!$B$3:$C$52,2,FALSE),0) -> 0 | F66: =IFERROR(VLOOKUP($B66,Ref!$B$3:$F$24,4,FALSE),0) -> 0 | G66: =IFERROR(VLOOKUP($B66,Ref!$B$3:$E$52,3,FALSE),0) -> 0
C67: =IFERROR(VLOOKUP($B67,Ref!$B$3:$C$52,2,FALSE),0) -> 0 | F67: =IFERROR(VLOOKUP($B67,Ref!$B$3:$F$24,4,FALSE),0) -> 0 | G67: =IFERROR(VLOOKUP($B67,Ref!$B$3:$E$52,3,FALSE),0) -> 0
C68: =IFERROR(VLOOKUP($B68,Ref!$B$3:$C$52,2,FALSE),0) -> 0 | F68: =IFERROR(VLOOKUP($B68,Ref!$B$3:$F$24,4,FALSE),0) -> 0 | G68: =IFERROR(VLOOKUP($B68,Ref!$B$3:$E$52,3,FALSE),0) -> 0
C69: =IFERROR(VLOOKUP($B69,Ref!$B$3:$C$52,2,FALSE),0) -> 0 | F69: =IFERROR(VLOOKUP($B69,Ref!$B$3:$F$24,4,FALSE),0) -> 0 | G69: =IFERROR(VLOOKUP($B69,Ref!$B$3:$E$52,3,FALSE),0) -> 0
C70: =IFERROR(VLOOKUP($B70,Ref!$B$3:$C$52,2,FALSE),0) -> 0 | F70: =IFERROR(VLOOKUP($B70,Ref!$B$3:$F$24,4,FALSE),0) -> 0 | G70: =IFERROR(VLOOKUP($B70,Ref!$B$3:$E$52,3,FALSE),0) -> 0
C71: =IFERROR(VLOOKUP($B71,Ref!$B$3:$C$52,2,FALSE),0) -> 0 | F71: =IFERROR(VLOOKUP($B71,Ref!$B$3:$F$24,4,FALSE),0) -> 0 | G71: =IFERROR(VLOOKUP($B71,Ref!$B$3:$E$52,3,FALSE),0) -> 0
C72: =IFERROR(VLOOKUP($B72,Ref!$B$3:$C$52,2,FALSE),0) -> 0 | F72: =IFERROR(VLOOKUP($B72,Ref!$B$3:$F$24,4,FALSE),0) -> 0 | G72: =IFERROR(VLOOKUP($B72,Ref!$B$3:$E$52,3,FALSE),0) -> 0
C73: =IFERROR(VLOOKUP($B73,Ref!$B$3:$C$52,2,FALSE),0) -> 0 | F73: =IFERROR(VLOOKUP($B73,Ref!$B$3:$F$24,4,FALSE),0) -> 0 | G73: =IFERROR(VLOOKUP($B73,Ref!$B$3:$E$52,3,FALSE),0) -> 0
C74: =IFERROR(VLOOKUP($B74,Ref!$B$3:$C$52,2,FALSE),0) -> 0 | F74: =IFERROR(VLOOKUP($B74,Ref!$B$3:$F$24,4,FALSE),0) -> 0 | G74: =IFERROR(VLOOKUP($B74,Ref!$B$3:$E$52,3,FALSE),0) -> 0
C75: =IFERROR(VLOOKUP($B75,Ref!$B$3:$C$52,2,FALSE),0) -> 0 | F75: =IFERROR(VLOOKUP($B75,Ref!$B$3:$F$24,4,FALSE),0) -> 0 | G75: =IFERROR(VLOOKUP($B75,Ref!$B$3:$E$52,3,FALSE),0) -> 0
C76: =IFERROR(VLOOKUP($B76,Ref!$B$3:$C$52,2,FALSE),0) -> 0 | F76: =IFERROR(VLOOKUP($B76,Ref!$B$3:$F$24,4,FALSE),0) -> 0 | G76: =IFERROR(VLOOKUP($B76,Ref!$B$3:$E$52,3,FALSE),0) -> 0
C77: =IFERROR(VLOOKUP($B77,Ref!$B$3:$C$52,2,FALSE),0) -> 0 | F77: =IFERROR(VLOOKUP($B77,Ref!$B$3:$F$24,4,FALSE),0) -> 0 | G77: =IFERROR(VLOOKUP($B77,Ref!$B$3:$E$52,3,FALSE),0) -> 0
C78: =IFERROR(VLOOKUP($B78,Ref!$B$3:$C$52,2,FALSE),0) -> 0 | F78: =IFERROR(VLOOKUP($B78,Ref!$B$3:$F$24,4,FALSE),0) -> 0 | G78: =IFERROR(VLOOKUP($B78,Ref!$B$3:$E$52,3,FALSE),0) -> 0
C79: =IFERROR(VLOOKUP($B79,Ref!$B$3:$C$52,2,FALSE),0) -> 0 | F79: =IFERROR(VLOOKUP($B79,Ref!$B$3:$F$24,4,FALSE),0) -> 0 | G79: =IFERROR(VLOOKUP($B79,Ref!$B$3:$E$52,3,FALSE),0) -> 0
C80: =IFERROR(VLOOKUP($B80,Ref!$B$3:$C$52,2,FALSE),0) -> 0 | F80: =IFERROR(VLOOKUP($B80,Ref!$B$3:$F$24,4,FALSE),0) -> 0 | G80: =IFERROR(VLOOKUP($B80,Ref!$B$3:$E$52,3,FALSE),0) -> 0
C81: =IFERROR(VLOOKUP($B81,Ref!$B$3:$C$52,2,FALSE),0) -> 0 | F81: =IFERROR(VLOOKUP($B81,Ref!$B$3:$F$24,4,FALSE),0) -> 0 | G81: =IFERROR(VLOOKUP($B81,Ref!$B$3:$E$52,3,FALSE),0) -> 0
C82: =IFERROR(VLOOKUP($B82,Ref!$B$3:$C$52,2,FALSE),0) -> 0 | F82: =IFERROR(VLOOKUP($B82,Ref!$B$3:$F$24,4,FALSE),0) -> 0 | G82: =IFERROR(VLOOKUP($B82,Ref!$B$3:$E$52,3,FALSE),0) -> 0
C83: =IFERROR(VLOOKUP($B83,Ref!$B$3:$C$52,2,FALSE),0) -> 0 | F83: =IFERROR(VLOOKUP($B83,Ref!$B$3:$F$24,4,FALSE),0) -> 0 | G83: =IFERROR(VLOOKUP($B83,Ref!$B$3:$E$52,3,FALSE),0) -> 0
C84: =IFERROR(VLOOKUP($B84,Ref!$B$3:$C$52,2,FALSE),0) -> 0 | F84: =IFERROR(VLOOKUP($B84,Ref!$B$3:$F$24,4,FALSE),0) -> 0 | G84: =IFERROR(VLOOKUP($B84,Ref!$B$3:$E$52,3,FALSE),0) -> 0
C85: =IFERROR(VLOOKUP($B85,Ref!$B$3:$C$52,2,FALSE),0) -> 0 | F85: =IFERROR(VLOOKUP($B85,Ref!$B$3:$F$24,4,FALSE),0) -> 0 | G85: =IFERROR(VLOOKUP($B85,Ref!$B$3:$E$52,3,FALSE),0) -> 0
C86: =IFERROR(VLOOKUP($B86,Ref!$B$3:$C$52,2,FALSE),0) -> 0 | F86: =IFERROR(VLOOKUP($B86,Ref!$B$3:$F$24,4,FALSE),0) -> 0 | G86: =IFERROR(VLOOKUP($B86,Ref!$B$3:$E$52,3,FALSE),0) -> 0
C87: =IFERROR(VLOOKUP($B87,Ref!$B$3:$C$52,2,FALSE),0) -> 0 | F87: =IFERROR(VLOOKUP($B87,Ref!$B$3:$F$24,4,FALSE),0) -> 0 | G87: =IFERROR(VLOOKUP($B87,Ref!$B$3:$E$52,3,FALSE),0) -> 0
C88: =IFERROR(VLOOKUP($B88,Ref!$B$3:$C$52,2,FALSE),0) -> 0 | F88: =IFERROR(VLOOKUP($B88,Ref!$B$3:$F$24,4,FALSE),0) -> 0 | G88: =IFERROR(VLOOKUP($B88,Ref!$B$3:$E$52,3,FALSE),0) -> 0
C89: =IFERROR(VLOOKUP($B89,Ref!$B$3:$C$52,2,FALSE),0) -> 0 | F89: =IFERROR(VLOOKUP($B89,Ref!$B$3:$F$24,4,FALSE),0) -> 0 | G89: =IFERROR(VLOOKUP($B89,Ref!$B$3:$E$52,3,FALSE),0) -> 0
C90: =IFERROR(VLOOKUP($B90,Ref!$B$3:$C$52,2,FALSE),0) -> 0 | F90: =IFERROR(VLOOKUP($B90,Ref!$B$3:$F$24,4,FALSE),0) -> 0 | G90: =IFERROR(VLOOKUP($B90,Ref!$B$3:$E$52,3,FALSE),0) -> 0
C91: =IFERROR(VLOOKUP($B91,Ref!$B$3:$C$52,2,FALSE),0) -> 0 | F91: =IFERROR(VLOOKUP($B91,Ref!$B$3:$F$24,4,FALSE),0) -> 0 | G91: =IFERROR(VLOOKUP($B91,Ref!$B$3:$E$52,3,FALSE),0) -> 0
C92: =IFERROR(VLOOKUP($B92,Ref!$B$3:$C$52,2,FALSE),0) -> 0 | F92: =IFERROR(VLOOKUP($B92,Ref!$B$3:$F$24,4,FALSE),0) -> 0 | G92: =IFERROR(VLOOKUP($B92,Ref!$B$3:$E$52,3,FALSE),0) -> 0
C93: =IFERROR(VLOOKUP($B93,Ref!$B$3:$C$52,2,FALSE),0) -> 0 | F93: =IFERROR(VLOOKUP($B93,Ref!$B$3:$F$24,4,FALSE),0) -> 0 | G93: =IFERROR(VLOOKUP($B93,Ref!$B$3:$E$52,3,FALSE),0) -> 0
C94: =IFERROR(VLOOKUP($B94,Ref!$B$3:$C$52,2,FALSE),0) -> 0 | F94: =IFERROR(VLOOKUP($B94,Ref!$B$3:$F$24,4,FALSE),0) -> 0 | G94: =IFERROR(VLOOKUP($B94,Ref!$B$3:$E$52,3,FALSE),0) -> 0
C95: =IFERROR(VLOOKUP($B95,Ref!$B$3:$C$52,2,FALSE),0) -> 0 | F95: =IFERROR(VLOOKUP($B95,Ref!$B$3:$F$24,4,FALSE),0) -> 0 | G95: =IFERROR(VLOOKUP($B95,Ref!$B$3:$E$52,3,FALSE),0) -> 0
C96: =IFERROR(VLOOKUP($B96,Ref!$B$3:$C$52,2,FALSE),0) -> 0 | F96: =IFERROR(VLOOKUP($B96,Ref!$B$3:$F$24,4,FALSE),0) -> 0 | G96: =IFERROR(VLOOKUP($B96,Ref!$B$3:$E$52,3,FALSE),0) -> 0
C97: =IFERROR(VLOOKUP($B97,Ref!$B$3:$C$52,2,FALSE),0) -> 0 | F97: =IFERROR(VLOOKUP($B97,Ref!$B$3:$F$24,4,FALSE),0) -> 0 | G97: =IFERROR(VLOOKUP($B97,Ref!$B$3:$E$52,3,FALSE),0) -> 0
C98: =IFERROR(VLOOKUP($B98,Ref!$B$3:$C$52,2,FALSE),0) -> 0 | F98: =IFERROR(VLOOKUP($B98,Ref!$B$3:$F$24,4,FALSE),0) -> 0 | G98: =IFERROR(VLOOKUP($B98,Ref!$B$3:$E$52,3,FALSE),0) -> 0
C99: =IFERROR(VLOOKUP($B99,Ref!$B$3:$C$52,2,FALSE),0) -> 0 | F99: =IFERROR(VLOOKUP($B99,Ref!$B$3:$F$24,4,FALSE),0) -> 0 | G99: =IFERROR(VLOOKUP($B99,Ref!$B$3:$E$52,3,FALSE),0) -> 0
C100: =IFERROR(VLOOKUP($B100,Ref!$B$3:$C$52,2,FALSE),0) -> 0 | F100: =IFERROR(VLOOKUP($B100,Ref!$B$3:$F$24,4,FALSE),0) -> 0 | G100: =IFERROR(VLOOKUP($B100,Ref!$B$3:$E$52,3,FALSE),0) -> 0
C101: =IFERROR(VLOOKUP($B101,Ref!$B$3:$C$52,2,FALSE),0) -> 0 | F101: =IFERROR(VLOOKUP($B101,Ref!$B$3:$F$24,4,FALSE),0) -> 0 | G101: =IFERROR(VLOOKUP($B101,Ref!$B$3:$E$52,3,FALSE),0) -> 0
C102: =IFERROR(VLOOKUP($B102,Ref!$B$3:$C$52,2,FALSE),0) -> 0 | F102: =IFERROR(VLOOKUP($B102,Ref!$B$3:$F$24,4,FALSE),0) -> 0 | G102: =IFERROR(VLOOKUP($B102,Ref!$B$3:$E$52,3,FALSE),0) -> 0
C103: =IFERROR(VLOOKUP($B103,Ref!$B$3:$C$52,2,FALSE),0) -> 0 | F103: =IFERROR(VLOOKUP($B103,Ref!$B$3:$F$24,4,FALSE),0) -> 0 | G103: =IFERROR(VLOOKUP($B103,Ref!$B$3:$E$52,3,FALSE),0) -> 0
C104: =IFERROR(VLOOKUP($B104,Ref!$B$3:$C$52,2,FALSE),0) -> 0 | F104: =IFERROR(VLOOKUP($B104,Ref!$B$3:$F$24,4,FALSE),0) -> 0 | G104: =IFERROR(VLOOKUP($B104,Ref!$B$3:$E$52,3,FALSE),0) -> 0
C105: =IFERROR(VLOOKUP($B105,Ref!$B$3:$C$52,2,FALSE),0) -> 0 | F105: =IFERROR(VLOOKUP($B105,Ref!$B$3:$F$24,4,FALSE),0) -> 0 | G105: =IFERROR(VLOOKUP($B105,Ref!$B$3:$E$52,3,FALSE),0) -> 0
C106: =IFERROR(VLOOKUP($B106,Ref!$B$3:$C$52,2,FALSE),0) -> 0 | F106: =IFERROR(VLOOKUP($B106,Ref!$B$3:$F$24,4,FALSE),0) -> 0 | G106: =IFERROR(VLOOKUP($B106,Ref!$B$3:$E$52,3,FALSE),0) -> 0
C107: =IFERROR(VLOOKUP($B107,Ref!$B$3:$C$52,2,FALSE),0) -> 0 | F107: =IFERROR(VLOOKUP($B107,Ref!$B$3:$F$24,4,FALSE),0) -> 0 | G107: =IFERROR(VLOOKUP($B107,Ref!$B$3:$E$52,3,FALSE),0) -> 0
C108: =IFERROR(VLOOKUP($B108,Ref!$B$3:$C$52,2,FALSE),0) -> 0 | F108: =IFERROR(VLOOKUP($B108,Ref!$B$3:$F$24,4,FALSE),0) -> 0 | G108: =IFERROR(VLOOKUP($B108,Ref!$B$3:$E$52,3,FALSE),0) -> 0
C109: =IFERROR(VLOOKUP($B109,Ref!$B$3:$C$52,2,FALSE),0) -> 0 | F109: =IFERROR(VLOOKUP($B109,Ref!$B$3:$F$24,4,FALSE),0) -> 0 | G109: =IFERROR(VLOOKUP($B109,Ref!$B$3:$E$52,3,FALSE),0) -> 0
C110: =IFERROR(VLOOKUP($B110,Ref!$B$3:$C$52,2,FALSE),0) -> 0 | F110: =IFERROR(VLOOKUP($B110,Ref!$B$3:$F$24,4,FALSE),0) -> 0 | G110: =IFERROR(VLOOKUP($B110,Ref!$B$3:$E$52,3,FALSE),0) -> 0
C111: =IFERROR(VLOOKUP($B111,Ref!$B$3:$C$52,2,FALSE),0) -> 0 | F111: =IFERROR(VLOOKUP($B111,Ref!$B$3:$F$24,4,FALSE),0) -> 0 | G111: =IFERROR(VLOOKUP($B111,Ref!$B$3:$E$52,3,FALSE),0) -> 0
C112: =IFERROR(VLOOKUP($B112,Ref!$B$3:$C$52,2,FALSE),0) -> 0 | F112: =IFERROR(VLOOKUP($B112,Ref!$B$3:$F$24,4,FALSE),0) -> 0 | G112: =IFERROR(VLOOKUP($B112,Ref!$B$3:$E$52,3,FALSE),0) -> 0
C113: =IFERROR(VLOOKUP($B113,Ref!$B$3:$C$52,2,FALSE),0) -> 0 | F113: =IFERROR(VLOOKUP($B113,Ref!$B$3:$F$24,4,FALSE),0) -> 0 | G113: =IFERROR(VLOOKUP($B113,Ref!$B$3:$E$52,3,FALSE),0) -> 0
C114: =IFERROR(VLOOKUP($B114,Ref!$B$3:$C$52,2,FALSE),0) -> 0 | F114: =IFERROR(VLOOKUP($B114,Ref!$B$3:$F$24,4,FALSE),0) -> 0 | G114: =IFERROR(VLOOKUP($B114,Ref!$B$3:$E$52,3,FALSE),0) -> 0
C115: =IFERROR(VLOOKUP($B115,Ref!$B$3:$C$52,2,FALSE),0) -> 0 | F115: =IFERROR(VLOOKUP($B115,Ref!$B$3:$F$24,4,FALSE),0) -> 0 | G115: =IFERROR(VLOOKUP($B115,Ref!$B$3:$E$52,3,FALSE),0) -> 0
C116: =IFERROR(VLOOKUP($B116,Ref!$B$3:$C$52,2,FALSE),0) -> 0 | F116: =IFERROR(VLOOKUP($B116,Ref!$B$3:$F$24,4,FALSE),0) -> 0 | G116: =IFERROR(VLOOKUP($B116,Ref!$B$3:$E$52,3,FALSE),0) -> 0
C117: =IFERROR(VLOOKUP($B117,Ref!$B$3:$C$52,2,FALSE),0) -> 0 | F117: =IFERROR(VLOOKUP($B117,Ref!$B$3:$F$24,4,FALSE),0) -> 0 | G117: =IFERROR(VLOOKUP($B117,Ref!$B$3:$E$52,3,FALSE),0) -> 0
C118: =IFERROR(VLOOKUP($B118,Ref!$B$3:$C$52,2,FALSE),0) -> 0 | F118: =IFERROR(VLOOKUP($B118,Ref!$B$3:$F$24,4,FALSE),0) -> 0 | G118: =IFERROR(VLOOKUP($B118,Ref!$B$3:$E$52,3,FALSE),0) -> 0
C119: =IFERROR(VLOOKUP($B119,Ref!$B$3:$C$52,2,FALSE),0) -> 0 | F119: =IFERROR(VLOOKUP($B119,Ref!$B$3:$F$24,4,FALSE),0) -> 0 | G119: =IFERROR(VLOOKUP($B119,Ref!$B$3:$E$52,3,FALSE),0) -> 0
C120: =IFERROR(VLOOKUP($B120,Ref!$B$3:$C$52,2,FALSE),0) -> 0 | F120: =IFERROR(VLOOKUP($B120,Ref!$B$3:$F$24,4,FALSE),0) -> 0 | G120: =IFERROR(VLOOKUP($B120,Ref!$B$3:$E$52,3,FALSE),0) -> 0
C121: =IFERROR(VLOOKUP($B121,Ref!$B$3:$C$52,2,FALSE),0) -> 0 | F121: =IFERROR(VLOOKUP($B121,Ref!$B$3:$F$24,4,FALSE),0) -> 0 | G121: =IFERROR(VLOOKUP($B121,Ref!$B$3:$E$52,3,FALSE),0) -> 0
C122: =IFERROR(VLOOKUP($B122,Ref!$B$3:$C$52,2,FALSE),0) -> 0 | F122: =IFERROR(VLOOKUP($B122,Ref!$B$3:$F$24,4,FALSE),0) -> 0 | G122: =IFERROR(VLOOKUP($B122,Ref!$B$3:$E$52,3,FALSE),0) -> 0
C123: =IFERROR(VLOOKUP($B123,Ref!$B$3:$C$52,2,FALSE),0) -> 0 | F123: =IFERROR(VLOOKUP($B123,Ref!$B$3:$F$24,4,FALSE),0) -> 0 | G123: =IFERROR(VLOOKUP($B123,Ref!$B$3:$E$52,3,FALSE),0) -> 0
C124: =IFERROR(VLOOKUP($B124,Ref!$B$3:$C$52,2,FALSE),0) -> 0 | F124: =IFERROR(VLOOKUP($B124,Ref!$B$3:$F$24,4,FALSE),0) -> 0 | G124: =IFERROR(VLOOKUP($B124,Ref!$B$3:$E$52,3,FALSE),0) -> 0
C125: =IFERROR(VLOOKUP($B125,Ref!$B$3:$C$52,2,FALSE),0) -> 0 | F125: =IFERROR(VLOOKUP($B125,Ref!$B$3:$F$24,4,FALSE),0) -> 0 | G125: =IFERROR(VLOOKUP($B125,Ref!$B$3:$E$52,3,FALSE),0) -> 0
C126: =IFERROR(VLOOKUP($B126,Ref!$B$3:$C$52,2,FALSE),0) -> 0 | F126: =IFERROR(VLOOKUP($B126,Ref!$B$3:$F$24,4,FALSE),0) -> 0 | G126: =IFERROR(VLOOKUP($B126,Ref!$B$3:$E$52,3,FALSE),0) -> 0
C127: =IFERROR(VLOOKUP($B127,Ref!$B$3:$C$52,2,FALSE),0) -> 0 | F127: =IFERROR(VLOOKUP($B127,Ref!$B$3:$F$24,4,FALSE),0) -> 0 | G127: =IFERROR(VLOOKUP($B127,Ref!$B$3:$E$52,3,FALSE),0) -> 0
C128: =IFERROR(VLOOKUP($B128,Ref!$B$3:$C$52,2,FALSE),0) -> 0 | F128: =IFERROR(VLOOKUP($B128,Ref!$B$3:$F$24,4,FALSE),0) -> 0 | G128: =IFERROR(VLOOKUP($B128,Ref!$B$3:$E$52,3,FALSE),0) -> 0
C129: =IFERROR(VLOOKUP($B129,Ref!$B$3:$C$52,2,FALSE),0) -> 0 | F129: =IFERROR(VLOOKUP($B129,Ref!$B$3:$F$24,4,FALSE),0) -> 0 | G129: =IFERROR(VLOOKUP($B129,Ref!$B$3:$E$52,3,FALSE),0) -> 0
C130: =IFERROR(VLOOKUP($B130,Ref!$B$3:$C$52,2,FALSE),0) -> 0 | F130: =IFERROR(VLOOKUP($B130,Ref!$B$3:$F$24,4,FALSE),0) -> 0 | G130: =IFERROR(VLOOKUP($B130,Ref!$B$3:$E$52,3,FALSE),0) -> 0
C131: =IFERROR(VLOOKUP($B131,Ref!$B$3:$C$52,2,FALSE),0) -> 0 | F131: =IFERROR(VLOOKUP($B131,Ref!$B$3:$F$24,4,FALSE),0) -> 0 | G131: =IFERROR(VLOOKUP($B131,Ref!$B$3:$E$52,3,FALSE),0) -> 0
C132: =IFERROR(VLOOKUP($B132,Ref!$B$3:$C$52,2,FALSE),0) -> 0 | F132: =IFERROR(VLOOKUP($B132,Ref!$B$3:$F$24,4,FALSE),0) -> 0 | G132: =IFERROR(VLOOKUP($B132,Ref!$B$3:$E$52,3,FALSE),0) -> 0
C133: =IFERROR(VLOOKUP($B133,Ref!$B$3:$C$52,2,FALSE),0) -> 0 | F133: =IFERROR(VLOOKUP($B133,Ref!$B$3:$F$24,4,FALSE),0) -> 0 | G133: =IFERROR(VLOOKUP($B133,Ref!$B$3:$E$52,3,FALSE),0) -> 0
C134: =IFERROR(VLOOKUP($B134,Ref!$B$3:$C$52,2,FALSE),0) -> 0 | F134: =IFERROR(VLOOKUP($B134,Ref!$B$3:$F$24,4,FALSE),0) -> 0 | G134: =IFERROR(VLOOKUP($B134,Ref!$B$3:$E$52,3,FALSE),0) -> 0
C135: =IFERROR(VLOOKUP($B135,Ref!$B$3:$C$52,2,FALSE),0) -> 0 | F135: =IFERROR(VLOOKUP($B135,Ref!$B$3:$F$24,4,FALSE),0) -> 0 | G135: =IFERROR(VLOOKUP($B135,Ref!$B$3:$E$52,3,FALSE),0) -> 0
C136: =IFERROR(VLOOKUP($B136,Ref!$B$3:$C$52,2,FALSE),0) -> 0 | F136: =IFERROR(VLOOKUP($B136,Ref!$B$3:$F$24,4,FALSE),0) -> 0 | G136: =IFERROR(VLOOKUP($B136,Ref!$B$3:$E$52,3,FALSE),0) -> 0
C137: =IFERROR(VLOOKUP($B137,Ref!$B$3:$C$52,2,FALSE),0) -> 0 | F137: =IFERROR(VLOOKUP($B137,Ref!$B$3:$F$24,4,FALSE),0) -> 0 | G137: =IFERROR(VLOOKUP($B137,Ref!$B$3:$E$52,3,FALSE),0) -> 0
C138: =IFERROR(VLOOKUP($B138,Ref!$B$3:$C$52,2,FALSE),0) -> 0 | F138: =IFERROR(VLOOKUP($B138,Ref!$B$3:$F$24,4,FALSE),0) -> 0 | G138: =IFERROR(VLOOKUP($B138,Ref!$B$3:$E$52,3,FALSE),0) -> 0
C139: =IFERROR(VLOOKUP($B139,Ref!$B$3:$C$52,2,FALSE),0) -> 0 | F139: =IFERROR(VLOOKUP($B139,Ref!$B$3:$F$24,4,FALSE),0) -> 0 | G139: =IFERROR(VLOOKUP($B139,Ref!$B$3:$E$52,3,FALSE),0) -> 0
C140: =IFERROR(VLOOKUP($B140,Ref!$B$3:$C$52,2,FALSE),0) -> 0 | F140: =IFERROR(VLOOKUP($B140,Ref!$B$3:$F$24,4,FALSE),0) -> 0 | G140: =IFERROR(VLOOKUP($B140,Ref!$B$3:$E$52,3,FALSE),0) -> 0
C141: =IFERROR(VLOOKUP($B141,Ref!$B$3:$C$52,2,FALSE),0) -> 0 | F141: =IFERROR(VLOOKUP($B141,Ref!$B$3:$F$24,4,FALSE),0) -> 0 | G141: =IFERROR(VLOOKUP($B141,Ref!$B$3:$E$52,3,FALSE),0) -> 0
C142: =IFERROR(VLOOKUP($B142,Ref!$B$3:$C$52,2,FALSE),0) -> 0 | F142: =IFERROR(VLOOKUP($B142,Ref!$B$3:$F$24,4,FALSE),0) -> 0 | G142: =IFERROR(VLOOKUP($B142,Ref!$B$3:$E$52,3,FALSE),0) -> 0
C143: =IFERROR(VLOOKUP($B143,Ref!$B$3:$C$52,2,FALSE),0) -> 0 | F143: =IFERROR(VLOOKUP($B143,Ref!$B$3:$F$24,4,FALSE),0) -> 0 | G143: =IFERROR(VLOOKUP($B143,Ref!$B$3:$E$52,3,FALSE),0) -> 0
C144: =IFERROR(VLOOKUP($B144,Ref!$B$3:$C$52,2,FALSE),0) -> 0 | F144: =IFERROR(VLOOKUP($B144,Ref!$B$3:$F$24,4,FALSE),0) -> 0 | G144: =IFERROR(VLOOKUP($B144,Ref!$B$3:$E$52,3,FALSE),0) -> 0
C145: =IFERROR(VLOOKUP($B145,Ref!$B$3:$C$52,2,FALSE),0) -> 0 | F145: =IFERROR(VLOOKUP($B145,Ref!$B$3:$F$24,4,FALSE),0) -> 0 | G145: =IFERROR(VLOOKUP($B145,Ref!$B$3:$E$52,3,FALSE),0) -> 0
C146: =IFERROR(VLOOKUP($B146,Ref!$B$3:$C$52,2,FALSE),0) -> 0 | F146: =IFERROR(VLOOKUP($B146,Ref!$B$3:$F$24,4,FALSE),0) -> 0 | G146: =IFERROR(VLOOKUP($B146,Ref!$B$3:$E$52,3,FALSE),0) -> 0
C147: =IFERROR(VLOOKUP($B147,Ref!$B$3:$C$52,2,FALSE),0) -> 0 | F147: =IFERROR(VLOOKUP($B147,Ref!$B$3:$F$24,4,FALSE),0) -> 0 | G147: =IFERROR(VLOOKUP($B147,Ref!$B$3:$E$52,3,FALSE),0) -> 0
C148: =IFERROR(VLOOKUP($B148,Ref!$B$3:$C$52,2,FALSE),0) -> 0 | F148: =IFERROR(VLOOKUP($B148,Ref!$B$3:$F$24,4,FALSE),0) -> 0 | G148: =IFERROR(VLOOKUP($B148,Ref!$B$3:$E$52,3,FALSE),0) -> 0
C149: =IFERROR(VLOOKUP($B149,Ref!$B$3:$C$52,2,FALSE),0) -> 0 | F149: =IFERROR(VLOOKUP($B149,Ref!$B$3:$F$24,4,FALSE),0) -> 0 | G149: =IFERROR(VLOOKUP($B149,Ref!$B$3:$E$52,3,FALSE),0) -> 0
C150: =IFERROR(VLOOKUP($B150,Ref!$B$3:$C$52,2,FALSE),0) -> 0 | F150: =IFERROR(VLOOKUP($B150,Ref!$B$3:$F$24,4,FALSE),0) -> 0 | G150: =IFERROR(VLOOKUP($B150,Ref!$B$3:$E$52,3,FALSE),0) -> 0
C151: =IFERROR(VLOOKUP($B151,Ref!$B$3:$C$52,2,FALSE),0) -> 0 | F151: =IFERROR(VLOOKUP($B151,Ref!$B$3:$F$24,4,FALSE),0) -> 0 | G151: =IFERROR(VLOOKUP($B151,Ref!$B$3:$E$52,3,FALSE),0) -> 0
C152: =IFERROR(VLOOKUP($B152,Ref!$B$3:$C$52,2,FALSE),0) -> 0 | F152: =IFERROR(VLOOKUP($B152,Ref!$B$3:$F$24,4,FALSE),0) -> 0 | G152: =IFERROR(VLOOKUP($B152,Ref!$B$3:$E$52,3,FALSE),0) -> 0
C153: =IFERROR(VLOOKUP($B153,Ref!$B$3:$C$52,2,FALSE),0) -> 0 | F153: =IFERROR(VLOOKUP($B153,Ref!$B$3:$F$24,4,FALSE),0) -> 0 | G153: =IFERROR(VLOOKUP($B153,Ref!$B$3:$E$52,3,FALSE),0) -> 0
C154: =IFERROR(VLOOKUP($B154,Ref!$B$3:$C$52,2,FALSE),0) -> 0 | F154: =IFERROR(VLOOKUP($B154,Ref!$B$3:$F$24,4,FALSE),0) -> 0 | G154: =IFERROR(VLOOKUP($B154,Ref!$B$3:$E$52,3,FALSE),0) -> 0
C155: =IFERROR(VLOOKUP($B155,Ref!$B$3:$C$52,2,FALSE),0) -> 0 | F155: =IFERROR(VLOOKUP($B155,Ref!$B$3:$F$24,4,FALSE),0) -> 0 | G155: =IFERROR(VLOOKUP($B155,Ref!$B$3:$E$52,3,FALSE),0) -> 0
C156: =IFERROR(VLOOKUP($B156,Ref!$B$3:$C$52,2,FALSE),0) -> 0 | F156: =IFERROR(VLOOKUP($B156,Ref!$B$3:$F$24,4,FALSE),0) -> 0 | G156: =IFERROR(VLOOKUP($B156,Ref!$B$3:$E$52,3,FALSE),0) -> 0
C157: =IFERROR(VLOOKUP($B157,Ref!$B$3:$C$52,2,FALSE),0) -> 0 | F157: =IFERROR(VLOOKUP($B157,Ref!$B$3:$F$24,4,FALSE),0) -> 0 | G157: =IFERROR(VLOOKUP($B157,Ref!$B$3:$E$52,3,FALSE),0) -> 0
C158: =IFERROR(VLOOKUP($B158,Ref!$B$3:$C$52,2,FALSE),0) -> 0 | F158: =IFERROR(VLOOKUP($B158,Ref!$B$3:$F$24,4,FALSE),0) -> 0 | G158: =IFERROR(VLOOKUP($B158,Ref!$B$3:$E$52,3,FALSE),0) -> 0
C159: =IFERROR(VLOOKUP($B159,Ref!$B$3:$C$52,2,FALSE),0) -> 0 | F159: =IFERROR(VLOOKUP($B159,Ref!$B$3:$F$24,4,FALSE),0) -> 0 | G159: =IFERROR(VLOOKUP($B159,Ref!$B$3:$E$52,3,FALSE),0) -> 0
C160: =IFERROR(VLOOKUP($B160,Ref!$B$3:$C$52,2,FALSE),0) -> 0 | F160: =IFERROR(VLOOKUP($B160,Ref!$B$3:$F$24,4,FALSE),0) -> 0 | G160: =IFERROR(VLOOKUP($B160,Ref!$B$3:$E$52,3,FALSE),0) -> 0
C161: =IFERROR(VLOOKUP($B161,Ref!$B$3:$C$52,2,FALSE),0) -> 0 | F161: =IFERROR(VLOOKUP($B161,Ref!$B$3:$F$24,4,FALSE),0) -> 0 | G161: =IFERROR(VLOOKUP($B161,Ref!$B$3:$E$52,3,FALSE),0) -> 0
C162: =IFERROR(VLOOKUP($B162,Ref!$B$3:$C$52,2,FALSE),0) -> 0 | F162: =IFERROR(VLOOKUP($B162,Ref!$B$3:$F$24,4,FALSE),0) -> 0 | G162: =IFERROR(VLOOKUP($B162,Ref!$B$3:$E$52,3,FALSE),0) -> 0
C163: =IFERROR(VLOOKUP($B163,Ref!$B$3:$C$52,2,FALSE),0) -> 0 | F163: =IFERROR(VLOOKUP($B163,Ref!$B$3:$F$24,4,FALSE),0) -> 0 | G163: =IFERROR(VLOOKUP($B163,Ref!$B$3:$E$52,3,FALSE),0) -> 0
C164: =IFERROR(VLOOKUP($B164,Ref!$B$3:$C$52,2,FALSE),0) -> 0 | F164: =IFERROR(VLOOKUP($B164,Ref!$B$3:$F$24,4,FALSE),0) -> 0 | G164: =IFERROR(VLOOKUP($B164,Ref!$B$3:$E$52,3,FALSE),0) -> 0
C165: =IFERROR(VLOOKUP($B165,Ref!$B$3:$C$52,2,FALSE),0) -> 0 | F165: =IFERROR(VLOOKUP($B165,Ref!$B$3:$F$24,4,FALSE),0) -> 0 | G165: =IFERROR(VLOOKUP($B165,Ref!$B$3:$E$52,3,FALSE),0) -> 0
C166: =IFERROR(VLOOKUP($B166,Ref!$B$3:$C$52,2,FALSE),0) -> 0 | F166: =IFERROR(VLOOKUP($B166,Ref!$B$3:$F$24,4,FALSE),0) -> 0 | G166: =IFERROR(VLOOKUP($B166,Ref!$B$3:$E$52,3,FALSE),0) -> 0
C167: =IFERROR(VLOOKUP($B167,Ref!$B$3:$C$52,2,FALSE),0) -> 0 | F167: =IFERROR(VLOOKUP($B167,Ref!$B$3:$F$24,4,FALSE),0) -> 0 | G167: =IFERROR(VLOOKUP($B167,Ref!$B$3:$E$52,3,FALSE),0) -> 0
C168: =IFERROR(VLOOKUP($B168,Ref!$B$3:$C$52,2,FALSE),0) -> 0 | F168: =IFERROR(VLOOKUP($B168,Ref!$B$3:$F$24,4,FALSE),0) -> 0 | G168: =IFERROR(VLOOKUP($B168,Ref!$B$3:$E$52,3,FALSE),0) -> 0
C169: =IFERROR(VLOOKUP($B169,Ref!$B$3:$C$52,2,FALSE),0) -> 0 | F169: =IFERROR(VLOOKUP($B169,Ref!$B$3:$F$24,4,FALSE),0) -> 0 | G169: =IFERROR(VLOOKUP($B169,Ref!$B$3:$E$52,3,FALSE),0) -> 0
C170: =IFERROR(VLOOKUP($B170,Ref!$B$3:$C$52,2,FALSE),0) -> 0 | F170: =IFERROR(VLOOKUP($B170,Ref!$B$3:$F$24,4,FALSE),0) -> 0 | G170: =IFERROR(VLOOKUP($B170,Ref!$B$3:$E$52,3,FALSE),0) -> 0
C171: =IFERROR(VLOOKUP($B171,Ref!$B$3:$C$52,2,FALSE),0) -> 0 | F171: =IFERROR(VLOOKUP($B171,Ref!$B$3:$F$24,4,FALSE),0) -> 0 | G171: =IFERROR(VLOOKUP($B171,Ref!$B$3:$E$52,3,FALSE),0) -> 0
C172: =IFERROR(VLOOKUP($B172,Ref!$B$3:$C$52,2,FALSE),0) -> 0 | F172: =IFERROR(VLOOKUP($B172,Ref!$B$3:$F$24,4,FALSE),0) -> 0 | G172: =IFERROR(VLOOKUP($B172,Ref!$B$3:$E$52,3,FALSE),0) -> 0
C173: =IFERROR(VLOOKUP($B173,Ref!$B$3:$C$52,2,FALSE),0) -> 0 | F173: =IFERROR(VLOOKUP($B173,Ref!$B$3:$F$24,4,FALSE),0) -> 0 | G173: =IFERROR(VLOOKUP($B173,Ref!$B$3:$E$52,3,FALSE),0) -> 0
C174: =IFERROR(VLOOKUP($B174,Ref!$B$3:$C$52,2,FALSE),0) -> 0 | F174: =IFERROR(VLOOKUP($B174,Ref!$B$3:$F$24,4,FALSE),0) -> 0 | G174: =IFERROR(VLOOKUP($B174,Ref!$B$3:$E$52,3,FALSE),0) -> 0
C175: =IFERROR(VLOOKUP($B175,Ref!$B$3:$C$52,2,FALSE),0) -> 0 | F175: =IFERROR(VLOOKUP($B175,Ref!$B$3:$F$24,4,FALSE),0) -> 0 | G175: =IFERROR(VLOOKUP($B175,Ref!$B$3:$E$52,3,FALSE),0) -> 0
C176: =IFERROR(VLOOKUP($B176,Ref!$B$3:$C$52,2,FALSE),0) -> 0 | F176: =IFERROR(VLOOKUP($B176,Ref!$B$3:$F$24,4,FALSE),0) -> 0 | G176: =IFERROR(VLOOKUP($B176,Ref!$B$3:$E$52,3,FALSE),0) -> 0
C177: =IFERROR(VLOOKUP($B177,Ref!$B$3:$C$52,2,FALSE),0) -> 0 | F177: =IFERROR(VLOOKUP($B177,Ref!$B$3:$F$24,4,FALSE),0) -> 0 | G177: =IFERROR(VLOOKUP($B177,Ref!$B$3:$E$52,3,FALSE),0) -> 0
C178: =IFERROR(VLOOKUP($B178,Ref!$B$3:$C$52,2,FALSE),0) -> 0 | F178: =IFERROR(VLOOKUP($B178,Ref!$B$3:$F$24,4,FALSE),0) -> 0 | G178: =IFERROR(VLOOKUP($B178,Ref!$B$3:$E$52,3,FALSE),0) -> 0
C179: =IFERROR(VLOOKUP($B179,Ref!$B$3:$C$52,2,FALSE),0) -> 0 | F179: =IFERROR(VLOOKUP($B179,Ref!$B$3:$F$24,4,FALSE),0) -> 0 | G179: =IFERROR(VLOOKUP($B179,Ref!$B$3:$E$52,3,FALSE),0) -> 0
C180: =IFERROR(VLOOKUP($B180,Ref!$B$3:$C$52,2,FALSE),0) -> 0 | F180: =IFERROR(VLOOKUP($B180,Ref!$B$3:$F$24,4,FALSE),0) -> 0 | G180: =IFERROR(VLOOKUP($B180,Ref!$B$3:$E$52,3,FALSE),0) -> 0
C181: =IFERROR(VLOOKUP($B181,Ref!$B$3:$C$52,2,FALSE),0) -> 0 | F181: =IFERROR(VLOOKUP($B181,Ref!$B$3:$F$24,4,FALSE),0) -> 0 | G181: =IFERROR(VLOOKUP($B181,Ref!$B$3:$E$52,3,FALSE),0) -> 0
C182: =IFERROR(VLOOKUP($B182,Ref!$B$3:$C$52,2,FALSE),0) -> 0 | F182: =IFERROR(VLOOKUP($B182,Ref!$B$3:$F$24,4,FALSE),0) -> 0 | G182: =IFERROR(VLOOKUP($B182,Ref!$B$3:$E$52,3,FALSE),0) -> 0
C183: =IFERROR(VLOOKUP($B183,Ref!$B$3:$C$52,2,FALSE),0) -> 0 | F183: =IFERROR(VLOOKUP($B183,Ref!$B$3:$F$24,4,FALSE),0) -> 0 | G183: =IFERROR(VLOOKUP($B183,Ref!$B$3:$E$52,3,FALSE),0) -> 0
C184: =IFERROR(VLOOKUP($B184,Ref!$B$3:$C$52,2,FALSE),0) -> 0 | F184: =IFERROR(VLOOKUP($B184,Ref!$B$3:$F$24,4,FALSE),0) -> 0 | G184: =IFERROR(VLOOKUP($B184,Ref!$B$3:$E$52,3,FALSE),0) -> 0
C185: =IFERROR(VLOOKUP($B185,Ref!$B$3:$C$52,2,FALSE),0) -> 0 | F185: =IFERROR(VLOOKUP($B185,Ref!$B$3:$F$24,4,FALSE),0) -> 0 | G185: =IFERROR(VLOOKUP($B185,Ref!$B$3:$E$52,3,FALSE),0) -> 0
C186: =IFERROR(VLOOKUP($B186,Ref!$B$3:$C$52,2,FALSE),0) -> 0 | F186: =IFERROR(VLOOKUP($B186,Ref!$B$3:$F$24,4,FALSE),0) -> 0 | G186: =IFERROR(VLOOKUP($B186,Ref!$B$3:$E$52,3,FALSE),0) -> 0
C187: =IFERROR(VLOOKUP($B187,Ref!$B$3:$C$52,2,FALSE),0) -> 0 | F187: =IFERROR(VLOOKUP($B187,Ref!$B$3:$F$24,4,FALSE),0) -> 0 | G187: =IFERROR(VLOOKUP($B187,Ref!$B$3:$E$52,3,FALSE),0) -> 0
C188: =IFERROR(VLOOKUP($B188,Ref!$B$3:$C$52,2,FALSE),0) -> 0 | F188: =IFERROR(VLOOKUP($B188,Ref!$B$3:$F$24,4,FALSE),0) -> 0 | G188: =IFERROR(VLOOKUP($B188,Ref!$B$3:$E$52,3,FALSE),0) -> 0
C189: =IFERROR(VLOOKUP($B189,Ref!$B$3:$C$52,2,FALSE),0) -> 0 | F189: =IFERROR(VLOOKUP($B189,Ref!$B$3:$F$24,4,FALSE),0) -> 0 | G189: =IFERROR(VLOOKUP($B189,Ref!$B$3:$E$52,3,FALSE),0) -> 0
C190: =IFERROR(VLOOKUP($B190,Ref!$B$3:$C$52,2,FALSE),0) -> 0 | F190: =IFERROR(VLOOKUP($B190,Ref!$B$3:$F$24,4,FALSE),0) -> 0 | G190: =IFERROR(VLOOKUP($B190,Ref!$B$3:$E$52,3,FALSE),0) -> 0
C191: =IFERROR(VLOOKUP($B191,Ref!$B$3:$C$52,2,FALSE),0) -> 0 | F191: =IFERROR(VLOOKUP($B191,Ref!$B$3:$F$24,4,FALSE),0) -> 0 | G191: =IFERROR(VLOOKUP($B191,Ref!$B$3:$E$52,3,FALSE),0) -> 0
C192: =IFERROR(VLOOKUP($B192,Ref!$B$3:$C$52,2,FALSE),0) -> 0 | F192: =IFERROR(VLOOKUP($B192,Ref!$B$3:$F$24,4,FALSE),0) -> 0 | G192: =IFERROR(VLOOKUP($B192,Ref!$B$3:$E$52,3,FALSE),0) -> 0
C193: =IFERROR(VLOOKUP($B193,Ref!$B$3:$C$52,2,FALSE),0) -> 0 | F193: =IFERROR(VLOOKUP($B193,Ref!$B$3:$F$24,4,FALSE),0) -> 0 | G193: =IFERROR(VLOOKUP($B193,Ref!$B$3:$E$52,3,FALSE),0) -> 0
C194: =IFERROR(VLOOKUP($B194,Ref!$B$3:$C$52,2,FALSE),0) -> 0 | F194: =IFERROR(VLOOKUP($B194,Ref!$B$3:$F$24,4,FALSE),0) -> 0 | G194: =IFERROR(VLOOKUP($B194,Ref!$B$3:$E$52,3,FALSE),0) -> 0
C195: =IFERROR(VLOOKUP($B195,Ref!$B$3:$C$52,2,FALSE),0) -> 0 | F195: =IFERROR(VLOOKUP($B195,Ref!$B$3:$F$24,4,FALSE),0) -> 0 | G195: =IFERROR(VLOOKUP($B195,Ref!$B$3:$E$52,3,FALSE),0) -> 0
C196: =IFERROR(VLOOKUP($B196,Ref!$B$3:$C$52,2,FALSE),0) -> 0 | F196: =IFERROR(VLOOKUP($B196,Ref!$B$3:$F$24,4,FALSE),0) -> 0 | G196: =IFERROR(VLOOKUP($B196,Ref!$B$3:$E$52,3,FALSE),0) -> 0
C197: =IFERROR(VLOOKUP($B197,Ref!$B$3:$C$52,2,FALSE),0) -> 0 | F197: =IFERROR(VLOOKUP($B197,Ref!$B$3:$F$24,4,FALSE),0) -> 0 | G197: =IFERROR(VLOOKUP($B197,Ref!$B$3:$E$52,3,FALSE),0) -> 0
C198: =IFERROR(VLOOKUP($B198,Ref!$B$3:$C$52,2,FALSE),0) -> 0 | F198: =IFERROR(VLOOKUP($B198,Ref!$B$3:$F$24,4,FALSE),0) -> 0 | G198: =IFERROR(VLOOKUP($B198,Ref!$B$3:$E$52,3,FALSE),0) -> 0
C199: =IFERROR(VLOOKUP($B199,Ref!$B$3:$C$52,2,FALSE),0) -> 0 | F199: =IFERROR(VLOOKUP($B199,Ref!$B$3:$F$24,4,FALSE),0) -> 0 | G199: =IFERROR(VLOOKUP($B199,Ref!$B$3:$E$52,3,FALSE),0) -> 0
C200: =IFERROR(VLOOKUP($B200,Ref!$B$3:$C$52,2,FALSE),0) -> 0 | F200: =IFERROR(VLOOKUP($B200,Ref!$B$3:$F$24,4,FALSE),0) -> 0 | G200: =IFERROR(VLOOKUP($B200,Ref!$B$3:$E$52,3,FALSE),0) -> 0
C201: =IFERROR(VLOOKUP($B201,Ref!$B$3:$C$52,2,FALSE),0) -> 0 | F201: =IFERROR(VLOOKUP($B201,Ref!$B$3:$F$24,4,FALSE),0) -> 0 | G201: =IFERROR(VLOOKUP($B201,Ref!$B$3:$E$52,3,FALSE),0) -> 0
... 299 more rows

Sheet 7-Síntese da auditoria
A1: Síntese da auditoria
C2: Totais dos subcapítulos específicos | F2: Subcapítulos específicos de elementos/materiais e RCD reportados | AA2: Material | AB2: Nature of waste | AC2: LoW Code | AD2: Quantity | AE2: Unit | AF2: Conversion factor | AG2: Estimated quantity (kg) | AH2: Best treatment recommended (auditor) | AI2: Probable treatment (waste manager) | AJ2: Precautions to take
C3: Massa (kg) | D3: Massa por unidade de área de demolição (kg / m2) | E3: Fração | F3: Betão, tijolo, ladrilhos, cerâmica | G3: Madeira | H3: Vidro | I3: Plástico | J3: Madeira, vidro, plástico perigosos | K3: Misturas betuminosas | L3: Metais | M3: Materiais de isolamento | N3: Gesso | O3: Misturas | AA3: Material | AB3: Natureza do resíduos | AC3: Código LER | AD3: Quantidade | AE3: Unidade | AF3: Fator de conversão | AG3: Quantidade estimada (kg) | AH3: Melhor tratamento recomendado (auditor) | AI3: Tratamento provável (diracao de resíduos) | AJ3: Precauções a tomar
A4: Reutilização de elementos/materiais | C4: =SUM(F4:O4) -> 1500 | D4: =C4/$E$13 -> 10 | E4: =C4/$C$12 -> 0.09466708741 | F4: =SUMIFS(AG4:AG537,AC4:AC537,"*17 01*",AI4:AI537,"*reutilização*") -> 1500 | G4: =SUMIFS(AG4:AG537,AC4:AC537,"*17 02 01*",AI4:AI537,"*reutilização*") -> 0 | H4: =SUMIFS(AG4:AG537,AC4:AC537,"*17 02 02*",AI4:AI537,"*reutilização*") -> 0 | I4: =SUMIFS(AG4:AG537,AC4:AC537,"*17 02 03*",AI4:AI537,"*reutilização*") -> 0 | J4: =SUMIFS(AG4:AG537,AC4:AC537,"*17 02 04*",AI4:AI537,"*reutilização*") -> 0 | K4: =SUMIFS(AG4:AG537,AC4:AC537,"*17 03*",AI4:AI537,"*reutilização*") -> 0 | L4: =SUMIFS(AG4:AG537,AC4:AC537,"*17 04*",AI4:AI537,"*reutilização*") -> 0 | M4: =SUMIFS(AG4:AG537,AC4:AC537,"*17 06*",AI4:AI537,"*reutilização*") -> 0 | N4: =SUMIFS(AG4:AG537,AC4:AC537,"*17 08*",AI4:AI537,"*reutilização*") -> 0 | O4: =SUMIFS(AG4:AG537,AC4:AC537,"*17 09*",AI4:AI537,"*reutilização*") -> 0 | AA4: =' 6-Inventário de recursos'!B7 -> betão | AB4: =' 6-Inventário de recursos'!D7 -> Inerte/Não perigoso | AC4: =' 6-Inventário de recursos'!C7 -> 17 01 01 | AD4: =' 6-Inventário de recursos'!E7 -> 5 | AE4: =' 6-Inventário de recursos'!F7 -> m3 | AF4: =' 6-Inventário de recursos'!G7 -> 2300 | AG4: =' 6-Inventário de recursos'!H7 -> 11500 | AH4: =' 6-Inventário de recursos'!L7 -> Reciclagem na obra | AI4: =' 6-Inventário de recursos'!L7 -> Reciclagem na obra | AJ4: =' 6-Inventário de recursos'!M7 -> 0
A5: Preparação reutilização de elemento/materiais | C5: 2500 | D5: 16.66666667 | E5: 0.157778479 | F5: =SUMIFS(AG4:AG537,AC4:AC537,"*17 01*",AI4:AI537,"*preparação*") -> 0 | G5: =SUMIFS(AG4:AG537,AC4:AC537,"*17 02 01*",AI4:AI537,"*preparação*") -> 0 | H5: =SUMIFS(AG4:AG537,AC4:AC537,"*17 02 02*",AI4:AI537,"*preparação*") -> 2500 | I5: =SUMIFS(AG4:AG537,AC4:AC537,"*17 02 03*",AI4:AI537,"*preparação*") -> 0 | J5: =SUMIFS(AG4:AG537,AC4:AC537,"*17 02 04*",AI4:AI537,"*preparação*") -> 0 | K5: =SUMIFS(AG4:AG537,AC4:AC537,"*17 03*",AI4:AI537,"*preparação*") -> 0 | L5: =SUMIFS(AG4:AG537,AC4:AC537,"*17 04*",AI4:AI537,"*preparação*") -> 0 | M5: =SUMIFS(AG4:AG537,AC4:AC537,"*17 06*",AI4:AI537,"*preparação*") -> 0 | N5: =SUMIFS(AG4:AG537,AC4:AC537,"*17 08*",AI4:AI537,"*preparação*") -> 0 | O5: =SUMIFS(AG4:AG537,AC4:AC537,"*17 09*",AI4:AI537,"*preparação*") -> 0 | AA5: =' 6-Inventário de recursos'!B8 -> vidro | AB5: =' 6-Inventário de recursos'!D8 -> Inerte/Não perigoso | AC5: =' 6-Inventário de recursos'!C8 -> 17 02 02 | AD5: =' 6-Inventário de recursos'!E8 -> 1 | AE5: =' 6-Inventário de recursos'!F8 -> m3 | AF5: =' 6-Inventário de recursos'!G8 -> 2500 | AG5: =' 6-Inventário de recursos'!H8 -> 2500 | AH5: =' 6-Inventário de recursos'!L8 -> Preparação para reutilizar elemento/material na obra | AI5: =' 6-Inventário de recursos'!L8 -> Preparação para reutilizar elemento/material na obra | AJ5: =' 6-Inventário de recursos'!M8 -> 0
A6: Reciclagem | C6: 11500 | D6: 76.66666667 | E6: 0.7257810035 | F6: =SUMIFS(AG4:AG537,AC4:AC537,"*17 01*",AI4:AI537,"*Reciclagem*") -> 11500 | G6: =SUMIFS(AG4:AG537,AC4:AC537,"*17 02 01*",AI4:AI537,"*Reciclagem*") -> 0 | H6: =SUMIFS(AG4:AG537,AC4:AC537,"*17 02 02*",AI4:AI537,"*Reciclagem*") -> 0 | I6: =SUMIFS(AG4:AG537,AC4:AC537,"*17 02 03*",AI4:AI537,"*Reciclagem*") -> 0 | J6: =SUMIFS(AG4:AG537,AC4:AC537,"*17 02 04*",AI4:AI537,"*Reciclagem*") -> 0 | K6: =SUMIFS(AG4:AG537,AC4:AC537,"*17 03*",AI4:AI537,"*Reciclagem*") -> 0 | L6: =SUMIFS(AG4:AG537,AC4:AC537,"*17 04*",AI4:AI537,"*Reciclagem*") -> 0 | M6: =SUMIFS(AG4:AG537,AC4:AC537,"*17 06*",AI4:AI537,"*Reciclagem*") -> 0 | N6: =SUMIFS(AG4:AG537,AC4:AC537,"*17 08*",AI4:AI537,"*Reciclagem*") -> 0 | O6: =SUMIFS(AG4:AG537,AC4:AC537,"*17 09*",AI4:AI537,"*Reciclagem*") -> 0 | AA6: =' 6-Inventário de recursos'!B9 -> madeira | AB6: =' 6-Inventário de recursos'!D9 -> Inerte/Não perigoso | AC6: =' 6-Inventário de recursos'!C9 -> 17 02 01 | AD6: =' 6-Inventário de recursos'!E9 -> 300 | AE6: =' 6-Inventário de recursos'!F9 -> kg | AF6: =' 6-Inventário de recursos'!G9 -> 700 | AG6: =' 6-Inventário de recursos'!H9 -> 300 | AH6: =' 6-Inventário de recursos'!L9 -> Recuperação no local como material enchimento | AI6: =' 6-Inventário de recursos'!L9 -> Recuperação no local como material enchimento | AJ6: =' 6-Inventário de recursos'!M9 -> 0
A7: Valorização de material (enchimento) | C7: 300 | D7: 2 | E7: 0.01893341748 | F7: =SUMIFS(AG4:AG537,AC4:AC537,"*17 01*",AI4:AI537,"*enchimento*") -> 0 | G7: =SUMIFS(AG4:AG537,AC4:AC537,"*17 02 01*",AI4:AI537,"*enchimento*") -> 300 | H7: =SUMIFS(AG4:AG537,AC4:AC537,"*17 02 02*",AI4:AI537,"*enchimento*") -> 0 | I7: =SUMIFS(AG4:AG537,AC4:AC537,"*17 02 03*",AI4:AI537,"*enchimento*") -> 0 | J7: =SUMIFS(AG4:AG537,AC4:AC537,"*17 02 04*",AI4:AI537,"*enchimento*") -> 0 | K7: =SUMIFS(AG4:AG537,AC4:AC537,"*17 03*",AI4:AI537,"*enchimento*") -> 0 | L7: =SUMIFS(AG4:AG537,AC4:AC537,"*17 04*",AI4:AI537,"*enchimento*") -> 0 | M7: =SUMIFS(AG4:AG537,AC4:AC537,"*17 06*",AI4:AI537,"*enchimento*") -> 0 | N7: =SUMIFS(AG4:AG537,AC4:AC537,"*17 08*",AI4:AI537,"*enchimento*") -> 0 | O7: =SUMIFS(AG4:AG537,AC4:AC537,"*17 09*",AI4:AI537,"*enchimento*") -> 0 | AA7: =' 6-Inventário de recursos'!B10 -> ladrilhos, telhas e materiais cerâmicos | AB7: =' 6-Inventário de recursos'!D10 -> Inerte/Não perigoso | AC7: =' 6-Inventário de recursos'!C10 -> 17 01 03 | AD7: =' 6-Inventário de recursos'!E10 -> 1500 | AE7: =' 6-Inventário de recursos'!F10 -> kg | AF7: =' 6-Inventário de recursos'!G10 -> 830.6 | AG7: =' 6-Inventário de recursos'!H10 -> 1500 | AH7: =' 6-Inventário de recursos'!L10 -> Reutilização do elemento/material fora da obra | AI7: =' 6-Inventário de recursos'!L10 -> Reutilização do elemento/material fora da obra | AJ7: =' 6-Inventário de recursos'!M10 -> 0
A8: Recuperação de energia | C8: 0 | D8: =C8/$E$13 -> 0 | E8: 0 | F8: =SUMIFS(AG4:AG537,AC4:AC537,"*17 01*",AI4:AI537,"*energia*") -> 0 | G8: =SUMIFS(AG4:AG537,AC4:AC537,"*17 02 01*",AI4:AI537,"*energia*") -> 0 | H8: =SUMIFS(AG4:AG537,AC4:AC537,"*17 02 02*",AI4:AI537,"*energia*") -> 0 | I8: =SUMIFS(AG4:AG537,AC4:AC537,"*17 02 03*",AI4:AI537,"*energia*") -> 0 | J8: =SUMIFS(AG4:AG537,AC4:AC537,"*17 02 04*",AI4:AI537,"*energia*") -> 0 | K8: =SUMIFS(AG4:AG537,AC4:AC537,"*17 03*",AI4:AI537,"*energia*") -> 0 | L8: =SUMIFS(AG4:AG537,AC4:AC537,"*17 04*",AI4:AI537,"*energia*") -> 0 | M8: =SUMIFS(AG4:AG537,AC4:AC537,"*17 06*",AI4:AI537,"*energia*") -> 0 | N8: =SUMIFS(AG4:AG537,AC4:AC537,"*17 08*",AI4:AI537,"*energia*") -> 0 | O8: =SUMIFS(AG4:AG537,AC4:AC537,"*17 09*",AI4:AI537,"*energia*") -> 0 | AA8: =' 6-Inventário de recursos'!B11 -> vidro, plástico e madeira contendo ou contaminados com substâncias perigosas | AB8: =' 6-Inventário de recursos'!D11 -> Perigoso | AC8: =' 6-Inventário de recursos'!C11 -> 17 02 04* | AD8: =' 6-Inventário de recursos'!E11 -> 45 | AE8: =' 6-Inventário de recursos'!F11 -> kg | AF8: =' 6-Inventário de recursos'!G11 -> 0 | AG8: =' 6-Inventário de recursos'!H11 -> 45 | AH8: =' 6-Inventário de recursos'!L11 -> Aterro de resíduos perigosos | AI8: =' 6-Inventário de recursos'!L11 -> Aterro de resíduos perigosos | AJ8: =' 6-Inventário de recursos'!M11 -> 0
A9: Eliminação | B9: Total | C9: 45 | D9: 0.3 | E9: 0.002840012622 | F9: =SUMIFS(AG4:AG537,AC4:AC537,"*17 01*",AI4:AI537,"*incineração*")+SUMIFS(AG4:AG537,AC4:AC537,"*17 01*",AI4:AI537,"*Aterro*") -> 0 | G9: =SUMIFS(AG4:AG537,AC4:AC537,"*17 02 01*",AI4:AI537,"*incineração*")+SUMIFS(AG4:AG537,AC4:AC537,"*17 02 01*",AI4:AI537,"*Aterro*") -> 0 | H9: =SUMIFS(AG4:AG537,AC4:AC537,"*17 02 02*",AI4:AI537,"*incineração*")+SUMIFS(AG4:AG537,AC4:AC537,"*17 02 02*",AI4:AI537,"*Aterro*") -> 0 | I9: =SUMIFS(AG4:AG537,AC4:AC537,"*17 02 03*",AI4:AI537,"*incineração*")+SUMIFS(AG4:AG537,AC4:AC537,"*17 02 03*",AI4:AI537,"*Aterro*") -> 0 | J9: =SUMIFS(AG4:AG537,AC4:AC537,"*17 02 04*",AI4:AI537,"*incineração*")+SUMIFS(AG4:AG537,AC4:AC537,"*17 02 04*",AI4:AI537,"*Aterro*") -> 45 | K9: =SUMIFS(AG4:AG537,AC4:AC537,"*17 03*",AI4:AI537,"*incineração*")+SUMIFS(AG4:AG537,AC4:AC537,"*17 03*",AI4:AI537,"*Aterro*") -> 0 | L9: =SUMIFS(AG4:AG537,AC4:AC537,"*17 04*",AI4:AI537,"*incineração*")+SUMIFS(AG4:AG537,AC4:AC537,"*17 04*",AI4:AI537,"*Aterro*") -> 0 | M9: =SUMIFS(AG4:AG537,AC4:AC537,"*17 06*",AI4:AI537,"*incineração*")+SUMIFS(AG4:AG537,AC4:AC537,"*17 06*",AI4:AI537,"*Aterro*") -> 0 | N9: =SUMIFS(AG4:AG537,AC4:AC537,"*17 08*",AI4:AI537,"*incineração*")+SUMIFS(AG4:AG537,AC4:AC537,"*17 08*",AI4:AI537,"*Aterro*") -> 0 | O9: =SUMIFS(AG4:AG537,AC4:AC537,"*17 09*",AI4:AI537,"*incineração*")+SUMIFS(AG4:AG537,AC4:AC537,"*17 09*",AI4:AI537,"*Aterro*") -> 0 | AA9: =' 6-Inventário de recursos'!B12 -> lâmpadas fluorescentes e outros resíduos contendo mercúrio | AB9: =' 6-Inventário de recursos'!D12 -> Perigoso | AC9: =' 6-Inventário de recursos'!C12 -> 20 01 21* | AD9: =' 6-Inventário de recursos'!E12 -> 10 | AE9: =' 6-Inventário de recursos'!F12 -> unidade | AF9: =' 6-Inventário de recursos'!G12 -> 0 | AG9: =' 6-Inventário de recursos'!H12 -> 4 | AH9: =' 6-Inventário de recursos'!L12 -> Entrega em instalação de gestão de REEE | AI9: =' 6-Inventário de recursos'!L12 -> Entrega em instalação de gestão de REEE | AJ9: =' 6-Inventário de recursos'!M12 -> 0
B10: Não perigoso / inerte | C10: 0 | D10: 0 | E10: 0 | F10: =SUMIFS(AG4:AG537,AC4:AC537,"*17 01*",AI4:AI537,"*incineração*",AB4:AB537,"*Inerte/Não perigoso*")+SUMIFS(AG4:AG537,AC4:AC537,"*17 01*",AI4:AI537,"*Aterro*",AB4:AB537,"*Inerte/Não perigoso*") -> 0 | G10: =SUMIFS(AG4:AG537,AC4:AC537,"*17 02 01*",AI4:AI537,"*incineração*",AB4:AB537,"*Inerte/Não perigoso*")+SUMIFS(AG4:AG537,AC4:AC537,"*17 02 01*",AI4:AI537,"*aterro*",AB4:AB537,"*Inerte/Não perigoso*") -> 0 | H10: =SUMIFS(AG4:AG537,AC4:AC537,"*17 02 02*",AI4:AI537,"*incineração*",AB4:AB537,"*Inerte/Não perigoso*")+SUMIFS(AG4:AG537,AC4:AC537,"*17 02 02*",AI4:AI537,"*Aterro*",AB4:AB537,"*Inert/Não perigoso*") -> 0 | I10: =SUMIFS(AG4:AG537,AC4:AC537,"*17 02 03*",AI4:AI537,"*incineração*",AB4:AB537,"*Inerte/Não perigoso*")+SUMIFS(AG4:AG537,AC4:AC537,"*17 02 03*",AI4:AI537,"*Aterro*",AB4:AB537,"*Inerte/Não perigoso*") -> 0 | J10: =SUMIFS(AG4:AG537,AC4:AC537,"*17 02 04*",AI4:AI537,"*incineração*",AB4:AB537,"*Inerte/Não perigoso*")+SUMIFS(AG4:AG537,AC4:AC537,"*17 02 04*",AI4:AI537,"*Aterro*",AB4:AB537,"*Inerte/Não perigoso*") -> 0 | K10: =SUMIFS(AG4:AG537,AC4:AC537,"*17 03*",AI4:AI537,"*incineração*",AB4:AB537,"*Inerte/Não perigoso*")+SUMIFS(AG4:AG537,AC4:AC537,"*17 03*",AI4:AI537,"*Aterro*",AB4:AB537,"*Inerte/Não perigoso*") -> 0 | L10: =SUMIFS(AG4:AG537,AC4:AC537,"*17 04*",AI4:AI537,"*incineração*",AB4:AB537,"*Inerte/Não perigoso*")+SUMIFS(AG4:AG537,AC4:AC537,"*17 04*",AI4:AI537,"*Aterro*",AB4:AB537,"*Inerte/Não perigoso*") -> 0 | M10: =SUMIFS(AG4:AG537,AC4:AC537,"*17 06*",AI4:AI537,"*incineração*",AB4:AB537,"*Inerte/Não perigoso*")+SUMIFS(AG4:AG537,AC4:AC537,"*17 06*",AI4:AI537,"*Aterro*",AB4:AB537,"*Inerte/Não perigoso*") -> 0 | N10: =SUMIFS(AG4:AG537,AC4:AC537,"*17 08*",AI4:AI537,"*incineração*",AB4:AB537,"*Inerte/Não perigoso*")+SUMIFS(AG4:AG537,AC4:AC537,"*17 08*",AI4:AI537,"*Aterro*",AB4:AB537,"*Inerte/Não perigoso*") -> 0 | O10: =SUMIFS(AG4:AG537,AC4:AC537,"*17 09*",AI4:AI537,"*incineração*",AB4:AB537,"*Inerte/Não perigoso*")+SUMIFS(AG4:AG537,AC4:AC537,"*17 09*",AI4:AI537,"*Aterro*",AB4:AB537,"*Inerte/Não perigoso*") -> 0 | AA10: =' 6-Inventário de recursos'!B13 -> 0 | AB10: =' 6-Inventário de recursos'!D13 -> 0 | AC10: =' 6-Inventário de recursos'!C13 -> 0 | AD10: =' 6-Inventário de recursos'!E13 -> 0 | AE10: =' 6-Inventário de recursos'!F13 -> 0 | AF10: =' 6-Inventário de recursos'!G13 -> 0 | AG10: =' 6-Inventário de recursos'!H13 -> 0 | AH10: =' 6-Inventário de recursos'!L13 -> 0 | AI10: =' 6-Inventário de recursos'!L13 -> 0 | AJ10: =' 6-Inventário de recursos'!M13 -> 0
B11: Perigoso | C11: 45 | D11: 0.3 | E11: 0.002840012622 | F11: =SUMIFS(AG4:AG537,AC4:AC537,"*17 01*",AI4:AI537,"*incineração*",AB4:AB537,"Perigoso")+SUMIFS(AG4:AG537,AC4:AC537,"*17 01*",AI4:AI537,"*Aterro*",AB4:AB537,"Perigoso") -> 0 | G11: =SUMIFS(AG4:AG537,AC4:AC537,"*17 02 01*",AI4:AI537,"*incineração*",AB4:AB537,"Perigoso")+SUMIFS(AG4:AG537,AC4:AC537,"*17 02 01*",AI4:AI537,"*Aterro*",AB4:AB537,"Perigoso") -> 0 | H11: =SUMIFS(AG4:AG537,AC4:AC537,"*17 02 02*",AI4:AI537,"*incineração*",AB4:AB537,"Perigoso")+SUMIFS(AG4:AG537,AC4:AC537,"*17 02 02*",AI4:AI537,"*Aterro*",AB4:AB537,"Perigoso") -> 0 | I11: =SUMIFS(AG4:AG537,AC4:AC537,"*17 02 03*",AI4:AI537,"*incineração*",AB4:AB537,"Perigoso")+SUMIFS(AG4:AG537,AC4:AC537,"*17 02 03*",AI4:AI537,"*Aterro*",AB4:AB537,"Perigoso") -> 0 | J11: =SUMIFS(AG4:AG537,AC4:AC537,"*17 02 04*",AI4:AI537,"*incineração*",AB4:AB537,"Perigoso")+SUMIFS(AG4:AG537,AC4:AC537,"*17 02 04*",AI4:AI537,"*Aterro*",AB4:AB537,"Perigoso") -> 45 | K11: =SUMIFS(AG4:AG537,AC4:AC537,"*17 03*",AI4:AI537,"*incineração*",AB4:AB537,"Perigoso")+SUMIFS(AG4:AG537,AC4:AC537,"*17 03*",AI4:AI537,"*Aterro*",AB4:AB537,"Perigoso") -> 0 | L11: =SUMIFS(AG4:AG537,AC4:AC537,"*17 04*",AI4:AI537,"*incineração*",AB4:AB537,"Perigoso")+SUMIFS(AG4:AG537,AC4:AC537,"*17 04*",AI4:AI537,"*Aterro*",AB4:AB537,"Perigoso") -> 0 | M11: =SUMIFS(AG4:AG537,AC4:AC537,"*17 06*",AI4:AI537,"*incineração*",AB4:AB537,"Perigoso")+SUMIFS(AG4:AG537,AC4:AC537,"*17 06*",AI4:AI537,"*Aterro*",AB4:AB537,"Perigoso") -> 0 | N11: =SUMIFS(AG4:AG537,AC4:AC537,"*17 08*",AI4:AI537,"*incineração*",AB4:AB537,"Perigoso")+SUMIFS(AG4:AG537,AC4:AC537,"*17 08*",AI4:AI537,"*Aterro*",AB4:AB537,"Perigoso") -> 0 | O11: =SUMIFS(AG4:AG537,AC4:AC537,"*17 09*",AI4:AI537,"*incineração*",AB4:AB537,"Perigoso")+SUMIFS(AG4:AG537,AC4:AC537,"*17 09*",AI4:AI537,"*Aterro*",AB4:AB537,"Perigoso") -> 0 | AA11: =' 6-Inventário de recursos'!B14 -> 0 | AB11: =' 6-Inventário de recursos'!D14 -> 0 | AC11: =' 6-Inventário de recursos'!C14 -> 0 | AD11: =' 6-Inventário de recursos'!E14 -> 0 | AE11: =' 6-Inventário de recursos'!F14 -> 0 | AF11: =' 6-Inventário de recursos'!G14 -> 0 | AG11: =' 6-Inventário de recursos'!H14 -> 0 | AH11: =' 6-Inventário de recursos'!L14 -> 0 | AI11: =' 6-Inventário de recursos'!L14 -> 0 | AJ11: =' 6-Inventário de recursos'!M14 -> 0
A12: Total | C12: =SUM(C4:C9) -> 15845 | D12: =SUM(D4:D9) -> 105.6333333 | E12: =SUM(E4:E9) -> 1 | F12: =SUM(F4:F9) -> 13000 | G12: 300 | H12: 2500 | I12: 0 | J12: 45 | K12: 0 | L12: 0 | M12: 0 | N12: 0 | O12: 0 | AA12: =' 6-Inventário de recursos'!B15 -> 0 | AB12: =' 6-Inventário de recursos'!D15 -> 0 | AC12: =' 6-Inventário de recursos'!C15 -> 0 | AD12: =' 6-Inventário de recursos'!E15 -> 0 | AE12: =' 6-Inventário de recursos'!F15 -> 0 | AF12: =' 6-Inventário de recursos'!G15 -> 0 | AG12: =' 6-Inventário de recursos'!H15 -> 0 | AH12: =' 6-Inventário de recursos'!L15 -> 0 | AI12: =' 6-Inventário de recursos'!L15 -> 0 | AJ12: =' 6-Inventário de recursos'!M15 -> 0
A13: Área de demolição(m2) | E13: ='2-Detalhes do projeto'!C9 -> 150 | F13: Taxa de reutilização | L13: =E4+E5 -> 0.2524455664 | M13: =E4+E5 -> 0.2524455664 | N13: =E4+E5 -> 0.2524455664 | AA13: =' 6-Inventário de recursos'!B16 -> 0 | AB13: =' 6-Inventário de recursos'!D16 -> 0 | AC13: =' 6-Inventário de recursos'!C16 -> 0 | AD13: =' 6-Inventário de recursos'!E16 -> 0 | AE13: =' 6-Inventário de recursos'!F16 -> 0 | AF13: =' 6-Inventário de recursos'!G16 -> 0 | AG13: =' 6-Inventário de recursos'!H16 -> 0 | AH13: =' 6-Inventário de recursos'!L16 -> 0 | AI13: =' 6-Inventário de recursos'!L16 -> 0 | AJ13: =' 6-Inventário de recursos'!M16 -> 0
A14: Massa de RCD por área de demolição (kg/m2) | E14: =(C5+C6+C7+C8+C9)/E13 -> 95.63333333 | AA14: =' 6-Inventário de recursos'!B17 -> 0 | AB14: =' 6-Inventário de recursos'!D17 -> 0 | AC14: =' 6-Inventário de recursos'!C17 -> 0 | AD14: =' 6-Inventário de recursos'!E17 -> 0 | AE14: =' 6-Inventário de recursos'!F17 -> 0 | AF14: =' 6-Inventário de recursos'!G17 -> 0 | AG14: =' 6-Inventário de recursos'!H17 -> 0 | AH14: =' 6-Inventário de recursos'!L17 -> 0 | AI14: =' 6-Inventário de recursos'!L17 -> 0 | AJ14: =' 6-Inventário de recursos'!M17 -> 0
AA15: =' 6-Inventário de recursos'!B18 -> 0 | AB15: =' 6-Inventário de recursos'!D18 -> 0 | AC15: =' 6-Inventário de recursos'!C18 -> 0 | AD15: =' 6-Inventário de recursos'!E18 -> 0 | AE15: =' 6-Inventário de recursos'!F18 -> 0 | AF15: =' 6-Inventário de recursos'!G18 -> 0 | AG15: =' 6-Inventário de recursos'!H18 -> 0 | AH15: =' 6-Inventário de recursos'!L18 -> 0 | AI15: =' 6-Inventário de recursos'!L18 -> 0 | AJ15: =' 6-Inventário de recursos'!M18 -> 0
AA16: =' 6-Inventário de recursos'!B19 -> 0 | AB16: =' 6-Inventário de recursos'!D19 -> 0 | AC16: =' 6-Inventário de recursos'!C19 -> 0 | AD16: =' 6-Inventário de recursos'!E19 -> 0 | AE16: =' 6-Inventário de recursos'!F19 -> 0 | AF16: =' 6-Inventário de recursos'!G19 -> 0 | AG16: =' 6-Inventário de recursos'!H19 -> 0 | AH16: =' 6-Inventário de recursos'!L19 -> 0 | AI16: =' 6-Inventário de recursos'!L19 -> 0 | AJ16: =' 6-Inventário de recursos'!M19 -> 0
AA17: =' 6-Inventário de recursos'!B20 -> 0 | AB17: =' 6-Inventário de recursos'!D20 -> 0 | AC17: =' 6-Inventário de recursos'!C20 -> 0 | AD17: =' 6-Inventário de recursos'!E20 -> 0 | AE17: =' 6-Inventário de recursos'!F20 -> 0 | AF17: =' 6-Inventário de recursos'!G20 -> 0 | AG17: =' 6-Inventário de recursos'!H20 -> 0 | AH17: =' 6-Inventário de recursos'!L20 -> 0 | AI17: =' 6-Inventário de recursos'!L20 -> 0 | AJ17: =' 6-Inventário de recursos'!M20 -> 0
AA18: =' 6-Inventário de recursos'!B21 -> 0 | AB18: =' 6-Inventário de recursos'!D21 -> 0 | AC18: =' 6-Inventário de recursos'!C21 -> 0 | AD18: =' 6-Inventário de recursos'!E21 -> 0 | AE18: =' 6-Inventário de recursos'!F21 -> 0 | AF18: =' 6-Inventário de recursos'!G21 -> 0 | AG18: =' 6-Inventário de recursos'!H21 -> 0 | AH18: =' 6-Inventário de recursos'!L21 -> 0 | AI18: =' 6-Inventário de recursos'!L21 -> 0 | AJ18: =' 6-Inventário de recursos'!M21 -> 0
AA19: =' 6-Inventário de recursos'!B22 -> 0 | AB19: =' 6-Inventário de recursos'!D22 -> 0 | AC19: =' 6-Inventário de recursos'!C22 -> 0 | AD19: =' 6-Inventário de recursos'!E22 -> 0 | AE19: =' 6-Inventário de recursos'!F22 -> 0 | AF19: =' 6-Inventário de recursos'!G22 -> 0 | AG19: =' 6-Inventário de recursos'!H22 -> 0 | AH19: =' 6-Inventário de recursos'!L22 -> 0 | AI19: =' 6-Inventário de recursos'!L22 -> 0 | AJ19: =' 6-Inventário de recursos'!M22 -> 0
AA20: =' 6-Inventário de recursos'!B23 -> 0 | AB20: =' 6-Inventário de recursos'!D23 -> 0 | AC20: =' 6-Inventário de recursos'!C23 -> 0 | AD20: =' 6-Inventário de recursos'!E23 -> 0 | AE20: =' 6-Inventário de recursos'!F23 -> 0 | AF20: =' 6-Inventário de recursos'!G23 -> 0 | AG20: =' 6-Inventário de recursos'!H23 -> 0 | AH20: =' 6-Inventário de recursos'!L23 -> 0 | AI20: =' 6-Inventário de recursos'!L23 -> 0 | AJ20: =' 6-Inventário de recursos'!M23 -> 0
AA21: =' 6-Inventário de recursos'!B24 -> 0 | AB21: =' 6-Inventário de recursos'!D24 -> 0 | AC21: =' 6-Inventário de recursos'!C24 -> 0 | AD21: =' 6-Inventário de recursos'!E24 -> 0 | AE21: =' 6-Inventário de recursos'!F24 -> 0 | AF21: =' 6-Inventário de recursos'!G24 -> 0 | AG21: =' 6-Inventário de recursos'!H24 -> 0 | AH21: =' 6-Inventário de recursos'!L24 -> 0 | AI21: =' 6-Inventário de recursos'!L24 -> 0 | AJ21: =' 6-Inventário de recursos'!M24 -> 0
AA22: =' 6-Inventário de recursos'!B25 -> 0 | AB22: =' 6-Inventário de recursos'!D25 -> 0 | AC22: =' 6-Inventário de recursos'!C25 -> 0 | AD22: =' 6-Inventário de recursos'!E25 -> 0 | AE22: =' 6-Inventário de recursos'!F25 -> 0 | AF22: =' 6-Inventário de recursos'!G25 -> 0 | AG22: =' 6-Inventário de recursos'!H25 -> 0 | AH22: =' 6-Inventário de recursos'!L25 -> 0 | AI22: =' 6-Inventário de recursos'!L25 -> 0 | AJ22: =' 6-Inventário de recursos'!M25 -> 0
AA23: =' 6-Inventário de recursos'!B26 -> 0 | AB23: =' 6-Inventário de recursos'!D26 -> 0 | AC23: =' 6-Inventário de recursos'!C26 -> 0 | AD23: =' 6-Inventário de recursos'!E26 -> 0 | AE23: =' 6-Inventário de recursos'!F26 -> 0 | AF23: =' 6-Inventário de recursos'!G26 -> 0 | AG23: =' 6-Inventário de recursos'!H26 -> 0 | AH23: =' 6-Inventário de recursos'!L26 -> 0 | AI23: =' 6-Inventário de recursos'!L26 -> 0 | AJ23: =' 6-Inventário de recursos'!M26 -> 0
AA24: =' 6-Inventário de recursos'!B27 -> 0 | AB24: =' 6-Inventário de recursos'!D27 -> 0 | AC24: =' 6-Inventário de recursos'!C27 -> 0 | AD24: =' 6-Inventário de recursos'!E27 -> 0 | AE24: =' 6-Inventário de recursos'!F27 -> 0 | AF24: =' 6-Inventário de recursos'!G27 -> 0 | AG24: =' 6-Inventário de recursos'!H27 -> 0 | AH24: =' 6-Inventário de recursos'!L27 -> 0 | AI24: =' 6-Inventário de recursos'!L27 -> 0 | AJ24: =' 6-Inventário de recursos'!M27 -> 0
AA25: =' 6-Inventário de recursos'!B28 -> 0 | AB25: =' 6-Inventário de recursos'!D28 -> 0 | AC25: =' 6-Inventário de recursos'!C28 -> 0 | AD25: =' 6-Inventário de recursos'!E28 -> 0 | AE25: =' 6-Inventário de recursos'!F28 -> 0 | AF25: =' 6-Inventário de recursos'!G28 -> 0 | AG25: =' 6-Inventário de recursos'!H28 -> 0 | AH25: =' 6-Inventário de recursos'!L28 -> 0 | AI25: =' 6-Inventário de recursos'!L28 -> 0 | AJ25: =' 6-Inventário de recursos'!M28 -> 0
AA26: =' 6-Inventário de recursos'!B501 -> 0 | AB26: =' 6-Inventário de recursos'!D501 -> 0 | AC26: =' 6-Inventário de recursos'!C501 -> 0 | AD26: =' 6-Inventário de recursos'!E501 -> 0 | AE26: =' 6-Inventário de recursos'!F501 -> 0 | AF26: =' 6-Inventário de recursos'!G501 -> 0 | AG26: =' 6-Inventário de recursos'!H501 -> 0 | AH26: =' 6-Inventário de recursos'!L29 -> 0 | AI26: =' 6-Inventário de recursos'!L501 -> 0 | AJ26: =' 6-Inventário de recursos'!M501 -> 0
AA27: =' 6-Inventário de recursos'!B502 -> 0 | AB27: =' 6-Inventário de recursos'!D502 -> 0 | AC27: =' 6-Inventário de recursos'!C502 -> 0 | AD27: =' 6-Inventário de recursos'!E502 -> 0 | AE27: =' 6-Inventário de recursos'!F502 -> 0 | AF27: =' 6-Inventário de recursos'!G502 -> 0 | AG27: =' 6-Inventário de recursos'!H502 -> 0 | AH27: =' 6-Inventário de recursos'!L30 -> 0 | AI27: =' 6-Inventário de recursos'!L502 -> 0 | AJ27: =' 6-Inventário de recursos'!M502 -> 0
AA28: =' 6-Inventário de recursos'!B503 -> 0 | AB28: =' 6-Inventário de recursos'!D503 -> 0 | AC28: =' 6-Inventário de recursos'!C503 -> 0 | AD28: =' 6-Inventário de recursos'!E503 -> 0 | AE28: =' 6-Inventário de recursos'!F503 -> 0 | AF28: =' 6-Inventário de recursos'!G503 -> 0 | AG28: =' 6-Inventário de recursos'!H503 -> 0 | AH28: =' 6-Inventário de recursos'!L31 -> 0 | AI28: =' 6-Inventário de recursos'!L503 -> 0 | AJ28: =' 6-Inventário de recursos'!M503 -> 0
AA29: =' 6-Inventário de recursos'!B504 -> 0 | AB29: =' 6-Inventário de recursos'!D504 -> 0 | AC29: =' 6-Inventário de recursos'!C504 -> 0 | AD29: =' 6-Inventário de recursos'!E504 -> 0 | AE29: =' 6-Inventário de recursos'!F504 -> 0 | AF29: =' 6-Inventário de recursos'!G504 -> 0 | AG29: =' 6-Inventário de recursos'!H504 -> 0 | AH29: =' 6-Inventário de recursos'!L32 -> 0 | AI29: =' 6-Inventário de recursos'!L504 -> 0 | AJ29: =' 6-Inventário de recursos'!M504 -> 0
I30: Total de resíduos por códigos LER | AA30: =' 6-Inventário de recursos'!B505 -> 0 | AB30: =' 6-Inventário de recursos'!D505 -> 0 | AC30: =' 6-Inventário de recursos'!C505 -> 0 | AD30: =' 6-Inventário de recursos'!E505 -> 0 | AE30: =' 6-Inventário de recursos'!F505 -> 0 | AF30: =' 6-Inventário de recursos'!G505 -> 0 | AG30: =' 6-Inventário de recursos'!H505 -> 0 | AH30: =' 6-Inventário de recursos'!L33 -> 0 | AI30: =' 6-Inventário de recursos'!L505 -> 0 | AJ30: =' 6-Inventário de recursos'!M505 -> 0
J31: Massa (kg) | M31: Massa (%) | AA31: =' 6-Inventário de recursos'!B506 -> 0 | AB31: =' 6-Inventário de recursos'!D506 -> 0 | AC31: =' 6-Inventário de recursos'!C506 -> 0 | AD31: =' 6-Inventário de recursos'!E506 -> 0 | AE31: =' 6-Inventário de recursos'!F506 -> 0 | AF31: =' 6-Inventário de recursos'!G506 -> 0 | AG31: =' 6-Inventário de recursos'!H506 -> 0 | AH31: =' 6-Inventário de recursos'!L34 -> 0 | AI31: =' 6-Inventário de recursos'!L506 -> 0 | AJ31: =' 6-Inventário de recursos'!M506 -> 0
J32: Perigoso | K32: Inerte /Não perigoso | L32: Total | M32: Perigoso | N32: Inerte /Não perigoso | O32: Total | AA32: =' 6-Inventário de recursos'!B507 -> 0 | AB32: =' 6-Inventário de recursos'!D507 -> 0 | AC32: =' 6-Inventário de recursos'!C507 -> 0 | AD32: =' 6-Inventário de recursos'!E507 -> 0 | AE32: =' 6-Inventário de recursos'!F507 -> 0 | AF32: =' 6-Inventário de recursos'!G507 -> 0 | AG32: =' 6-Inventário de recursos'!H507 -> 0 | AH32: =' 6-Inventário de recursos'!L35 -> 0 | AI32: =' 6-Inventário de recursos'!L507 -> 0 | AJ32: =' 6-Inventário de recursos'!M507 -> 0
I33: Capítulo 16 LER kg | J33: =SUMIFS(AG4:AG537,AC4:AC537,"*16 02*",AB4:AB537,J$32) -> 0 | K33: =SUMIFS(AG4:AG537,AC4:AC537,"*16 02*",AB4:AB537,"*Inert*")-SUMIFS(AG4:AG537,AC4:AC537,"*16 02*",AI4:AI537,"*Reutilização*") -> 0 | L33: =SUM(J33:K33) -> 0 | M33: =J33/L39 -> 0 | N33: =K33/L39 -> 0 | O33: =SUM(M33:N33) -> 0 | AA33: =' 6-Inventário de recursos'!B508 -> 0 | AB33: =' 6-Inventário de recursos'!D508 -> 0 | AC33: =' 6-Inventário de recursos'!C508 -> 0 | AD33: =' 6-Inventário de recursos'!E508 -> 0 | AE33: =' 6-Inventário de recursos'!F508 -> 0 | AF33: =' 6-Inventário de recursos'!G508 -> 0 | AG33: =' 6-Inventário de recursos'!H508 -> 0 | AH33: =' 6-Inventário de recursos'!L36 -> 0 | AI33: =' 6-Inventário de recursos'!L508 -> 0 | AJ33: =' 6-Inventário de recursos'!M508 -> 0
A34: Custo para deposição em aterro da totalidade dos RCD do capítulo 17 LER | I34: kg/m2 | J34: =J33/$E$13 -> 0 | K34: =K33/$E$13 -> 0 | L34: =L33/$E$13 -> 0 | AH34: =' 6-Inventário de recursos'!L37 -> 0
I35: Capítulo 17 LER kg | J35: =SUMIFS(AG4:AG558,AC4:AC558,"*17 *",AB4:AB558,J$32) -> 45 | K35: =SUMIFS(AG4:AG558,AC4:AC558,"*17 *",AB4:AB558,"*Inert*")-SUMIFS(AG4:AG537,AC4:AC537,"*17*",AI4:AI537,"*Reutilização*") -> 14300 | L35: =SUM(J35:K35) -> 14345 | M35: =J35/L39 -> 0.003136107046 | N35: =K35/L39 -> 0.9965851279 | O35: 0.9997212349 | AA35: =' 6-Inventário de recursos'!B509 -> 0 | AB35: =' 6-Inventário de recursos'!D509 -> 0 | AC35: =' 6-Inventário de recursos'!C509 -> 0 | AD35: =' 6-Inventário de recursos'!E509 -> 0 | AE35: =' 6-Inventário de recursos'!F509 -> 0 | AF35: =' 6-Inventário de recursos'!G509 -> 0 | AG35: =' 6-Inventário de recursos'!H509 -> 0 | AH35: =' 6-Inventário de recursos'!L38 -> 0 | AI35: =' 6-Inventário de recursos'!L509 -> 0 | AJ35: =' 6-Inventário de recursos'!M509 -> 0
A36: Natureza do RCD | C36: Massa (kg) | D36: Fração (%) | E36: Massa por unidade de área de construção (kg / m2) | F36: Custo unitário do aterro (€ / ton) | G36: Custo total do aterro (€) | I36: kg/m2 | J36: =J35/$E$13 -> 0.3 | K36: =K35/$E$13 -> 95.33333333 | L36: =L35/$E$13 -> 95.63333333 | AH36: =' 6-Inventário de recursos'!L39 -> 0
I37: Capítulo 20 LER kg | J37: =SUMIFS(AG4:AG558,AC4:AC558,"*20 01*",AB4:AB558,J$32) -> 4 | K37: =SUMIFS(AG4:AG537,AC4:AC537,"*20 01*",AB4:AB537,"*Inert*")-SUMIFS(AG4:AG537,AC4:AC537,"*20*",AI4:AI537,"*Reutilização*") -> 0 | L37: =SUM(J37:K37) -> 4 | M37: =J37/L39 -> 0.0002787650707 | N37: =K37/L39 -> 0 | O37: 0.0002787650707 | AA37: =' 6-Inventário de recursos'!B510 -> 0 | AB37: =' 6-Inventário de recursos'!D510 -> 0 | AC37: =' 6-Inventário de recursos'!C510 -> 0 | AD37: =' 6-Inventário de recursos'!E510 -> 0 | AE37: =' 6-Inventário de recursos'!F510 -> 0 | AF37: =' 6-Inventário de recursos'!G510 -> 0 | AG37: =' 6-Inventário de recursos'!H510 -> 0 | AH37: =' 6-Inventário de recursos'!L40 -> 0 | AI37: =' 6-Inventário de recursos'!L510 -> 0 | AJ37: =' 6-Inventário de recursos'!M510 -> 0
A38: Não perigoso / inerte | C38: =SUMIFS(AG4:AG537,AC4:AC537,"*17 01*",AB4:AB537,"*Inert*")+SUMIFS(AG4:AG537,AC4:AC537,"*17 02*",AB4:AB537,"*Inert*")+SUMIFS(AG4:AG537,AC4:AC537,"*17 03*",AB4:AB537,"*Inert*")+SUMIFS(AG4:AG537,AC4:AC537,"*17 04*",AB4:AB537,"*Inert*")+SUMIFS(AG4:AG537,AC4:AC537,"*17 06*",AB4:AB537,"*Inert*")+SUMIFS(AG4:AG537,AC4:AC537,"*17 08*",AB4:AB537,"*Inert*")+SUMIFS(AG4:AG537,AC4:AC537,"*17 09*",AB4:AB537,"*Inert*")-SUMIFS(AG4:AG537,AI4:AI537,"*Reutilização*") -> 14300 | D38: =C38/C40 -> 0.9968630185 | E38: =C38/E13 -> 95.33333333 | G38: =(C38/1000)*F38 -> 0 | I38: kg/m2 | J38: =J37/$E$13 -> 0.02666666667 | K38: =K37/$E$13 -> 0 | L38: =L37/$E$13 -> 0.02666666667 | AH38: =' 6-Inventário de recursos'!L41 -> 0
A39: Perigoso | C39: =SUMIFS(AG4:AG537,AC4:AC537,"*17 01*",AB4:AB537,"Perigoso")+SUMIFS(AG4:AG537,AC4:AC537,"*17 02*",AB4:AB537,"Perigoso")+SUMIFS(AG4:AG537,AC4:AC537,"*17 03*",AB4:AB537,"Perigoso")+SUMIFS(AG4:AG537,AC4:AC537,"*17 04*",AB4:AB537,"Perigoso")+SUMIFS(AG4:AG537,AC4:AC537,"*17 06*",AB4:AB537,"Perigoso")+SUMIFS(AG4:AG537,AC4:AC537,"*17 08*",AB4:AB537,"Perigoso")+SUMIFS(AG4:AG537,AC4:AC537,"*17 09*",AB4:AB537,"Perigoso") -> 45 | D39: =C39/C40 -> 0.003136981527 | E39: =C39/E13 -> 0.3 | G39: =(C39/1000)*F39 -> 0 | I39: Total kg | J39: =SUM(J33,J35,J37) -> 49 | K39: =SUM(K33,K35,K37) -> 14300 | L39: =SUM(L33,L35,L37) -> 14349 | M39: =J39/L39 -> 0.003414872117 | N39: =K39/L39 -> 0.9965851279 | O39: =M39+N39 -> 1 | AA39: =' 6-Inventário de recursos'!B511 -> 0 | AB39: =' 6-Inventário de recursos'!D511 -> 0 | AC39: =' 6-Inventário de recursos'!C511 -> 0 | AD39: =' 6-Inventário de recursos'!E511 -> 0 | AE39: =' 6-Inventário de recursos'!F511 -> 0 | AF39: =' 6-Inventário de recursos'!G511 -> 0 | AG39: =' 6-Inventário de recursos'!H511 -> 0 | AH39: =' 6-Inventário de recursos'!L42 -> 0 | AI39: =' 6-Inventário de recursos'!L511 -> 0 | AJ39: =' 6-Inventário de recursos'!M511 -> 0
A40: Total | C40: =SUM(C38:C39) -> 14345 | D40: =SUM(D38:D39) -> 1 | G40: =SUM(G38:G39) -> 0 | I40: Total kg/m2 | J40: =J39/$E$13 -> 0.3266666667 | K40: =K39/$E$13 -> 95.33333333 | L40: =L39/$E$13 -> 95.66 | AA40: =' 6-Inventário de recursos'!B512 -> 0 | AB40: =' 6-Inventário de recursos'!D512 -> 0 | AC40: =' 6-Inventário de recursos'!C512 -> 0 | AD40: =' 6-Inventário de recursos'!E512 -> 0 | AE40: =' 6-Inventário de recursos'!F512 -> 0 | AF40: =' 6-Inventário de recursos'!G512 -> 0 | AG40: =' 6-Inventário de recursos'!H512 -> 0 | AH40: =' 6-Inventário de recursos'!L43 -> 0 | AI40: =' 6-Inventário de recursos'!L512 -> 0 | AJ40: =' 6-Inventário de recursos'!M512 -> 0
AA41: =' 6-Inventário de recursos'!B513 -> 0 | AB41: =' 6-Inventário de recursos'!D513 -> 0 | AC41: =' 6-Inventário de recursos'!C513 -> 0 | AD41: =' 6-Inventário de recursos'!E513 -> 0 | AE41: =' 6-Inventário de recursos'!F513 -> 0 | AF41: =' 6-Inventário de recursos'!G513 -> 0 | AG41: =' 6-Inventário de recursos'!H513 -> 0 | AH41: =' 6-Inventário de recursos'!L44 -> 0 | AI41: =' 6-Inventário de recursos'!L513 -> 0 | AJ41: =' 6-Inventário de recursos'!M513 -> 0
AA42: =' 6-Inventário de recursos'!B514 -> 0 | AB42: =' 6-Inventário de recursos'!D514 -> 0 | AC42: =' 6-Inventário de recursos'!C514 -> 0 | AD42: =' 6-Inventário de recursos'!E514 -> 0 | AE42: =' 6-Inventário de recursos'!F514 -> 0 | AF42: =' 6-Inventário de recursos'!G514 -> 0 | AG42: =' 6-Inventário de recursos'!H514 -> 0 | AH42: =' 6-Inventário de recursos'!L45 -> 0 | AI42: =' 6-Inventário de recursos'!L514 -> 0 | AJ42: =' 6-Inventário de recursos'!M514 -> 0
AA43: =' 6-Inventário de recursos'!B515 -> 0 | AB43: =' 6-Inventário de recursos'!D515 -> 0 | AC43: =' 6-Inventário de recursos'!C515 -> 0 | AD43: =' 6-Inventário de recursos'!E515 -> 0 | AE43: =' 6-Inventário de recursos'!F515 -> 0 | AF43: =' 6-Inventário de recursos'!G515 -> 0 | AG43: =' 6-Inventário de recursos'!H515 -> 0 | AH43: =' 6-Inventário de recursos'!L46 -> 0 | AI43: =' 6-Inventário de recursos'!L515 -> 0 | AJ43: =' 6-Inventário de recursos'!M515 -> 0
AA44: =' 6-Inventário de recursos'!B516 -> 0 | AB44: =' 6-Inventário de recursos'!D516 -> 0 | AC44: =' 6-Inventário de recursos'!C516 -> 0 | AD44: =' 6-Inventário de recursos'!E516 -> 0 | AE44: =' 6-Inventário de recursos'!F516 -> 0 | AF44: =' 6-Inventário de recursos'!G516 -> 0 | AG44: =' 6-Inventário de recursos'!H516 -> 0 | AH44: =' 6-Inventário de recursos'!L47 -> 0 | AI44: =' 6-Inventário de recursos'!L516 -> 0 | AJ44: =' 6-Inventário de recursos'!M516 -> 0
AA45: =' 6-Inventário de recursos'!B517 -> 0 | AB45: =' 6-Inventário de recursos'!D517 -> 0 | AC45: =' 6-Inventário de recursos'!C517 -> 0 | AD45: =' 6-Inventário de recursos'!E517 -> 0 | AE45: =' 6-Inventário de recursos'!F517 -> 0 | AF45: =' 6-Inventário de recursos'!G517 -> 0 | AG45: =' 6-Inventário de recursos'!H517 -> 0 | AH45: =' 6-Inventário de recursos'!L48 -> 0 | AI45: =' 6-Inventário de recursos'!L517 -> 0 | AJ45: =' 6-Inventário de recursos'!M517 -> 0
AA46: =' 6-Inventário de recursos'!B518 -> 0 | AB46: =' 6-Inventário de recursos'!D518 -> 0 | AC46: =' 6-Inventário de recursos'!C518 -> 0 | AD46: =' 6-Inventário de recursos'!E518 -> 0 | AE46: =' 6-Inventário de recursos'!F518 -> 0 | AF46: =' 6-Inventário de recursos'!G518 -> 0 | AG46: =' 6-Inventário de recursos'!H518 -> 0 | AH46: =' 6-Inventário de recursos'!L49 -> 0 | AI46: =' 6-Inventário de recursos'!L518 -> 0 | AJ46: =' 6-Inventário de recursos'!M518 -> 0
AA47: =' 6-Inventário de recursos'!B519 -> 0 | AB47: =' 6-Inventário de recursos'!D519 -> 0 | AC47: =' 6-Inventário de recursos'!C519 -> 0 | AD47: =' 6-Inventário de recursos'!E519 -> 0 | AE47: =' 6-Inventário de recursos'!F519 -> 0 | AF47: =' 6-Inventário de recursos'!G519 -> 0 | AG47: =' 6-Inventário de recursos'!H519 -> 0 | AH47: =' 6-Inventário de recursos'!L50 -> 0 | AI47: =' 6-Inventário de recursos'!L519 -> 0 | AJ47: =' 6-Inventário de recursos'!M519 -> 0
AA48: =' 6-Inventário de recursos'!B520 -> 0 | AB48: =' 6-Inventário de recursos'!D520 -> 0 | AC48: =' 6-Inventário de recursos'!C520 -> 0 | AD48: =' 6-Inventário de recursos'!E520 -> 0 | AE48: =' 6-Inventário de recursos'!F520 -> 0 | AF48: =' 6-Inventário de recursos'!G520 -> 0 | AG48: =' 6-Inventário de recursos'!H520 -> 0 | AH48: =' 6-Inventário de recursos'!L51 -> 0 | AI48: =' 6-Inventário de recursos'!L520 -> 0 | AJ48: =' 6-Inventário de recursos'!M520 -> 0
AA49: =' 6-Inventário de recursos'!B521 -> 0 | AB49: =' 6-Inventário de recursos'!D521 -> 0 | AC49: =' 6-Inventário de recursos'!C521 -> 0 | AD49: =' 6-Inventário de recursos'!E521 -> 0 | AE49: =' 6-Inventário de recursos'!F521 -> 0 | AF49: =' 6-Inventário de recursos'!G521 -> 0 | AG49: =' 6-Inventário de recursos'!H521 -> 0 | AH49: =' 6-Inventário de recursos'!L52 -> 0 | AI49: =' 6-Inventário de recursos'!L521 -> 0 | AJ49: =' 6-Inventário de recursos'!M521 -> 0
AA50: =' 6-Inventário de recursos'!B522 -> 0 | AB50: =' 6-Inventário de recursos'!D522 -> 0 | AC50: =' 6-Inventário de recursos'!C522 -> 0 | AD50: =' 6-Inventário de recursos'!E522 -> 0 | AE50: =' 6-Inventário de recursos'!F522 -> 0 | AF50: =' 6-Inventário de recursos'!G522 -> 0 | AG50: =' 6-Inventário de recursos'!H522 -> 0 | AH50: =' 6-Inventário de recursos'!L53 -> 0 | AI50: =' 6-Inventário de recursos'!L522 -> 0 | AJ50: =' 6-Inventário de recursos'!M522 -> 0
AA51: =' 6-Inventário de recursos'!B523 -> 0 | AB51: =' 6-Inventário de recursos'!D523 -> 0 | AC51: =' 6-Inventário de recursos'!C523 -> 0 | AD51: =' 6-Inventário de recursos'!E523 -> 0 | AE51: =' 6-Inventário de recursos'!F523 -> 0 | AF51: =' 6-Inventário de recursos'!G523 -> 0 | AG51: =' 6-Inventário de recursos'!H523 -> 0 | AH51: =' 6-Inventário de recursos'!L54 -> 0 | AI51: =' 6-Inventário de recursos'!L523 -> 0 | AJ51: =' 6-Inventário de recursos'!M523 -> 0
AA52: =' 6-Inventário de recursos'!B524 -> 0 | AB52: =' 6-Inventário de recursos'!D524 -> 0 | AC52: =' 6-Inventário de recursos'!C524 -> 0 | AD52: =' 6-Inventário de recursos'!E524 -> 0 | AE52: =' 6-Inventário de recursos'!F524 -> 0 | AF52: =' 6-Inventário de recursos'!G524 -> 0 | AG52: =' 6-Inventário de recursos'!H524 -> 0 | AH52: =' 6-Inventário de recursos'!L55 -> 0 | AI52: =' 6-Inventário de recursos'!L524 -> 0 | AJ52: =' 6-Inventário de recursos'!M524 -> 0
AA53: =' 6-Inventário de recursos'!B525 -> 0 | AB53: =' 6-Inventário de recursos'!D525 -> 0 | AC53: =' 6-Inventário de recursos'!C525 -> 0 | AD53: =' 6-Inventário de recursos'!E525 -> 0 | AE53: =' 6-Inventário de recursos'!F525 -> 0 | AF53: =' 6-Inventário de recursos'!G525 -> 0 | AG53: =' 6-Inventário de recursos'!H525 -> 0 | AH53: =' 6-Inventário de recursos'!L56 -> 0 | AI53: =' 6-Inventário de recursos'!L525 -> 0 | AJ53: =' 6-Inventário de recursos'!M525 -> 0
AC54: =' 6-Inventário de recursos'!B526 -> 0 | AD54: =' 6-Inventário de recursos'!D526 -> 0 | AE54: =' 6-Inventário de recursos'!C526 -> 0 | AF54: =' 6-Inventário de recursos'!E526 -> 0 | AG54: =' 6-Inventário de recursos'!F526 -> 0 | AH54: =' 6-Inventário de recursos'!L57 -> 0 | AI54: =' 6-Inventário de recursos'!H526 -> 0 | AJ54: =' 6-Inventário de recursos'!#REF! -> 
AC55: =' 6-Inventário de recursos'!B527 -> 0 | AD55: =' 6-Inventário de recursos'!D527 -> 0 | AE55: =' 6-Inventário de recursos'!C527 -> 0 | AF55: =' 6-Inventário de recursos'!E527 -> 0 | AG55: =' 6-Inventário de recursos'!F527 -> 0 | AH55: =' 6-Inventário de recursos'!L58 -> 0 | AI55: =' 6-Inventário de recursos'!H527 -> 0 | AJ55: =' 6-Inventário de recursos'!#REF! -> 
AC56: =' 6-Inventário de recursos'!B528 -> 0 | AD56: =' 6-Inventário de recursos'!D528 -> 0 | AE56: =' 6-Inventário de recursos'!C528 -> 0 | AF56: =' 6-Inventário de recursos'!E528 -> 0 | AG56: =' 6-Inventário de recursos'!F528 -> 0 | AH56: =' 6-Inventário de recursos'!L59 -> 0 | AI56: =' 6-Inventário de recursos'!H528 -> 0 | AJ56: =' 6-Inventário de recursos'!#REF! -> 
AC57: =' 6-Inventário de recursos'!B529 -> 0 | AD57: =' 6-Inventário de recursos'!D529 -> 0 | AE57: =' 6-Inventário de recursos'!C529 -> 0 | AF57: =' 6-Inventário de recursos'!E529 -> 0 | AG57: =' 6-Inventário de recursos'!F529 -> 0 | AH57: =' 6-Inventário de recursos'!L60 -> 0 | AI57: =' 6-Inventário de recursos'!H529 -> 0 | AJ57: =' 6-Inventário de recursos'!#REF! -> 
AC58: =' 6-Inventário de recursos'!B530 -> 0 | AD58: =' 6-Inventário de recursos'!D530 -> 0 | AE58: =' 6-Inventário de recursos'!C530 -> 0 | AF58: =' 6-Inventário de recursos'!E530 -> 0 | AG58: =' 6-Inventário de recursos'!F530 -> 0 | AH58: =' 6-Inventário de recursos'!L61 -> 0 | AI58: =' 6-Inventário de recursos'!H530 -> 0 | AJ58: =' 6-Inventário de recursos'!#REF! -> 
AC59: =' 6-Inventário de recursos'!B531 -> 0 | AD59: =' 6-Inventário de recursos'!D531 -> 0 | AE59: =' 6-Inventário de recursos'!C531 -> 0 | AF59: =' 6-Inventário de recursos'!E531 -> 0 | AG59: =' 6-Inventário de recursos'!F531 -> 0 | AH59: =' 6-Inventário de recursos'!L62 -> 0 | AI59: =' 6-Inventário de recursos'!H531 -> 0 | AJ59: =' 6-Inventário de recursos'!#REF! -> 
AC60: =' 6-Inventário de recursos'!B532 -> 0 | AD60: =' 6-Inventário de recursos'!D532 -> 0 | AE60: =' 6-Inventário de recursos'!C532 -> 0 | AF60: =' 6-Inventário de recursos'!E532 -> 0 | AG60: =' 6-Inventário de recursos'!F532 -> 0 | AH60: =' 6-Inventário de recursos'!L63 -> 0 | AI60: =' 6-Inventário de recursos'!H532 -> 0 | AJ60: =' 6-Inventário de recursos'!#REF! -> 
AC61: =' 6-Inventário de recursos'!B533 -> 0 | AD61: =' 6-Inventário de recursos'!D533 -> 0 | AE61: =' 6-Inventário de recursos'!C533 -> 0 | AF61: =' 6-Inventário de recursos'!E533 -> 0 | AG61: =' 6-Inventário de recursos'!F533 -> 0 | AH61: =' 6-Inventário de recursos'!L64 -> 0 | AI61: =' 6-Inventário de recursos'!H533 -> 0 | AJ61: =' 6-Inventário de recursos'!#REF! -> 
AC62: =' 6-Inventário de recursos'!B534 -> 0 | AD62: =' 6-Inventário de recursos'!D534 -> 0 | AE62: =' 6-Inventário de recursos'!C534 -> 0 | AF62: =' 6-Inventário de recursos'!E534 -> 0 | AG62: =' 6-Inventário de recursos'!F534 -> 0 | AH62: =' 6-Inventário de recursos'!L65 -> 0 | AI62: =' 6-Inventário de recursos'!H534 -> 0 | AJ62: =' 6-Inventário de recursos'!#REF! -> 
AC63: =' 6-Inventário de recursos'!B535 -> 0 | AD63: =' 6-Inventário de recursos'!D535 -> 0 | AE63: =' 6-Inventário de recursos'!C535 -> 0 | AF63: =' 6-Inventário de recursos'!E535 -> 0 | AG63: =' 6-Inventário de recursos'!F535 -> 0 | AH63: =' 6-Inventário de recursos'!L66 -> 0 | AI63: =' 6-Inventário de recursos'!H535 -> 0 | AJ63: =' 6-Inventário de recursos'!#REF! -> 
AC64: =' 6-Inventário de recursos'!B536 -> 0 | AD64: =' 6-Inventário de recursos'!D536 -> 0 | AE64: =' 6-Inventário de recursos'!C536 -> 0 | AF64: =' 6-Inventário de recursos'!E536 -> 0 | AG64: =' 6-Inventário de recursos'!F536 -> 0 | AH64: =' 6-Inventário de recursos'!L67 -> 0 | AI64: =' 6-Inventário de recursos'!H536 -> 0 | AJ64: =' 6-Inventário de recursos'!#REF! -> 
AC65: =' 6-Inventário de recursos'!B537 -> 0 | AD65: =' 6-Inventário de recursos'!D537 -> 0 | AE65: =' 6-Inventário de recursos'!C537 -> 0 | AF65: =' 6-Inventário de recursos'!E537 -> 0 | AG65: =' 6-Inventário de recursos'!F537 -> 0 | AH65: =' 6-Inventário de recursos'!L68 -> 0 | AI65: =' 6-Inventário de recursos'!H537 -> 0 | AJ65: =' 6-Inventário de recursos'!#REF! -> 
AC66: =' 6-Inventário de recursos'!B538 -> 0 | AD66: =' 6-Inventário de recursos'!D538 -> 0 | AE66: =' 6-Inventário de recursos'!C538 -> 0 | AF66: =' 6-Inventário de recursos'!E538 -> 0 | AG66: =' 6-Inventário de recursos'!F538 -> 0 | AH66: =' 6-Inventário de recursos'!L69 -> 0 | AI66: =' 6-Inventário de recursos'!H538 -> 0 | AJ66: =' 6-Inventário de recursos'!#REF! -> 
AC67: =' 6-Inventário de recursos'!B539 -> 0 | AD67: =' 6-Inventário de recursos'!D539 -> 0 | AE67: =' 6-Inventário de recursos'!C539 -> 0 | AF67: =' 6-Inventário de recursos'!E539 -> 0 | AG67: =' 6-Inventário de recursos'!F539 -> 0 | AH67: =' 6-Inventário de recursos'!L70 -> 0 | AI67: =' 6-Inventário de recursos'!H539 -> 0 | AJ67: =' 6-Inventário de recursos'!#REF! -> 
AC68: =' 6-Inventário de recursos'!B540 -> 0 | AD68: =' 6-Inventário de recursos'!D540 -> 0 | AE68: =' 6-Inventário de recursos'!C540 -> 0 | AF68: =' 6-Inventário de recursos'!E540 -> 0 | AG68: =' 6-Inventário de recursos'!F540 -> 0 | AH68: =' 6-Inventário de recursos'!L71 -> 0 | AI68: =' 6-Inventário de recursos'!H540 -> 0 | AJ68: =' 6-Inventário de recursos'!#REF! -> 
AC69: =' 6-Inventário de recursos'!B541 -> 0 | AD69: =' 6-Inventário de recursos'!D541 -> 0 | AE69: =' 6-Inventário de recursos'!C541 -> 0 | AF69: =' 6-Inventário de recursos'!E541 -> 0 | AG69: =' 6-Inventário de recursos'!F541 -> 0 | AH69: =' 6-Inventário de recursos'!L72 -> 0 | AI69: =' 6-Inventário de recursos'!H541 -> 0 | AJ69: =' 6-Inventário de recursos'!#REF! -> 
AC70: =' 6-Inventário de recursos'!B542 -> 0 | AD70: =' 6-Inventário de recursos'!D542 -> 0 | AE70: =' 6-Inventário de recursos'!C542 -> 0 | AF70: =' 6-Inventário de recursos'!E542 -> 0 | AG70: =' 6-Inventário de recursos'!F542 -> 0 | AH70: =' 6-Inventário de recursos'!L73 -> 0 | AI70: =' 6-Inventário de recursos'!H542 -> 0 | AJ70: =' 6-Inventário de recursos'!#REF! -> 
AC71: =' 6-Inventário de recursos'!B543 -> 0 | AD71: =' 6-Inventário de recursos'!D543 -> 0 | AE71: =' 6-Inventário de recursos'!C543 -> 0 | AF71: =' 6-Inventário de recursos'!E543 -> 0 | AG71: =' 6-Inventário de recursos'!F543 -> 0 | AH71: =' 6-Inventário de recursos'!L74 -> 0 | AI71: =' 6-Inventário de recursos'!H543 -> 0 | AJ71: =' 6-Inventário de recursos'!#REF! -> 
AC72: =' 6-Inventário de recursos'!B544 -> 0 | AD72: =' 6-Inventário de recursos'!D544 -> 0 | AE72: =' 6-Inventário de recursos'!C544 -> 0 | AF72: =' 6-Inventário de recursos'!E544 -> 0 | AG72: =' 6-Inventário de recursos'!F544 -> 0 | AH72: =' 6-Inventário de recursos'!L75 -> 0 | AI72: =' 6-Inventário de recursos'!H544 -> 0 | AJ72: =' 6-Inventário de recursos'!#REF! -> 
AC73: =' 6-Inventário de recursos'!B545 -> 0 | AD73: =' 6-Inventário de recursos'!D545 -> 0 | AE73: =' 6-Inventário de recursos'!C545 -> 0 | AF73: =' 6-Inventário de recursos'!E545 -> 0 | AG73: =' 6-Inventário de recursos'!F545 -> 0 | AH73: =' 6-Inventário de recursos'!L76 -> 0 | AI73: =' 6-Inventário de recursos'!H545 -> 0 | AJ73: =' 6-Inventário de recursos'!#REF! -> 
AC74: =' 6-Inventário de recursos'!B546 -> 0 | AD74: =' 6-Inventário de recursos'!D546 -> 0 | AE74: =' 6-Inventário de recursos'!C546 -> 0 | AF74: =' 6-Inventário de recursos'!E546 -> 0 | AG74: =' 6-Inventário de recursos'!F546 -> 0 | AH74: =' 6-Inventário de recursos'!L77 -> 0 | AI74: =' 6-Inventário de recursos'!H546 -> 0 | AJ74: =' 6-Inventário de recursos'!#REF! -> 
AC75: =' 6-Inventário de recursos'!B547 -> 0 | AD75: =' 6-Inventário de recursos'!D547 -> 0 | AE75: =' 6-Inventário de recursos'!C547 -> 0 | AF75: =' 6-Inventário de recursos'!E547 -> 0 | AG75: =' 6-Inventário de recursos'!F547 -> 0 | AH75: =' 6-Inventário de recursos'!L78 -> 0 | AI75: =' 6-Inventário de recursos'!H547 -> 0 | AJ75: =' 6-Inventário de recursos'!#REF! -> 
AC76: =' 6-Inventário de recursos'!B548 -> 0 | AD76: =' 6-Inventário de recursos'!D548 -> 0 | AE76: =' 6-Inventário de recursos'!C548 -> 0 | AF76: =' 6-Inventário de recursos'!E548 -> 0 | AG76: =' 6-Inventário de recursos'!F548 -> 0 | AH76: =' 6-Inventário de recursos'!L79 -> 0 | AI76: =' 6-Inventário de recursos'!H548 -> 0 | AJ76: =' 6-Inventário de recursos'!#REF! -> 
AC77: =' 6-Inventário de recursos'!B549 -> 0 | AD77: =' 6-Inventário de recursos'!D549 -> 0 | AE77: =' 6-Inventário de recursos'!C549 -> 0 | AF77: =' 6-Inventário de recursos'!E549 -> 0 | AG77: =' 6-Inventário de recursos'!F549 -> 0 | AH77: =' 6-Inventário de recursos'!L80 -> 0 | AI77: =' 6-Inventário de recursos'!H549 -> 0 | AJ77: =' 6-Inventário de recursos'!#REF! -> 
AC78: =' 6-Inventário de recursos'!B550 -> 0 | AD78: =' 6-Inventário de recursos'!D550 -> 0 | AE78: =' 6-Inventário de recursos'!C550 -> 0 | AF78: =' 6-Inventário de recursos'!E550 -> 0 | AG78: =' 6-Inventário de recursos'!F550 -> 0 | AH78: =' 6-Inventário de recursos'!L81 -> 0 | AI78: =' 6-Inventário de recursos'!H550 -> 0 | AJ78: =' 6-Inventário de recursos'!#REF! -> 
AC79: =' 6-Inventário de recursos'!B551 -> 0 | AD79: =' 6-Inventário de recursos'!D551 -> 0 | AE79: =' 6-Inventário de recursos'!C551 -> 0 | AF79: =' 6-Inventário de recursos'!E551 -> 0 | AG79: =' 6-Inventário de recursos'!F551 -> 0 | AH79: =' 6-Inventário de recursos'!L82 -> 0 | AI79: =' 6-Inventário de recursos'!H551 -> 0 | AJ79: =' 6-Inventário de recursos'!#REF! -> 
AC80: =' 6-Inventário de recursos'!B552 -> 0 | AD80: =' 6-Inventário de recursos'!D552 -> 0 | AE80: =' 6-Inventário de recursos'!C552 -> 0 | AF80: =' 6-Inventário de recursos'!E552 -> 0 | AG80: =' 6-Inventário de recursos'!F552 -> 0 | AH80: =' 6-Inventário de recursos'!L83 -> 0 | AI80: =' 6-Inventário de recursos'!H552 -> 0 | AJ80: =' 6-Inventário de recursos'!#REF! -> 
AC81: =' 6-Inventário de recursos'!B553 -> 0 | AD81: =' 6-Inventário de recursos'!D553 -> 0 | AE81: =' 6-Inventário de recursos'!C553 -> 0 | AF81: =' 6-Inventário de recursos'!E553 -> 0 | AG81: =' 6-Inventário de recursos'!F553 -> 0 | AH81: =' 6-Inventário de recursos'!L84 -> 0 | AI81: =' 6-Inventário de recursos'!H553 -> 0 | AJ81: =' 6-Inventário de recursos'!#REF! -> 
AC82: =' 6-Inventário de recursos'!B554 -> 0 | AD82: =' 6-Inventário de recursos'!D554 -> 0 | AE82: =' 6-Inventário de recursos'!C554 -> 0 | AF82: =' 6-Inventário de recursos'!E554 -> 0 | AG82: =' 6-Inventário de recursos'!F554 -> 0 | AH82: =' 6-Inventário de recursos'!L85 -> 0 | AI82: =' 6-Inventário de recursos'!H554 -> 0 | AJ82: =' 6-Inventário de recursos'!#REF! -> 
AC83: =' 6-Inventário de recursos'!B555 -> 0 | AD83: =' 6-Inventário de recursos'!D555 -> 0 | AE83: =' 6-Inventário de recursos'!C555 -> 0 | AF83: =' 6-Inventário de recursos'!E555 -> 0 | AG83: =' 6-Inventário de recursos'!F555 -> 0 | AH83: =' 6-Inventário de recursos'!L86 -> 0 | AI83: =' 6-Inventário de recursos'!H555 -> 0 | AJ83: =' 6-Inventário de recursos'!#REF! -> 
AC84: =' 6-Inventário de recursos'!B556 -> 0 | AD84: =' 6-Inventário de recursos'!D556 -> 0 | AE84: =' 6-Inventário de recursos'!C556 -> 0 | AF84: =' 6-Inventário de recursos'!E556 -> 0 | AG84: =' 6-Inventário de recursos'!F556 -> 0 | AH84: =' 6-Inventário de recursos'!L87 -> 0 | AI84: =' 6-Inventário de recursos'!H556 -> 0 | AJ84: =' 6-Inventário de recursos'!#REF! -> 
AC85: =' 6-Inventário de recursos'!B557 -> 0 | AD85: =' 6-Inventário de recursos'!D557 -> 0 | AE85: =' 6-Inventário de recursos'!C557 -> 0 | AF85: =' 6-Inventário de recursos'!E557 -> 0 | AG85: =' 6-Inventário de recursos'!F557 -> 0 | AH85: =' 6-Inventário de recursos'!L88 -> 0 | AI85: =' 6-Inventário de recursos'!H557 -> 0 | AJ85: =' 6-Inventário de recursos'!#REF! -> 
AC86: =' 6-Inventário de recursos'!B558 -> 0 | AD86: =' 6-Inventário de recursos'!D558 -> 0 | AE86: =' 6-Inventário de recursos'!C558 -> 0 | AF86: =' 6-Inventário de recursos'!E558 -> 0 | AG86: =' 6-Inventário de recursos'!F558 -> 0 | AH86: =' 6-Inventário de recursos'!L89 -> 0 | AI86: =' 6-Inventário de recursos'!H558 -> 0 | AJ86: =' 6-Inventário de recursos'!#REF! -> 
AC87: =' 6-Inventário de recursos'!B559 -> 0 | AD87: =' 6-Inventário de recursos'!D559 -> 0 | AE87: =' 6-Inventário de recursos'!C559 -> 0 | AF87: =' 6-Inventário de recursos'!E559 -> 0 | AG87: =' 6-Inventário de recursos'!F559 -> 0 | AH87: =' 6-Inventário de recursos'!L90 -> 0 | AI87: =' 6-Inventário de recursos'!H559 -> 0 | AJ87: =' 6-Inventário de recursos'!#REF! -> 
AC88: =' 6-Inventário de recursos'!B560 -> 0 | AD88: =' 6-Inventário de recursos'!D560 -> 0 | AE88: =' 6-Inventário de recursos'!C560 -> 0 | AF88: =' 6-Inventário de recursos'!E560 -> 0 | AG88: =' 6-Inventário de recursos'!F560 -> 0 | AH88: =' 6-Inventário de recursos'!L91 -> 0 | AI88: =' 6-Inventário de recursos'!H560 -> 0 | AJ88: =' 6-Inventário de recursos'!#REF! -> 
AC89: =' 6-Inventário de recursos'!B561 -> 0 | AD89: =' 6-Inventário de recursos'!D561 -> 0 | AE89: =' 6-Inventário de recursos'!C561 -> 0 | AF89: =' 6-Inventário de recursos'!E561 -> 0 | AG89: =' 6-Inventário de recursos'!F561 -> 0 | AH89: =' 6-Inventário de recursos'!L92 -> 0 | AI89: =' 6-Inventário de recursos'!H561 -> 0 | AJ89: =' 6-Inventário de recursos'!#REF! -> 
AC90: =' 6-Inventário de recursos'!B562 -> 0 | AD90: =' 6-Inventário de recursos'!D562 -> 0 | AE90: =' 6-Inventário de recursos'!C562 -> 0 | AF90: =' 6-Inventário de recursos'!E562 -> 0 | AG90: =' 6-Inventário de recursos'!F562 -> 0 | AH90: =' 6-Inventário de recursos'!L93 -> 0 | AI90: =' 6-Inventário de recursos'!H562 -> 0 | AJ90: =' 6-Inventário de recursos'!#REF! -> 
AC91: =' 6-Inventário de recursos'!B563 -> 0 | AD91: =' 6-Inventário de recursos'!D563 -> 0 | AE91: =' 6-Inventário de recursos'!C563 -> 0 | AF91: =' 6-Inventário de recursos'!E563 -> 0 | AG91: =' 6-Inventário de recursos'!F563 -> 0 | AH91: =' 6-Inventário de recursos'!L94 -> 0 | AI91: =' 6-Inventário de recursos'!H563 -> 0 | AJ91: =' 6-Inventário de recursos'!#REF! -> 
AC92: =' 6-Inventário de recursos'!B564 -> 0 | AD92: =' 6-Inventário de recursos'!D564 -> 0 | AE92: =' 6-Inventário de recursos'!C564 -> 0 | AF92: =' 6-Inventário de recursos'!E564 -> 0 | AG92: =' 6-Inventário de recursos'!F564 -> 0 | AH92: =' 6-Inventário de recursos'!L95 -> 0 | AI92: =' 6-Inventário de recursos'!H564 -> 0 | AJ92: =' 6-Inventário de recursos'!#REF! -> 
AC93: =' 6-Inventário de recursos'!B565 -> 0 | AD93: =' 6-Inventário de recursos'!D565 -> 0 | AE93: =' 6-Inventário de recursos'!C565 -> 0 | AF93: =' 6-Inventário de recursos'!E565 -> 0 | AG93: =' 6-Inventário de recursos'!F565 -> 0 | AH93: =' 6-Inventário de recursos'!L96 -> 0 | AI93: =' 6-Inventário de recursos'!H565 -> 0 | AJ93: =' 6-Inventário de recursos'!#REF! -> 
AC94: =' 6-Inventário de recursos'!B566 -> 0 | AD94: =' 6-Inventário de recursos'!D566 -> 0 | AE94: =' 6-Inventário de recursos'!C566 -> 0 | AF94: =' 6-Inventário de recursos'!E566 -> 0 | AG94: =' 6-Inventário de recursos'!F566 -> 0 | AH94: =' 6-Inventário de recursos'!L97 -> 0 | AI94: =' 6-Inventário de recursos'!H566 -> 0 | AJ94: =' 6-Inventário de recursos'!#REF! -> 
AC95: =' 6-Inventário de recursos'!B567 -> 0 | AD95: =' 6-Inventário de recursos'!D567 -> 0 | AE95: =' 6-Inventário de recursos'!C567 -> 0 | AF95: =' 6-Inventário de recursos'!E567 -> 0 | AG95: =' 6-Inventário de recursos'!F567 -> 0 | AH95: =' 6-Inventário de recursos'!L98 -> 0 | AI95: =' 6-Inventário de recursos'!H567 -> 0 | AJ95: =' 6-Inventário de recursos'!#REF! -> 
AC96: =' 6-Inventário de recursos'!B568 -> 0 | AD96: =' 6-Inventário de recursos'!D568 -> 0 | AE96: =' 6-Inventário de recursos'!C568 -> 0 | AF96: =' 6-Inventário de recursos'!E568 -> 0 | AG96: =' 6-Inventário de recursos'!F568 -> 0 | AH96: =' 6-Inventário de recursos'!L99 -> 0 | AI96: =' 6-Inventário de recursos'!H568 -> 0 | AJ96: =' 6-Inventário de recursos'!#REF! -> 
AC97: =' 6-Inventário de recursos'!B569 -> 0 | AD97: =' 6-Inventário de recursos'!D569 -> 0 | AE97: =' 6-Inventário de recursos'!C569 -> 0 | AF97: =' 6-Inventário de recursos'!E569 -> 0 | AG97: =' 6-Inventário de recursos'!F569 -> 0 | AH97: =' 6-Inventário de recursos'!L100 -> 0 | AI97: =' 6-Inventário de recursos'!H569 -> 0 | AJ97: =' 6-Inventário de recursos'!#REF! -> 
AC98: =' 6-Inventário de recursos'!B570 -> 0 | AD98: =' 6-Inventário de recursos'!D570 -> 0 | AE98: =' 6-Inventário de recursos'!C570 -> 0 | AF98: =' 6-Inventário de recursos'!E570 -> 0 | AG98: =' 6-Inventário de recursos'!F570 -> 0 | AH98: =' 6-Inventário de recursos'!L101 -> 0 | AI98: =' 6-Inventário de recursos'!H570 -> 0 | AJ98: =' 6-Inventário de recursos'!#REF! -> 
AC99: =' 6-Inventário de recursos'!B571 -> 0 | AD99: =' 6-Inventário de recursos'!D571 -> 0 | AE99: =' 6-Inventário de recursos'!C571 -> 0 | AF99: =' 6-Inventário de recursos'!E571 -> 0 | AG99: =' 6-Inventário de recursos'!F571 -> 0 | AH99: =' 6-Inventário de recursos'!L102 -> 0 | AI99: =' 6-Inventário de recursos'!H571 -> 0 | AJ99: =' 6-Inventário de recursos'!#REF! -> 
AC100: =' 6-Inventário de recursos'!B572 -> 0 | AD100: =' 6-Inventário de recursos'!D572 -> 0 | AE100: =' 6-Inventário de recursos'!C572 -> 0 | AF100: =' 6-Inventário de recursos'!E572 -> 0 | AG100: =' 6-Inventário de recursos'!F572 -> 0 | AH100: =' 6-Inventário de recursos'!L103 -> 0 | AI100: =' 6-Inventário de recursos'!H572 -> 0 | AJ100: =' 6-Inventário de recursos'!#REF! -> 
AC101: =' 6-Inventário de recursos'!B573 -> 0 | AD101: =' 6-Inventário de recursos'!D573 -> 0 | AE101: =' 6-Inventário de recursos'!C573 -> 0 | AF101: =' 6-Inventário de recursos'!E573 -> 0 | AG101: =' 6-Inventário de recursos'!F573 -> 0 | AH101: =' 6-Inventário de recursos'!L104 -> 0 | AI101: =' 6-Inventário de recursos'!H573 -> 0 | AJ101: =' 6-Inventário de recursos'!#REF! -> 
AC102: =' 6-Inventário de recursos'!B574 -> 0 | AD102: =' 6-Inventário de recursos'!D574 -> 0 | AE102: =' 6-Inventário de recursos'!C574 -> 0 | AF102: =' 6-Inventário de recursos'!E574 -> 0 | AG102: =' 6-Inventário de recursos'!F574 -> 0 | AH102: =' 6-Inventário de recursos'!L105 -> 0 | AI102: =' 6-Inventário de recursos'!H574 -> 0 | AJ102: =' 6-Inventário de recursos'!#REF! -> 
AC103: =' 6-Inventário de recursos'!B575 -> 0 | AD103: =' 6-Inventário de recursos'!D575 -> 0 | AE103: =' 6-Inventário de recursos'!C575 -> 0 | AF103: =' 6-Inventário de recursos'!E575 -> 0 | AG103: =' 6-Inventário de recursos'!F575 -> 0 | AH103: =' 6-Inventário de recursos'!L106 -> 0 | AI103: =' 6-Inventário de recursos'!H575 -> 0 | AJ103: =' 6-Inventário de recursos'!#REF! -> 
AC104: =' 6-Inventário de recursos'!B576 -> 0 | AD104: =' 6-Inventário de recursos'!D576 -> 0 | AE104: =' 6-Inventário de recursos'!C576 -> 0 | AF104: =' 6-Inventário de recursos'!E576 -> 0 | AG104: =' 6-Inventário de recursos'!F576 -> 0 | AH104: =' 6-Inventário de recursos'!L107 -> 0 | AI104: =' 6-Inventário de recursos'!H576 -> 0 | AJ104: =' 6-Inventário de recursos'!#REF! -> 
AC105: =' 6-Inventário de recursos'!B577 -> 0 | AD105: =' 6-Inventário de recursos'!D577 -> 0 | AE105: =' 6-Inventário de recursos'!C577 -> 0 | AF105: =' 6-Inventário de recursos'!E577 -> 0 | AG105: =' 6-Inventário de recursos'!F577 -> 0 | AH105: =' 6-Inventário de recursos'!L108 -> 0 | AI105: =' 6-Inventário de recursos'!H577 -> 0 | AJ105: =' 6-Inventário de recursos'!#REF! -> 
AC106: =' 6-Inventário de recursos'!B578 -> 0 | AD106: =' 6-Inventário de recursos'!D578 -> 0 | AE106: =' 6-Inventário de recursos'!C578 -> 0 | AF106: =' 6-Inventário de recursos'!E578 -> 0 | AG106: =' 6-Inventário de recursos'!F578 -> 0 | AH106: =' 6-Inventário de recursos'!L109 -> 0 | AI106: =' 6-Inventário de recursos'!H578 -> 0 | AJ106: =' 6-Inventário de recursos'!#REF! -> 
AC107: =' 6-Inventário de recursos'!B579 -> 0 | AD107: =' 6-Inventário de recursos'!D579 -> 0 | AE107: =' 6-Inventário de recursos'!C579 -> 0 | AF107: =' 6-Inventário de recursos'!E579 -> 0 | AG107: =' 6-Inventário de recursos'!F579 -> 0 | AH107: =' 6-Inventário de recursos'!L110 -> 0 | AI107: =' 6-Inventário de recursos'!H579 -> 0 | AJ107: =' 6-Inventário de recursos'!#REF! -> 
AC108: =' 6-Inventário de recursos'!B580 -> 0 | AD108: =' 6-Inventário de recursos'!D580 -> 0 | AE108: =' 6-Inventário de recursos'!C580 -> 0 | AF108: =' 6-Inventário de recursos'!E580 -> 0 | AG108: =' 6-Inventário de recursos'!F580 -> 0 | AH108: =' 6-Inventário de recursos'!L111 -> 0 | AI108: =' 6-Inventário de recursos'!H580 -> 0 | AJ108: =' 6-Inventário de recursos'!#REF! -> 
AC109: =' 6-Inventário de recursos'!B581 -> 0 | AD109: =' 6-Inventário de recursos'!D581 -> 0 | AE109: =' 6-Inventário de recursos'!C581 -> 0 | AF109: =' 6-Inventário de recursos'!E581 -> 0 | AG109: =' 6-Inventário de recursos'!F581 -> 0 | AH109: =' 6-Inventário de recursos'!L112 -> 0 | AI109: =' 6-Inventário de recursos'!H581 -> 0 | AJ109: =' 6-Inventário de recursos'!#REF! -> 
AC110: =' 6-Inventário de recursos'!B582 -> 0 | AD110: =' 6-Inventário de recursos'!D582 -> 0 | AE110: =' 6-Inventário de recursos'!C582 -> 0 | AF110: =' 6-Inventário de recursos'!E582 -> 0 | AG110: =' 6-Inventário de recursos'!F582 -> 0 | AH110: =' 6-Inventário de recursos'!L113 -> 0 | AI110: =' 6-Inventário de recursos'!H582 -> 0 | AJ110: =' 6-Inventário de recursos'!#REF! -> 
AC111: =' 6-Inventário de recursos'!B583 -> 0 | AD111: =' 6-Inventário de recursos'!D583 -> 0 | AE111: =' 6-Inventário de recursos'!C583 -> 0 | AF111: =' 6-Inventário de recursos'!E583 -> 0 | AG111: =' 6-Inventário de recursos'!F583 -> 0 | AH111: =' 6-Inventário de recursos'!L114 -> 0 | AI111: =' 6-Inventário de recursos'!H583 -> 0 | AJ111: =' 6-Inventário de recursos'!#REF! -> 
AC112: =' 6-Inventário de recursos'!B584 -> 0 | AD112: =' 6-Inventário de recursos'!D584 -> 0 | AE112: =' 6-Inventário de recursos'!C584 -> 0 | AF112: =' 6-Inventário de recursos'!E584 -> 0 | AG112: =' 6-Inventário de recursos'!F584 -> 0 | AH112: =' 6-Inventário de recursos'!L115 -> 0 | AI112: =' 6-Inventário de recursos'!H584 -> 0 | AJ112: =' 6-Inventário de recursos'!#REF! -> 
AC113: =' 6-Inventário de recursos'!B585 -> 0 | AD113: =' 6-Inventário de recursos'!D585 -> 0 | AE113: =' 6-Inventário de recursos'!C585 -> 0 | AF113: =' 6-Inventário de recursos'!E585 -> 0 | AG113: =' 6-Inventário de recursos'!F585 -> 0 | AH113: =' 6-Inventário de recursos'!L116 -> 0 | AI113: =' 6-Inventário de recursos'!H585 -> 0 | AJ113: =' 6-Inventário de recursos'!#REF! -> 
AC114: =' 6-Inventário de recursos'!B586 -> 0 | AD114: =' 6-Inventário de recursos'!D586 -> 0 | AE114: =' 6-Inventário de recursos'!C586 -> 0 | AF114: =' 6-Inventário de recursos'!E586 -> 0 | AG114: =' 6-Inventário de recursos'!F586 -> 0 | AH114: =' 6-Inventário de recursos'!L117 -> 0 | AI114: =' 6-Inventário de recursos'!H586 -> 0 | AJ114: =' 6-Inventário de recursos'!#REF! -> 
AC115: =' 6-Inventário de recursos'!B587 -> 0 | AD115: =' 6-Inventário de recursos'!D587 -> 0 | AE115: =' 6-Inventário de recursos'!C587 -> 0 | AF115: =' 6-Inventário de recursos'!E587 -> 0 | AG115: =' 6-Inventário de recursos'!F587 -> 0 | AH115: =' 6-Inventário de recursos'!L118 -> 0 | AI115: =' 6-Inventário de recursos'!H587 -> 0 | AJ115: =' 6-Inventário de recursos'!#REF! -> 
AC116: =' 6-Inventário de recursos'!B588 -> 0 | AD116: =' 6-Inventário de recursos'!D588 -> 0 | AE116: =' 6-Inventário de recursos'!C588 -> 0 | AF116: =' 6-Inventário de recursos'!E588 -> 0 | AG116: =' 6-Inventário de recursos'!F588 -> 0 | AH116: =' 6-Inventário de recursos'!L119 -> 0 | AI116: =' 6-Inventário de recursos'!H588 -> 0 | AJ116: =' 6-Inventário de recursos'!#REF! -> 
AC117: =' 6-Inventário de recursos'!B589 -> 0 | AD117: =' 6-Inventário de recursos'!D589 -> 0 | AE117: =' 6-Inventário de recursos'!C589 -> 0 | AF117: =' 6-Inventário de recursos'!E589 -> 0 | AG117: =' 6-Inventário de recursos'!F589 -> 0 | AH117: =' 6-Inventário de recursos'!L120 -> 0 | AI117: =' 6-Inventário de recursos'!H589 -> 0 | AJ117: =' 6-Inventário de recursos'!#REF! -> 
AC118: =' 6-Inventário de recursos'!B590 -> 0 | AD118: =' 6-Inventário de recursos'!D590 -> 0 | AE118: =' 6-Inventário de recursos'!C590 -> 0 | AF118: =' 6-Inventário de recursos'!E590 -> 0 | AG118: =' 6-Inventário de recursos'!F590 -> 0 | AH118: =' 6-Inventário de recursos'!L121 -> 0 | AI118: =' 6-Inventário de recursos'!H590 -> 0 | AJ118: =' 6-Inventário de recursos'!#REF! -> 
AC119: =' 6-Inventário de recursos'!B591 -> 0 | AD119: =' 6-Inventário de recursos'!D591 -> 0 | AE119: =' 6-Inventário de recursos'!C591 -> 0 | AF119: =' 6-Inventário de recursos'!E591 -> 0 | AG119: =' 6-Inventário de recursos'!F591 -> 0 | AH119: =' 6-Inventário de recursos'!L122 -> 0 | AI119: =' 6-Inventário de recursos'!H591 -> 0 | AJ119: =' 6-Inventário de recursos'!#REF! -> 
AC120: =' 6-Inventário de recursos'!B592 -> 0 | AD120: =' 6-Inventário de recursos'!D592 -> 0 | AE120: =' 6-Inventário de recursos'!C592 -> 0 | AF120: =' 6-Inventário de recursos'!E592 -> 0 | AG120: =' 6-Inventário de recursos'!F592 -> 0 | AH120: =' 6-Inventário de recursos'!L123 -> 0 | AI120: =' 6-Inventário de recursos'!H592 -> 0 | AJ120: =' 6-Inventário de recursos'!#REF! -> 
AC121: =' 6-Inventário de recursos'!B593 -> 0 | AD121: =' 6-Inventário de recursos'!D593 -> 0 | AE121: =' 6-Inventário de recursos'!C593 -> 0 | AF121: =' 6-Inventário de recursos'!E593 -> 0 | AG121: =' 6-Inventário de recursos'!F593 -> 0 | AH121: =' 6-Inventário de recursos'!L124 -> 0 | AI121: =' 6-Inventário de recursos'!H593 -> 0 | AJ121: =' 6-Inventário de recursos'!#REF! -> 
AC122: =' 6-Inventário de recursos'!B594 -> 0 | AD122: =' 6-Inventário de recursos'!D594 -> 0 | AE122: =' 6-Inventário de recursos'!C594 -> 0 | AF122: =' 6-Inventário de recursos'!E594 -> 0 | AG122: =' 6-Inventário de recursos'!F594 -> 0 | AH122: =' 6-Inventário de recursos'!L125 -> 0 | AI122: =' 6-Inventário de recursos'!H594 -> 0 | AJ122: =' 6-Inventário de recursos'!#REF! -> 
AC123: =' 6-Inventário de recursos'!B595 -> 0 | AD123: =' 6-Inventário de recursos'!D595 -> 0 | AE123: =' 6-Inventário de recursos'!C595 -> 0 | AF123: =' 6-Inventário de recursos'!E595 -> 0 | AG123: =' 6-Inventário de recursos'!F595 -> 0 | AH123: =' 6-Inventário de recursos'!L126 -> 0 | AI123: =' 6-Inventário de recursos'!H595 -> 0 | AJ123: =' 6-Inventário de recursos'!#REF! -> 
AC124: =' 6-Inventário de recursos'!B596 -> 0 | AD124: =' 6-Inventário de recursos'!D596 -> 0 | AE124: =' 6-Inventário de recursos'!C596 -> 0 | AF124: =' 6-Inventário de recursos'!E596 -> 0 | AG124: =' 6-Inventário de recursos'!F596 -> 0 | AH124: =' 6-Inventário de recursos'!L127 -> 0 | AI124: =' 6-Inventário de recursos'!H596 -> 0 | AJ124: =' 6-Inventário de recursos'!#REF! -> 
AC125: =' 6-Inventário de recursos'!B597 -> 0 | AD125: =' 6-Inventário de recursos'!D597 -> 0 | AE125: =' 6-Inventário de recursos'!C597 -> 0 | AF125: =' 6-Inventário de recursos'!E597 -> 0 | AG125: =' 6-Inventário de recursos'!F597 -> 0 | AH125: =' 6-Inventário de recursos'!L128 -> 0 | AI125: =' 6-Inventário de recursos'!H597 -> 0 | AJ125: =' 6-Inventário de recursos'!#REF! -> 
AC126: =' 6-Inventário de recursos'!B598 -> 0 | AD126: =' 6-Inventário de recursos'!D598 -> 0 | AE126: =' 6-Inventário de recursos'!C598 -> 0 | AF126: =' 6-Inventário de recursos'!E598 -> 0 | AG126: =' 6-Inventário de recursos'!F598 -> 0 | AH126: =' 6-Inventário de recursos'!L129 -> 0 | AI126: =' 6-Inventário de recursos'!H598 -> 0 | AJ126: =' 6-Inventário de recursos'!#REF! -> 
AC127: =' 6-Inventário de recursos'!B599 -> 0 | AD127: =' 6-Inventário de recursos'!D599 -> 0 | AE127: =' 6-Inventário de recursos'!C599 -> 0 | AF127: =' 6-Inventário de recursos'!E599 -> 0 | AG127: =' 6-Inventário de recursos'!F599 -> 0 | AH127: =' 6-Inventário de recursos'!L130 -> 0 | AI127: =' 6-Inventário de recursos'!H599 -> 0 | AJ127: =' 6-Inventário de recursos'!#REF! -> 
AC128: =' 6-Inventário de recursos'!B600 -> 0 | AD128: =' 6-Inventário de recursos'!D600 -> 0 | AE128: =' 6-Inventário de recursos'!C600 -> 0 | AF128: =' 6-Inventário de recursos'!E600 -> 0 | AG128: =' 6-Inventário de recursos'!F600 -> 0 | AH128: =' 6-Inventário de recursos'!L131 -> 0 | AI128: =' 6-Inventário de recursos'!H600 -> 0 | AJ128: =' 6-Inventário de recursos'!#REF! -> 
AC129: =' 6-Inventário de recursos'!B601 -> 0 | AD129: =' 6-Inventário de recursos'!D601 -> 0 | AE129: =' 6-Inventário de recursos'!C601 -> 0 | AF129: =' 6-Inventário de recursos'!E601 -> 0 | AG129: =' 6-Inventário de recursos'!F601 -> 0 | AH129: =' 6-Inventário de recursos'!L132 -> 0 | AI129: =' 6-Inventário de recursos'!H601 -> 0 | AJ129: =' 6-Inventário de recursos'!#REF! -> 
AC130: =' 6-Inventário de recursos'!B602 -> 0 | AD130: =' 6-Inventário de recursos'!D602 -> 0 | AE130: =' 6-Inventário de recursos'!C602 -> 0 | AF130: =' 6-Inventário de recursos'!E602 -> 0 | AG130: =' 6-Inventário de recursos'!F602 -> 0 | AH130: =' 6-Inventário de recursos'!L133 -> 0 | AI130: =' 6-Inventário de recursos'!H602 -> 0 | AJ130: =' 6-Inventário de recursos'!#REF! -> 
AC131: =' 6-Inventário de recursos'!B603 -> 0 | AD131: =' 6-Inventário de recursos'!D603 -> 0 | AE131: =' 6-Inventário de recursos'!C603 -> 0 | AF131: =' 6-Inventário de recursos'!E603 -> 0 | AG131: =' 6-Inventário de recursos'!F603 -> 0 | AH131: =' 6-Inventário de recursos'!L134 -> 0 | AI131: =' 6-Inventário de recursos'!H603 -> 0 | AJ131: =' 6-Inventário de recursos'!#REF! -> 
AC132: =' 6-Inventário de recursos'!B604 -> 0 | AD132: =' 6-Inventário de recursos'!D604 -> 0 | AE132: =' 6-Inventário de recursos'!C604 -> 0 | AF132: =' 6-Inventário de recursos'!E604 -> 0 | AG132: =' 6-Inventário de recursos'!F604 -> 0 | AH132: =' 6-Inventário de recursos'!L135 -> 0 | AI132: =' 6-Inventário de recursos'!H604 -> 0 | AJ132: =' 6-Inventário de recursos'!#REF! -> 
AC133: =' 6-Inventário de recursos'!B605 -> 0 | AD133: =' 6-Inventário de recursos'!D605 -> 0 | AE133: =' 6-Inventário de recursos'!C605 -> 0 | AF133: =' 6-Inventário de recursos'!E605 -> 0 | AG133: =' 6-Inventário de recursos'!F605 -> 0 | AH133: =' 6-Inventário de recursos'!L136 -> 0 | AI133: =' 6-Inventário de recursos'!H605 -> 0 | AJ133: =' 6-Inventário de recursos'!#REF! -> 
AC134: =' 6-Inventário de recursos'!B606 -> 0 | AD134: =' 6-Inventário de recursos'!D606 -> 0 | AE134: =' 6-Inventário de recursos'!C606 -> 0 | AF134: =' 6-Inventário de recursos'!E606 -> 0 | AG134: =' 6-Inventário de recursos'!F606 -> 0 | AH134: =' 6-Inventário de recursos'!L137 -> 0 | AI134: =' 6-Inventário de recursos'!H606 -> 0 | AJ134: =' 6-Inventário de recursos'!#REF! -> 
AC135: =' 6-Inventário de recursos'!B607 -> 0 | AD135: =' 6-Inventário de recursos'!D607 -> 0 | AE135: =' 6-Inventário de recursos'!C607 -> 0 | AF135: =' 6-Inventário de recursos'!E607 -> 0 | AG135: =' 6-Inventário de recursos'!F607 -> 0 | AH135: =' 6-Inventário de recursos'!L138 -> 0 | AI135: =' 6-Inventário de recursos'!H607 -> 0 | AJ135: =' 6-Inventário de recursos'!#REF! -> 
AC136: =' 6-Inventário de recursos'!B608 -> 0 | AD136: =' 6-Inventário de recursos'!D608 -> 0 | AE136: =' 6-Inventário de recursos'!C608 -> 0 | AF136: =' 6-Inventário de recursos'!E608 -> 0 | AG136: =' 6-Inventário de recursos'!F608 -> 0 | AH136: =' 6-Inventário de recursos'!L139 -> 0 | AI136: =' 6-Inventário de recursos'!H608 -> 0 | AJ136: =' 6-Inventário de recursos'!#REF! -> 
AC137: =' 6-Inventário de recursos'!B609 -> 0 | AD137: =' 6-Inventário de recursos'!D609 -> 0 | AE137: =' 6-Inventário de recursos'!C609 -> 0 | AF137: =' 6-Inventário de recursos'!E609 -> 0 | AG137: =' 6-Inventário de recursos'!F609 -> 0 | AH137: =' 6-Inventário de recursos'!L140 -> 0 | AI137: =' 6-Inventário de recursos'!H609 -> 0 | AJ137: =' 6-Inventário de recursos'!#REF! -> 
AC138: =' 6-Inventário de recursos'!B610 -> 0 | AD138: =' 6-Inventário de recursos'!D610 -> 0 | AE138: =' 6-Inventário de recursos'!C610 -> 0 | AF138: =' 6-Inventário de recursos'!E610 -> 0 | AG138: =' 6-Inventário de recursos'!F610 -> 0 | AH138: =' 6-Inventário de recursos'!L141 -> 0 | AI138: =' 6-Inventário de recursos'!H610 -> 0 | AJ138: =' 6-Inventário de recursos'!#REF! -> 
AC139: =' 6-Inventário de recursos'!B611 -> 0 | AD139: =' 6-Inventário de recursos'!D611 -> 0 | AE139: =' 6-Inventário de recursos'!C611 -> 0 | AF139: =' 6-Inventário de recursos'!E611 -> 0 | AG139: =' 6-Inventário de recursos'!F611 -> 0 | AH139: =' 6-Inventário de recursos'!L142 -> 0 | AI139: =' 6-Inventário de recursos'!H611 -> 0 | AJ139: =' 6-Inventário de recursos'!#REF! -> 
AC140: =' 6-Inventário de recursos'!B612 -> 0 | AD140: =' 6-Inventário de recursos'!D612 -> 0 | AE140: =' 6-Inventário de recursos'!C612 -> 0 | AF140: =' 6-Inventário de recursos'!E612 -> 0 | AG140: =' 6-Inventário de recursos'!F612 -> 0 | AH140: =' 6-Inventário de recursos'!L143 -> 0 | AI140: =' 6-Inventário de recursos'!H612 -> 0 | AJ140: =' 6-Inventário de recursos'!#REF! -> 
AC141: =' 6-Inventário de recursos'!B613 -> 0 | AD141: =' 6-Inventário de recursos'!D613 -> 0 | AE141: =' 6-Inventário de recursos'!C613 -> 0 | AF141: =' 6-Inventário de recursos'!E613 -> 0 | AG141: =' 6-Inventário de recursos'!F613 -> 0 | AH141: =' 6-Inventário de recursos'!L144 -> 0 | AI141: =' 6-Inventário de recursos'!H613 -> 0 | AJ141: =' 6-Inventário de recursos'!#REF! -> 
AC142: =' 6-Inventário de recursos'!B614 -> 0 | AD142: =' 6-Inventário de recursos'!D614 -> 0 | AE142: =' 6-Inventário de recursos'!C614 -> 0 | AF142: =' 6-Inventário de recursos'!E614 -> 0 | AG142: =' 6-Inventário de recursos'!F614 -> 0 | AH142: =' 6-Inventário de recursos'!L145 -> 0 | AI142: =' 6-Inventário de recursos'!H614 -> 0 | AJ142: =' 6-Inventário de recursos'!#REF! -> 
AC143: =' 6-Inventário de recursos'!B615 -> 0 | AD143: =' 6-Inventário de recursos'!D615 -> 0 | AE143: =' 6-Inventário de recursos'!C615 -> 0 | AF143: =' 6-Inventário de recursos'!E615 -> 0 | AG143: =' 6-Inventário de recursos'!F615 -> 0 | AH143: =' 6-Inventário de recursos'!L146 -> 0 | AI143: =' 6-Inventário de recursos'!H615 -> 0 | AJ143: =' 6-Inventário de recursos'!#REF! -> 
AC144: =' 6-Inventário de recursos'!B616 -> 0 | AD144: =' 6-Inventário de recursos'!D616 -> 0 | AE144: =' 6-Inventário de recursos'!C616 -> 0 | AF144: =' 6-Inventário de recursos'!E616 -> 0 | AG144: =' 6-Inventário de recursos'!F616 -> 0 | AH144: =' 6-Inventário de recursos'!L147 -> 0 | AI144: =' 6-Inventário de recursos'!H616 -> 0 | AJ144: =' 6-Inventário de recursos'!#REF! -> 
AC145: =' 6-Inventário de recursos'!B617 -> 0 | AD145: =' 6-Inventário de recursos'!D617 -> 0 | AE145: =' 6-Inventário de recursos'!C617 -> 0 | AF145: =' 6-Inventário de recursos'!E617 -> 0 | AG145: =' 6-Inventário de recursos'!F617 -> 0 | AH145: =' 6-Inventário de recursos'!L148 -> 0 | AI145: =' 6-Inventário de recursos'!H617 -> 0 | AJ145: =' 6-Inventário de recursos'!#REF! -> 
AC146: =' 6-Inventário de recursos'!B618 -> 0 | AD146: =' 6-Inventário de recursos'!D618 -> 0 | AE146: =' 6-Inventário de recursos'!C618 -> 0 | AF146: =' 6-Inventário de recursos'!E618 -> 0 | AG146: =' 6-Inventário de recursos'!F618 -> 0 | AH146: =' 6-Inventário de recursos'!L149 -> 0 | AI146: =' 6-Inventário de recursos'!H618 -> 0 | AJ146: =' 6-Inventário de recursos'!#REF! -> 
AC147: =' 6-Inventário de recursos'!B619 -> 0 | AD147: =' 6-Inventário de recursos'!D619 -> 0 | AE147: =' 6-Inventário de recursos'!C619 -> 0 | AF147: =' 6-Inventário de recursos'!E619 -> 0 | AG147: =' 6-Inventário de recursos'!F619 -> 0 | AH147: =' 6-Inventário de recursos'!L150 -> 0 | AI147: =' 6-Inventário de recursos'!H619 -> 0 | AJ147: =' 6-Inventário de recursos'!#REF! -> 
AC148: =' 6-Inventário de recursos'!B620 -> 0 | AD148: =' 6-Inventário de recursos'!D620 -> 0 | AE148: =' 6-Inventário de recursos'!C620 -> 0 | AF148: =' 6-Inventário de recursos'!E620 -> 0 | AG148: =' 6-Inventário de recursos'!F620 -> 0 | AH148: =' 6-Inventário de recursos'!L151 -> 0 | AI148: =' 6-Inventário de recursos'!H620 -> 0 | AJ148: =' 6-Inventário de recursos'!#REF! -> 
AC149: =' 6-Inventário de recursos'!B621 -> 0 | AD149: =' 6-Inventário de recursos'!D621 -> 0 | AE149: =' 6-Inventário de recursos'!C621 -> 0 | AF149: =' 6-Inventário de recursos'!E621 -> 0 | AG149: =' 6-Inventário de recursos'!F621 -> 0 | AH149: =' 6-Inventário de recursos'!L152 -> 0 | AI149: =' 6-Inventário de recursos'!H621 -> 0 | AJ149: =' 6-Inventário de recursos'!#REF! -> 
AC150: =' 6-Inventário de recursos'!B622 -> 0 | AD150: =' 6-Inventário de recursos'!D622 -> 0 | AE150: =' 6-Inventário de recursos'!C622 -> 0 | AF150: =' 6-Inventário de recursos'!E622 -> 0 | AG150: =' 6-Inventário de recursos'!F622 -> 0 | AH150: =' 6-Inventário de recursos'!L153 -> 0 | AI150: =' 6-Inventário de recursos'!H622 -> 0 | AJ150: =' 6-Inventário de recursos'!#REF! -> 
AC151: =' 6-Inventário de recursos'!B623 -> 0 | AD151: =' 6-Inventário de recursos'!D623 -> 0 | AE151: =' 6-Inventário de recursos'!C623 -> 0 | AF151: =' 6-Inventário de recursos'!E623 -> 0 | AG151: =' 6-Inventário de recursos'!F623 -> 0 | AH151: =' 6-Inventário de recursos'!L154 -> 0 | AI151: =' 6-Inventário de recursos'!H623 -> 0 | AJ151: =' 6-Inventário de recursos'!#REF! -> 
AC152: =' 6-Inventário de recursos'!B624 -> 0 | AD152: =' 6-Inventário de recursos'!D624 -> 0 | AE152: =' 6-Inventário de recursos'!C624 -> 0 | AF152: =' 6-Inventário de recursos'!E624 -> 0 | AG152: =' 6-Inventário de recursos'!F624 -> 0 | AH152: =' 6-Inventário de recursos'!L155 -> 0 | AI152: =' 6-Inventário de recursos'!H624 -> 0 | AJ152: =' 6-Inventário de recursos'!#REF! -> 
AC153: =' 6-Inventário de recursos'!B625 -> 0 | AD153: =' 6-Inventário de recursos'!D625 -> 0 | AE153: =' 6-Inventário de recursos'!C625 -> 0 | AF153: =' 6-Inventário de recursos'!E625 -> 0 | AG153: =' 6-Inventário de recursos'!F625 -> 0 | AH153: =' 6-Inventário de recursos'!L156 -> 0 | AI153: =' 6-Inventário de recursos'!H625 -> 0 | AJ153: =' 6-Inventário de recursos'!#REF! -> 
AC154: =' 6-Inventário de recursos'!B626 -> 0 | AD154: =' 6-Inventário de recursos'!D626 -> 0 | AE154: =' 6-Inventário de recursos'!C626 -> 0 | AF154: =' 6-Inventário de recursos'!E626 -> 0 | AG154: =' 6-Inventário de recursos'!F626 -> 0 | AH154: =' 6-Inventário de recursos'!L157 -> 0 | AI154: =' 6-Inventário de recursos'!H626 -> 0 | AJ154: =' 6-Inventário de recursos'!#REF! -> 
AC155: =' 6-Inventário de recursos'!B627 -> 0 | AD155: =' 6-Inventário de recursos'!D627 -> 0 | AE155: =' 6-Inventário de recursos'!C627 -> 0 | AF155: =' 6-Inventário de recursos'!E627 -> 0 | AG155: =' 6-Inventário de recursos'!F627 -> 0 | AH155: =' 6-Inventário de recursos'!L158 -> 0 | AI155: =' 6-Inventário de recursos'!H627 -> 0 | AJ155: =' 6-Inventário de recursos'!#REF! -> 
AC156: =' 6-Inventário de recursos'!B628 -> 0 | AD156: =' 6-Inventário de recursos'!D628 -> 0 | AE156: =' 6-Inventário de recursos'!C628 -> 0 | AF156: =' 6-Inventário de recursos'!E628 -> 0 | AG156: =' 6-Inventário de recursos'!F628 -> 0 | AH156: =' 6-Inventário de recursos'!L159 -> 0 | AI156: =' 6-Inventário de recursos'!H628 -> 0 | AJ156: =' 6-Inventário de recursos'!#REF! -> 
AC157: =' 6-Inventário de recursos'!B629 -> 0 | AD157: =' 6-Inventário de recursos'!D629 -> 0 | AE157: =' 6-Inventário de recursos'!C629 -> 0 | AF157: =' 6-Inventário de recursos'!E629 -> 0 | AG157: =' 6-Inventário de recursos'!F629 -> 0 | AH157: =' 6-Inventário de recursos'!L160 -> 0 | AI157: =' 6-Inventário de recursos'!H629 -> 0 | AJ157: =' 6-Inventário de recursos'!#REF! -> 
AC158: =' 6-Inventário de recursos'!B630 -> 0 | AD158: =' 6-Inventário de recursos'!D630 -> 0 | AE158: =' 6-Inventário de recursos'!C630 -> 0 | AF158: =' 6-Inventário de recursos'!E630 -> 0 | AG158: =' 6-Inventário de recursos'!F630 -> 0 | AH158: =' 6-Inventário de recursos'!L161 -> 0 | AI158: =' 6-Inventário de recursos'!H630 -> 0 | AJ158: =' 6-Inventário de recursos'!#REF! -> 
AC159: =' 6-Inventário de recursos'!B631 -> 0 | AD159: =' 6-Inventário de recursos'!D631 -> 0 | AE159: =' 6-Inventário de recursos'!C631 -> 0 | AF159: =' 6-Inventário de recursos'!E631 -> 0 | AG159: =' 6-Inventário de recursos'!F631 -> 0 | AH159: =' 6-Inventário de recursos'!L162 -> 0 | AI159: =' 6-Inventário de recursos'!H631 -> 0 | AJ159: =' 6-Inventário de recursos'!#REF! -> 
AC160: =' 6-Inventário de recursos'!B632 -> 0 | AD160: =' 6-Inventário de recursos'!D632 -> 0 | AE160: =' 6-Inventário de recursos'!C632 -> 0 | AF160: =' 6-Inventário de recursos'!E632 -> 0 | AG160: =' 6-Inventário de recursos'!F632 -> 0 | AH160: =' 6-Inventário de recursos'!L163 -> 0 | AI160: =' 6-Inventário de recursos'!H632 -> 0 | AJ160: =' 6-Inventário de recursos'!#REF! -> 
AC161: =' 6-Inventário de recursos'!B633 -> 0 | AD161: =' 6-Inventário de recursos'!D633 -> 0 | AE161: =' 6-Inventário de recursos'!C633 -> 0 | AF161: =' 6-Inventário de recursos'!E633 -> 0 | AG161: =' 6-Inventário de recursos'!F633 -> 0 | AH161: =' 6-Inventário de recursos'!L164 -> 0 | AI161: =' 6-Inventário de recursos'!H633 -> 0 | AJ161: =' 6-Inventário de recursos'!#REF! -> 
AC162: =' 6-Inventário de recursos'!B634 -> 0 | AD162: =' 6-Inventário de recursos'!D634 -> 0 | AE162: =' 6-Inventário de recursos'!C634 -> 0 | AF162: =' 6-Inventário de recursos'!E634 -> 0 | AG162: =' 6-Inventário de recursos'!F634 -> 0 | AH162: =' 6-Inventário de recursos'!L165 -> 0 | AI162: =' 6-Inventário de recursos'!H634 -> 0 | AJ162: =' 6-Inventário de recursos'!#REF! -> 
AC163: =' 6-Inventário de recursos'!B635 -> 0 | AD163: =' 6-Inventário de recursos'!D635 -> 0 | AE163: =' 6-Inventário de recursos'!C635 -> 0 | AF163: =' 6-Inventário de recursos'!E635 -> 0 | AG163: =' 6-Inventário de recursos'!F635 -> 0 | AH163: =' 6-Inventário de recursos'!L166 -> 0 | AI163: =' 6-Inventário de recursos'!H635 -> 0 | AJ163: =' 6-Inventário de recursos'!#REF! -> 
AC164: =' 6-Inventário de recursos'!B636 -> 0 | AD164: =' 6-Inventário de recursos'!D636 -> 0 | AE164: =' 6-Inventário de recursos'!C636 -> 0 | AF164: =' 6-Inventário de recursos'!E636 -> 0 | AG164: =' 6-Inventário de recursos'!F636 -> 0 | AH164: =' 6-Inventário de recursos'!L167 -> 0 | AI164: =' 6-Inventário de recursos'!H636 -> 0 | AJ164: =' 6-Inventário de recursos'!#REF! -> 
AC165: =' 6-Inventário de recursos'!B637 -> 0 | AD165: =' 6-Inventário de recursos'!D637 -> 0 | AE165: =' 6-Inventário de recursos'!C637 -> 0 | AF165: =' 6-Inventário de recursos'!E637 -> 0 | AG165: =' 6-Inventário de recursos'!F637 -> 0 | AH165: =' 6-Inventário de recursos'!L168 -> 0 | AI165: =' 6-Inventário de recursos'!H637 -> 0 | AJ165: =' 6-Inventário de recursos'!#REF! -> 
AC166: =' 6-Inventário de recursos'!B638 -> 0 | AD166: =' 6-Inventário de recursos'!D638 -> 0 | AE166: =' 6-Inventário de recursos'!C638 -> 0 | AF166: =' 6-Inventário de recursos'!E638 -> 0 | AG166: =' 6-Inventário de recursos'!F638 -> 0 | AH166: =' 6-Inventário de recursos'!L169 -> 0 | AI166: =' 6-Inventário de recursos'!H638 -> 0 | AJ166: =' 6-Inventário de recursos'!#REF! -> 
AC167: =' 6-Inventário de recursos'!B639 -> 0 | AD167: =' 6-Inventário de recursos'!D639 -> 0 | AE167: =' 6-Inventário de recursos'!C639 -> 0 | AF167: =' 6-Inventário de recursos'!E639 -> 0 | AG167: =' 6-Inventário de recursos'!F639 -> 0 | AH167: =' 6-Inventário de recursos'!L170 -> 0 | AI167: =' 6-Inventário de recursos'!H639 -> 0 | AJ167: =' 6-Inventário de recursos'!#REF! -> 
AC168: =' 6-Inventário de recursos'!B640 -> 0 | AD168: =' 6-Inventário de recursos'!D640 -> 0 | AE168: =' 6-Inventário de recursos'!C640 -> 0 | AF168: =' 6-Inventário de recursos'!E640 -> 0 | AG168: =' 6-Inventário de recursos'!F640 -> 0 | AH168: =' 6-Inventário de recursos'!L171 -> 0 | AI168: =' 6-Inventário de recursos'!H640 -> 0 | AJ168: =' 6-Inventário de recursos'!#REF! -> 
AC169: =' 6-Inventário de recursos'!B641 -> 0 | AD169: =' 6-Inventário de recursos'!D641 -> 0 | AE169: =' 6-Inventário de recursos'!C641 -> 0 | AF169: =' 6-Inventário de recursos'!E641 -> 0 | AG169: =' 6-Inventário de recursos'!F641 -> 0 | AH169: =' 6-Inventário de recursos'!L172 -> 0 | AI169: =' 6-Inventário de recursos'!H641 -> 0 | AJ169: =' 6-Inventário de recursos'!#REF! -> 
AC170: =' 6-Inventário de recursos'!B642 -> 0 | AD170: =' 6-Inventário de recursos'!D642 -> 0 | AE170: =' 6-Inventário de recursos'!C642 -> 0 | AF170: =' 6-Inventário de recursos'!E642 -> 0 | AG170: =' 6-Inventário de recursos'!F642 -> 0 | AH170: =' 6-Inventário de recursos'!L173 -> 0 | AI170: =' 6-Inventário de recursos'!H642 -> 0 | AJ170: =' 6-Inventário de recursos'!#REF! -> 
AC171: =' 6-Inventário de recursos'!B643 -> 0 | AD171: =' 6-Inventário de recursos'!D643 -> 0 | AE171: =' 6-Inventário de recursos'!C643 -> 0 | AF171: =' 6-Inventário de recursos'!E643 -> 0 | AG171: =' 6-Inventário de recursos'!F643 -> 0 | AH171: =' 6-Inventário de recursos'!L174 -> 0 | AI171: =' 6-Inventário de recursos'!H643 -> 0 | AJ171: =' 6-Inventário de recursos'!#REF! -> 
AC172: =' 6-Inventário de recursos'!B644 -> 0 | AD172: =' 6-Inventário de recursos'!D644 -> 0 | AE172: =' 6-Inventário de recursos'!C644 -> 0 | AF172: =' 6-Inventário de recursos'!E644 -> 0 | AG172: =' 6-Inventário de recursos'!F644 -> 0 | AH172: =' 6-Inventário de recursos'!L175 -> 0 | AI172: =' 6-Inventário de recursos'!H644 -> 0 | AJ172: =' 6-Inventário de recursos'!#REF! -> 
AC173: =' 6-Inventário de recursos'!B645 -> 0 | AD173: =' 6-Inventário de recursos'!D645 -> 0 | AE173: =' 6-Inventário de recursos'!C645 -> 0 | AF173: =' 6-Inventário de recursos'!E645 -> 0 | AG173: =' 6-Inventário de recursos'!F645 -> 0 | AH173: =' 6-Inventário de recursos'!L176 -> 0 | AI173: =' 6-Inventário de recursos'!H645 -> 0 | AJ173: =' 6-Inventário de recursos'!#REF! -> 
AC174: =' 6-Inventário de recursos'!B646 -> 0 | AD174: =' 6-Inventário de recursos'!D646 -> 0 | AE174: =' 6-Inventário de recursos'!C646 -> 0 | AF174: =' 6-Inventário de recursos'!E646 -> 0 | AG174: =' 6-Inventário de recursos'!F646 -> 0 | AH174: =' 6-Inventário de recursos'!L177 -> 0 | AI174: =' 6-Inventário de recursos'!H646 -> 0 | AJ174: =' 6-Inventário de recursos'!#REF! -> 
AC175: =' 6-Inventário de recursos'!B647 -> 0 | AD175: =' 6-Inventário de recursos'!D647 -> 0 | AE175: =' 6-Inventário de recursos'!C647 -> 0 | AF175: =' 6-Inventário de recursos'!E647 -> 0 | AG175: =' 6-Inventário de recursos'!F647 -> 0 | AH175: =' 6-Inventário de recursos'!L178 -> 0 | AI175: =' 6-Inventário de recursos'!H647 -> 0 | AJ175: =' 6-Inventário de recursos'!#REF! -> 
AC176: =' 6-Inventário de recursos'!B648 -> 0 | AD176: =' 6-Inventário de recursos'!D648 -> 0 | AE176: =' 6-Inventário de recursos'!C648 -> 0 | AF176: =' 6-Inventário de recursos'!E648 -> 0 | AG176: =' 6-Inventário de recursos'!F648 -> 0 | AH176: =' 6-Inventário de recursos'!L179 -> 0 | AI176: =' 6-Inventário de recursos'!H648 -> 0 | AJ176: =' 6-Inventário de recursos'!#REF! -> 
AC177: =' 6-Inventário de recursos'!B649 -> 0 | AD177: =' 6-Inventário de recursos'!D649 -> 0 | AE177: =' 6-Inventário de recursos'!C649 -> 0 | AF177: =' 6-Inventário de recursos'!E649 -> 0 | AG177: =' 6-Inventário de recursos'!F649 -> 0 | AH177: =' 6-Inventário de recursos'!L180 -> 0 | AI177: =' 6-Inventário de recursos'!H649 -> 0 | AJ177: =' 6-Inventário de recursos'!#REF! -> 
AC178: =' 6-Inventário de recursos'!B650 -> 0 | AD178: =' 6-Inventário de recursos'!D650 -> 0 | AE178: =' 6-Inventário de recursos'!C650 -> 0 | AF178: =' 6-Inventário de recursos'!E650 -> 0 | AG178: =' 6-Inventário de recursos'!F650 -> 0 | AH178: =' 6-Inventário de recursos'!L181 -> 0 | AI178: =' 6-Inventário de recursos'!H650 -> 0 | AJ178: =' 6-Inventário de recursos'!#REF! -> 
AC179: =' 6-Inventário de recursos'!B651 -> 0 | AD179: =' 6-Inventário de recursos'!D651 -> 0 | AE179: =' 6-Inventário de recursos'!C651 -> 0 | AF179: =' 6-Inventário de recursos'!E651 -> 0 | AG179: =' 6-Inventário de recursos'!F651 -> 0 | AH179: =' 6-Inventário de recursos'!L182 -> 0 | AI179: =' 6-Inventário de recursos'!H651 -> 0 | AJ179: =' 6-Inventário de recursos'!#REF! -> 
AC180: =' 6-Inventário de recursos'!B652 -> 0 | AD180: =' 6-Inventário de recursos'!D652 -> 0 | AE180: =' 6-Inventário de recursos'!C652 -> 0 | AF180: =' 6-Inventário de recursos'!E652 -> 0 | AG180: =' 6-Inventário de recursos'!F652 -> 0 | AH180: =' 6-Inventário de recursos'!L183 -> 0 | AI180: =' 6-Inventário de recursos'!H652 -> 0 | AJ180: =' 6-Inventário de recursos'!#REF! -> 
AC181: =' 6-Inventário de recursos'!B653 -> 0 | AD181: =' 6-Inventário de recursos'!D653 -> 0 | AE181: =' 6-Inventário de recursos'!C653 -> 0 | AF181: =' 6-Inventário de recursos'!E653 -> 0 | AG181: =' 6-Inventário de recursos'!F653 -> 0 | AH181: =' 6-Inventário de recursos'!L184 -> 0 | AI181: =' 6-Inventário de recursos'!H653 -> 0 | AJ181: =' 6-Inventário de recursos'!#REF! -> 
AC182: =' 6-Inventário de recursos'!B654 -> 0 | AD182: =' 6-Inventário de recursos'!D654 -> 0 | AE182: =' 6-Inventário de recursos'!C654 -> 0 | AF182: =' 6-Inventário de recursos'!E654 -> 0 | AG182: =' 6-Inventário de recursos'!F654 -> 0 | AH182: =' 6-Inventário de recursos'!L185 -> 0 | AI182: =' 6-Inventário de recursos'!H654 -> 0 | AJ182: =' 6-Inventário de recursos'!#REF! -> 
AC183: =' 6-Inventário de recursos'!B655 -> 0 | AD183: =' 6-Inventário de recursos'!D655 -> 0 | AE183: =' 6-Inventário de recursos'!C655 -> 0 | AF183: =' 6-Inventário de recursos'!E655 -> 0 | AG183: =' 6-Inventário de recursos'!F655 -> 0 | AH183: =' 6-Inventário de recursos'!L186 -> 0 | AI183: =' 6-Inventário de recursos'!H655 -> 0 | AJ183: =' 6-Inventário de recursos'!#REF! -> 
AC184: =' 6-Inventário de recursos'!B656 -> 0 | AD184: =' 6-Inventário de recursos'!D656 -> 0 | AE184: =' 6-Inventário de recursos'!C656 -> 0 | AF184: =' 6-Inventário de recursos'!E656 -> 0 | AG184: =' 6-Inventário de recursos'!F656 -> 0 | AH184: =' 6-Inventário de recursos'!L187 -> 0 | AI184: =' 6-Inventário de recursos'!H656 -> 0 | AJ184: =' 6-Inventário de recursos'!#REF! -> 
AC185: =' 6-Inventário de recursos'!B657 -> 0 | AD185: =' 6-Inventário de recursos'!D657 -> 0 | AE185: =' 6-Inventário de recursos'!C657 -> 0 | AF185: =' 6-Inventário de recursos'!E657 -> 0 | AG185: =' 6-Inventário de recursos'!F657 -> 0 | AH185: =' 6-Inventário de recursos'!L188 -> 0 | AI185: =' 6-Inventário de recursos'!H657 -> 0 | AJ185: =' 6-Inventário de recursos'!#REF! -> 
AC186: =' 6-Inventário de recursos'!B658 -> 0 | AD186: =' 6-Inventário de recursos'!D658 -> 0 | AE186: =' 6-Inventário de recursos'!C658 -> 0 | AF186: =' 6-Inventário de recursos'!E658 -> 0 | AG186: =' 6-Inventário de recursos'!F658 -> 0 | AH186: =' 6-Inventário de recursos'!L189 -> 0 | AI186: =' 6-Inventário de recursos'!H658 -> 0 | AJ186: =' 6-Inventário de recursos'!#REF! -> 
AC187: =' 6-Inventário de recursos'!B659 -> 0 | AD187: =' 6-Inventário de recursos'!D659 -> 0 | AE187: =' 6-Inventário de recursos'!C659 -> 0 | AF187: =' 6-Inventário de recursos'!E659 -> 0 | AG187: =' 6-Inventário de recursos'!F659 -> 0 | AH187: =' 6-Inventário de recursos'!L190 -> 0 | AI187: =' 6-Inventário de recursos'!H659 -> 0 | AJ187: =' 6-Inventário de recursos'!#REF! -> 
AC188: =' 6-Inventário de recursos'!B660 -> 0 | AD188: =' 6-Inventário de recursos'!D660 -> 0 | AE188: =' 6-Inventário de recursos'!C660 -> 0 | AF188: =' 6-Inventário de recursos'!E660 -> 0 | AG188: =' 6-Inventário de recursos'!F660 -> 0 | AH188: =' 6-Inventário de recursos'!L191 -> 0 | AI188: =' 6-Inventário de recursos'!H660 -> 0 | AJ188: =' 6-Inventário de recursos'!#REF! -> 
AC189: =' 6-Inventário de recursos'!B661 -> 0 | AD189: =' 6-Inventário de recursos'!D661 -> 0 | AE189: =' 6-Inventário de recursos'!C661 -> 0 | AF189: =' 6-Inventário de recursos'!E661 -> 0 | AG189: =' 6-Inventário de recursos'!F661 -> 0 | AH189: =' 6-Inventário de recursos'!L192 -> 0 | AI189: =' 6-Inventário de recursos'!H661 -> 0 | AJ189: =' 6-Inventário de recursos'!#REF! -> 
AC190: =' 6-Inventário de recursos'!B662 -> 0 | AD190: =' 6-Inventário de recursos'!D662 -> 0 | AE190: =' 6-Inventário de recursos'!C662 -> 0 | AF190: =' 6-Inventário de recursos'!E662 -> 0 | AG190: =' 6-Inventário de recursos'!F662 -> 0 | AH190: =' 6-Inventário de recursos'!L193 -> 0 | AI190: =' 6-Inventário de recursos'!H662 -> 0 | AJ190: =' 6-Inventário de recursos'!#REF! -> 
AC191: =' 6-Inventário de recursos'!B663 -> 0 | AD191: =' 6-Inventário de recursos'!D663 -> 0 | AE191: =' 6-Inventário de recursos'!C663 -> 0 | AF191: =' 6-Inventário de recursos'!E663 -> 0 | AG191: =' 6-Inventário de recursos'!F663 -> 0 | AH191: =' 6-Inventário de recursos'!L194 -> 0 | AI191: =' 6-Inventário de recursos'!H663 -> 0 | AJ191: =' 6-Inventário de recursos'!#REF! -> 
AC192: =' 6-Inventário de recursos'!B664 -> 0 | AD192: =' 6-Inventário de recursos'!D664 -> 0 | AE192: =' 6-Inventário de recursos'!C664 -> 0 | AF192: =' 6-Inventário de recursos'!E664 -> 0 | AG192: =' 6-Inventário de recursos'!F664 -> 0 | AH192: =' 6-Inventário de recursos'!L195 -> 0 | AI192: =' 6-Inventário de recursos'!H664 -> 0 | AJ192: =' 6-Inventário de recursos'!#REF! -> 
AC193: =' 6-Inventário de recursos'!B665 -> 0 | AD193: =' 6-Inventário de recursos'!D665 -> 0 | AE193: =' 6-Inventário de recursos'!C665 -> 0 | AF193: =' 6-Inventário de recursos'!E665 -> 0 | AG193: =' 6-Inventário de recursos'!F665 -> 0 | AH193: =' 6-Inventário de recursos'!L196 -> 0 | AI193: =' 6-Inventário de recursos'!H665 -> 0 | AJ193: =' 6-Inventário de recursos'!#REF! -> 
AC194: =' 6-Inventário de recursos'!B666 -> 0 | AD194: =' 6-Inventário de recursos'!D666 -> 0 | AE194: =' 6-Inventário de recursos'!C666 -> 0 | AF194: =' 6-Inventário de recursos'!E666 -> 0 | AG194: =' 6-Inventário de recursos'!F666 -> 0 | AH194: =' 6-Inventário de recursos'!L197 -> 0 | AI194: =' 6-Inventário de recursos'!H666 -> 0 | AJ194: =' 6-Inventário de recursos'!#REF! -> 
AC195: =' 6-Inventário de recursos'!B667 -> 0 | AD195: =' 6-Inventário de recursos'!D667 -> 0 | AE195: =' 6-Inventário de recursos'!C667 -> 0 | AF195: =' 6-Inventário de recursos'!E667 -> 0 | AG195: =' 6-Inventário de recursos'!F667 -> 0 | AH195: =' 6-Inventário de recursos'!L198 -> 0 | AI195: =' 6-Inventário de recursos'!H667 -> 0 | AJ195: =' 6-Inventário de recursos'!#REF! -> 
AC196: =' 6-Inventário de recursos'!B668 -> 0 | AD196: =' 6-Inventário de recursos'!D668 -> 0 | AE196: =' 6-Inventário de recursos'!C668 -> 0 | AF196: =' 6-Inventário de recursos'!E668 -> 0 | AG196: =' 6-Inventário de recursos'!F668 -> 0 | AH196: =' 6-Inventário de recursos'!L199 -> 0 | AI196: =' 6-Inventário de recursos'!H668 -> 0 | AJ196: =' 6-Inventário de recursos'!#REF! -> 
AC197: =' 6-Inventário de recursos'!B669 -> 0 | AD197: =' 6-Inventário de recursos'!D669 -> 0 | AE197: =' 6-Inventário de recursos'!C669 -> 0 | AF197: =' 6-Inventário de recursos'!E669 -> 0 | AG197: =' 6-Inventário de recursos'!F669 -> 0 | AH197: =' 6-Inventário de recursos'!L200 -> 0 | AI197: =' 6-Inventário de recursos'!H669 -> 0 | AJ197: =' 6-Inventário de recursos'!#REF! -> 
AC198: =' 6-Inventário de recursos'!B670 -> 0 | AD198: =' 6-Inventário de recursos'!D670 -> 0 | AE198: =' 6-Inventário de recursos'!C670 -> 0 | AF198: =' 6-Inventário de recursos'!E670 -> 0 | AG198: =' 6-Inventário de recursos'!F670 -> 0 | AH198: =' 6-Inventário de recursos'!L201 -> 0 | AI198: =' 6-Inventário de recursos'!H670 -> 0 | AJ198: =' 6-Inventário de recursos'!#REF! -> 
AC199: =' 6-Inventário de recursos'!B671 -> 0 | AD199: =' 6-Inventário de recursos'!D671 -> 0 | AE199: =' 6-Inventário de recursos'!C671 -> 0 | AF199: =' 6-Inventário de recursos'!E671 -> 0 | AG199: =' 6-Inventário de recursos'!F671 -> 0 | AH199: =' 6-Inventário de recursos'!L202 -> 0 | AI199: =' 6-Inventário de recursos'!H671 -> 0 | AJ199: =' 6-Inventário de recursos'!#REF! -> 
AC200: =' 6-Inventário de recursos'!B672 -> 0 | AD200: =' 6-Inventário de recursos'!D672 -> 0 | AE200: =' 6-Inventário de recursos'!C672 -> 0 | AF200: =' 6-Inventário de recursos'!E672 -> 0 | AG200: =' 6-Inventário de recursos'!F672 -> 0 | AH200: =' 6-Inventário de recursos'!L203 -> 0 | AI200: =' 6-Inventário de recursos'!H672 -> 0 | AJ200: =' 6-Inventário de recursos'!#REF! -> 
... 337 more rows

Sheet 8-Elemento de construção
A1: Elemento de construção
A2: ID | B2: Nome
A3: <inserir conteúdo> | B3: <inserir conteúdo>
A4: Fotografias
A6: Informação detalhada do elemento
A7: Marca | B7: <inserir conteúdo>
A8: Especificidades | B8: <inserir conteúdo>
A9: Certificação
A10: Condição | B10: <inserir conteúdo>
A11: Ano de produção | B11: <inserir conteúdo>
A12: Materiais constituintes | B12: <inserir conteúdo>
A13: Desmontagem
A15: Benefícios ambientais
A17: Substâncias perigosas
A19: Possíveis aplicações
A20: <inserir conteúdo>
A21: Potenciais utilizadores
A22: <inserir conteúdo>
A35: Informação adicional em http://closer.lnec.pt/

Sheet 9-Lista de resíduos
A1: Lista de resíduos
A2: Códigos LER para RCD (cap 17) e REEE (cap 16 e 20)
A3: 17 01 | B3: betão, tijolos, ladrilhos, telhas e materiais cerâmicos | C3: Anotado
A4: 17 01 01 | B4: betão | C4: Esp NP
A5: 17 01 02 | B5: tijolos | C5: Esp NP
A6: 17 01 03 | B6: ladrilhos, telhas e materiais cerâmicos | C6: Esp NP
A7: 17 01 06* | B7: misturas ou frações separadas de betão, tijolos, ladrilhos, telhas e materiais cerâmicos, contendo substâncias perigosas | C7: Esp P
A8: 17 01 07 | B8: misturas de betão, tijolos, ladrilhos, telhas e materiais cerâmicos, não abrangidas em 17 01 06 | C8: Esp NP
A9: 17 02 | B9: madeira, vidro e plástico | C9: Anotado
A10: 17 02 01 | B10: madeira | C10: Esp NP
A11: 17 02 02 | B11: vidro | C11: Esp NP
A12: 17 02 03 | B12: plástico | C12: Esp NP
A13: 17 02 04* | B13: vidro, plástico e madeira contendo ou contaminados com substâncias perigosas | C13: Esp P
A14: 17 03 | B14: misturas betuminosas, alcatrão e produtos de alcatrão | C14: Anotado
A15: 17 03 01* | B15: misturas betuminosas contendo alcatrão | C15: Esp P
A16: 17 03 02 | B16: misturas betuminosas não abrangidas em 17 03 01 | C16: Esp NP
A17: 17 03 03* | B17: alcatrão e produtos de alcatrão | C17: Abs P
A18: 17 04 | B18: metais (incluindo ligas metálicas) | C18: Anotado
A19: 17 04 01 | B19: cobre, bronze e latão | C19: Esp NP
A20: 17 04 02 | B20: alumínio | C20: Esp NP
A21: 17 04 03 | B21: chumbo | C21: Esp NP
A22: 17 04 04 | B22: zinco | C22: Esp NP
A23: 17 04 05 | B23: ferro e aço | C23: Esp NP
A24: 17 04 06 | B24: estanho | C24: Esp NP
A25: 17 04 07 | B25: misturas de metais | C25: Esp NP
A26: 17 04 09* | B26: resíduos metálicos contaminados com substâncias perigosas | C26: Esp P
A27: 17 04 10* | B27: cabos contendo hidrocarbonetos, alcatrão ou outras substâncias perigosas | C27: Esp P
A28: 17 04 11 | B28: cabos não abrangidos em 17 04 11 | C28: Esp NP
A29: 17 05 | B29: solos (incluindo solos escavados de locais contaminados), rochas e lamas de dragagem | C29: Anotado
A30: 17 05 03* | B30: solos e rochas, contendo substâncias perigosas | C30: Esp P
A31: 17 05 04 | B31: solos e rochas não abrangidos em 17 05 03 | C31: Esp NP
A32: 17 05 05* | B32: lamas de dragagem contendo substâncias perigosas | C32: Esp P
A33: 17 05 06 | B33: lamas de dragagem não abrangidas em 17 05 05 | C33: Esp NP
A34: 17 05 07* | B34: balastros de linhas de caminho de ferro, contendo substâncias perigosas | C34: Esp P
A35: 17 05 08 | B35: balastros de linhas de caminho de ferro não abrangidos em 17 05 07 | C35: Esp NP
A36: 17 06 | B36: materiais de isolamento e materiais de construção, contendo amianto | C36: Anotado
A37: 17 06 01* | B37: materiais de isolamento, contendo amianto | C37: Esp P
A38: 17 06 03* | B38: outros materiais de isolamento contendo ou constituídos por substâncias perigosas | C38: Esp P
A39: 17 06 04 | B39: materiais de isolamento não abrangidos em 17 06 01 e 17 06 03 | C39: Esp NP
A40: 17 06 05* | B40: materiais de construção contendo amianto | C40: Abs P
A41: 17 08 | B41: materiais de construção à base de gesso | C41: Anotado
A42: 17 08 01* | B42: materiais de construção à base de gesso contaminados com substâncias perigosas | C42: Esp P
A43: 17 08 02 | B43: materiais de construção à base de gesso não abrangidos em 17 08 01 | C43: Esp NP
A44: 17 09 | B44: outros resíduos de construção e demolição | C44: Anotado
A45: 17 09 01* | B45: resíduos de construção e demolição contendo mercúrio | C45: Esp P
A46: 17 09 02* | B46: resíduos de construção e demolição contendo PCB (por exemplo vedantes com PCB, revestimentos de piso à base de resinas com PCB, envidraçados vedados contendo PCB, condensadores com PCB) | C46: Esp P
A47: 17 09 03* | B47: outros resíduos de construção e demolição (incluindo misturas de resíduos) contendo substâncias perigosas) | C47: Esp P
A48: 17 09 04 | B48: misturas de resíduos de construção e demolição não abrangidas em 17 09 01, 17 09 02 e 17 09 03 | C48: Esp NP
A52: Códigos LER para REEE relevantes na demolição
A53: 16 02 | B53: Resíduos de equipamento elétrico e eletrónico | C53: Anotado
A54: 16 02 09* | B54: Transformadores e condensadores, contendo PCB | C54: Esp P
A55: 16 02 10* | B55: Equipamento fora de uso contendo ou contaminado por PCB, não abrangido em 16 02 09 | C55: Esp P
A56: 16 02 11* | B56: Equipamento fora de uso contendo clorofluorcarbonetos, HCFC, HFC | C56: Esp P
A57: 16 02 12* | B57: Equipamento fora de uso contendo amianto livre | C57: Esp P
A58: 16 02 13* | B58: Equipamento fora de uso, contendo componentes perigosos (ver nota 1 do Índice do Anexo da Decisão 2014/955/EU, da Comissão, de 18 de dezembro de 2014) não abrangidos em 16 02 09 a 16 02 12 | C58: Esp P
A59: 16 02 14 | B59: Equipamento fora de uso não abrangido em 16 02 09 a 16 02 13 | C59: Esp NP
A60: 16 02 15* | B60: Componentes perigosos retirados de equipamento fora de uso | C60: Esp P
A61: 16 02 16* | B61: Componentes retirados de equipamento fora de uso não abrangidos em 16 02 15 | C61: Esp P
A62: 20 01 | B62: Frações recolhidas seletivamente (exceto 15 01) | C62: Anotado
A63: 20 01 21* | B63: Lâmpadas fluorescentes e outros resíduos contendo mercúrio | C63: Abs P
A64: 20 01 23* | B64: Equipamento fora de uso contendo clorofluorcarbonetos | C64: Abs P
A65: 20 01 35* | B65: Equipamento elétrico e eletrónico fora de uso, não abrangido em 20 01 21 ou 20 01 23, contendo componentes perigosos (ver nota 1 do Índice do Anexo da Decisão 2014/955/EU, da Comissão, de 18 de dezembro de 2014 | C65: Esp P
A66: 20 01 36 | B66: Equipamento elétrico e eletrónico fora de uso não abrangido em 20 01 21, 20 01 23 ou 20 01 35 | C66: Esp NP
A69: Esp NP | B69: entrada espelho para resíduo não perigoso
A70: Esp P | B70: entrada espelho para resíduo perigoso
A71: Abs NP | B71: entrada absoluta para resíduo não perigoso
A72: Abs P | B72: entrada absoluta para resíduo perigoso

Sheet 10-Glossário
A1: Glossário
A3: Atividade de construção | B3: Atividade que tem por objeto a realização de obras, englobando todo o conjunto de atos que sejam necessários à sua concretização.
A4: Armazenagem | B4: Deposição controlada de resíduos, antes do seu tratamento e por prazo determinado, designadamente as operações R 13 e D 15.
A5: Armazenagem preliminar | B5: Deposição controlada de resíduos em instalações onde os resíduos são descarregados a fim de serem preparados para posterior transporte para efeitos de tratamento, como parte do processo de recolha.
A6: Auditor | B6: Perito ou a equipa de peritos que realiza a auditoria pré‑demolição agindo em nome do proprietário.
A7: Auditoria pré-demolição | B7: Atividade preparatória com o objetivo de (1) recolher informação sobre as qualidades e quantidades dos materiais, elementos e resíduos de construção e demolição que serão retirados durante as obras de demolição ou reabilitação de edifícios e (2) fornecer recomendações gerais e específicas visando a recuperação futura desses materiais, elementos e RCD recolhidos.
A8: Autoridade | B8: Organismo administrativo responsável pela concessão das licenças de demolição ou renovação e pela fiscalização do processo de demolição ou renovação.
A9: Centro de recolha de resíduos | B9: Local onde os resíduos são depositados e onde se procede à armazenagem e/ou triagem preliminares desses resíduos para posterior encaminhamento para tratamento.
A10: Ciclo de vida | B10: Etapas consecutivas e interligadas de um produto (ou serviço), desde a aquisição ou extração de matéria-prima a partir de recursos naturais, até ao projeto, produção, transporte/entrega, utilização, tratamento em fim de vida útil e deposição final.
A11: Desconstrução | B11: Processo de desmantelamento seletivo e sistemático de edifícios para reduzir a quantidade de resíduos criados e gerar um aprovisionamento de materiais secundários de elevado valor que são adequados para reutilização e reciclagem.
A12: Demolição | B12: Remoção total ou parcial recorrendo a métodos destrutivos. Excetua-se aqui a remoção dos materiais contendo amianto, e o acondicionamento, transporte e gestão dos respetivos resíduos de construção e demolição gerados que é efetuada de acordo com o estabelecido na Portaria n.º 40/2014, de 17 de fevereiro.
A13: Demolição seletiva | B13: Sequenciação das atividades de demolição para permitir a separação e a seleção dos materiais a fim de maximizar a sua recuperação e reciclagem.
A14: Descontaminação | B14: Redução ou remoção de substâncias contaminantes
A15: Dono da obra / Proprietário | B15: Entidade por conta de quem a obra é realizada, o dono da obra pública, nos termos definidos no Código dos Contratos Públicos (CCP), aprovado pelo Decreto-Lei n.º 18/2008, de 29 de janeiro, o concessionário relativamente a obra executada com base em contrato de concessão de obra pública, bem como qualquer pessoa ou entidade que contrate a elaboração de projeto de obra
A16: Durabilidade | B16: Capacidade de um produto, componente ou material de permanecer funcional e relevante quando usado conforme pretendido.
A17: Economia circular | B17: Modelo de produção e consumo que abrange soluções que visam lidar com desafios globais, como alterações climáticas, redução de biodiversidade, resíduos e poluição. É baseado em três princípios, impulsionados pela conceção: i) eliminar resíduos e poluição, ii) fazer circular produtos e materiais maximizando o seu valor e iii) regenerar a natureza.
A18: Economia linear | B18: Economia em que recursos finitos são extraídos visando o fabrico de produtos que são usados, por vezes sem usar todo o seu potencial, e posteriormente descartados.
A19: Edificação | B19: Atividade ou o resultado da construção, reconstrução, ampliação, alteração ou conservação de um imóvel destinado a utilização humana, bem como de qualquer outra construção que se incorpore no solo com caráter de permanência.
A20: Eliminação | B20: Qualquer operação de tratamento de resíduos que não seja de valorização, ainda que se verifique como consequência secundária a recuperação de substâncias ou de energia.
A21: Empreiteiro | B21: Pessoa singular ou coletiva habilitada, nos termos da Lei n.º 41/2015, para a execução de obras promovidas por entidades particulares (empreiteiro de obras particulares) ou para a execução de empreitadas de obras públicas (empreiteiro de obras públicas).
A22: Enchimento | B22: Operação de valorização em que são usados resíduos que não apresentam características de perigosidade, nomeadamente resíduos de construção e demolição (RCD), testados segundo os valores de referência estabelecidos no Guia Técnico da APA, I. P., para Solos Contaminados (2019), para preenchimento de áreas de escavação ou para propósitos de construção em projetos de recuperação paisagística em substituição de materiais naturais, limitando-se às quantidades estritamente necessárias para esses efeitos.
A23: Gestão de resíduos | B23: Recolha, transporte, triagem, valorização e eliminação de resíduos, incluindo a supervisão destas operações, a manutenção dos locais de eliminação após encerramento, e as medidas tomadas na qualidade de comerciante de resíduos ou corretor de resíduos.
A24: Inventário | B24: Listagem de tipos e quantidades de materiais, elementos e resíduos.
A25: Marcação CE | B25: Para produtos de construção, indica que os fabricantes se responsabilizam pela conformidade dos seus produtos com o desempenho declarado.
A26: Obra | B26: Atividade e o resultado de trabalhos de construção, reconstrução, ampliação, alteração, reabilitação, reparação, restauro, conservação e demolição de bens imóveis.
A27: Operador | B27: Qualquer pessoa singular ou coletiva que procede à gestão de resíduos.
A28: Preparação para reutilização | B28: Operações de valorização, que consistem no controlo, limpeza ou reparação, mediante as quais os produtos ou os componentes de produtos que se tenham tornado resíduos são preparados para serem reutilizados, sem qualquer outro tipo de pré-processamento.
A29: Prevenção | B29: Adoção de medidas antes de uma substância, material ou produto assumir a natureza de resíduo, destinadas a reduzir: i) a quantidade de resíduos produzidos, designadamente através do redesenho de processos, produtos e adoção de novos modelos de negócio até à otimização da utilização de recursos, da reutilização de produtos e do prolongamento do tempo de vida dos produtos; ii) os impactes adversos no ambiente e na saúde humana resultantes dos resíduos produzidos; ou iii) o teor de substâncias perigosas presentes nos materiais e nos produtos.
A30: Produtor de resíduos | B30: Pessoa singular ou coletiva cuja atividade produza resíduos, isto é, um produtor inicial de resíduos, ou que efetue operações de pré‑processamento, de mistura ou outras que alterem a natureza ou a composição desses resíduos.
A31: Projeto de execução | B31: Conjunto dos projetos de arquitetura e de especialidades com todas as pormenorizações de construção necessárias para a boa execução da obra, incluindo a descrição das normas técnicas aplicáveis a cada um dos trabalhos a realizar, a descrição técnica de todos os materiais a aplicar, com referência aos correspondentes certificados de qualidade quando exigíveis.
A32: Reciclabilidade | B32: Facilidade com que um material pode ser reciclado na prática e em grande escala.
A33: Reciclagem | B33: Operação de valorização, através da qual os materiais constituintes dos resíduos são novamente transformados em produtos, materiais ou substâncias para o seu fim original ou para outros fins, incluindo o reprocessamento de materiais orgânicos, mas excluindo a valorização energética e o reprocessamento em materiais que devam ser utilizados como combustível ou em operações de enchimento.
A34: Recolha | B34: Coleta de resíduos, incluindo a triagem e a armazenagem preliminares dos resíduos, para fins de transporte para uma instalação de tratamento de resíduos.
A35: Recolha seletiva | B35: Recolha efetuada de forma a manter os resíduos separados por tipo e natureza, com vista a facilitar o tratamento específico.
A36: Resíduo | B36: Substância ou objeto de que o detentor se desfaz ou tem a intenção ou a obrigação de se desfazer.
A37: Resíduos de construção e demolição (RCD) | B37: Resíduos com origem em obras de construção, reabilitação e demolição de edifícios ou outras estruturas de engenharia civil. Estes resíduos estão incluídos no capítulo 17 da Lista Europeia de Resíduos (LER) e os códigos para os vários materiais que os constituem encontram-se listados no separador 8- Lista de resíduos.
A38: Resíduos inertes | B38: Resíduos que não sofrem transformações físicas, químicas ou biológicas significativas, nem afetam adversamente outras matérias com as quais entrem em contato de maneira que possam causar poluição ambiental ou prejudicar a saúde humana.
A39: Resíduos perigosos | B39: Resíduos que apresentam uma ou mais características de perigosidade constantes do Regulamento (UE) n.º 1357/2014, da Comissão, de 18 de dezembro de 2014.
A40: Reutilização | B40: Operação mediante a qual produtos ou componentes que não sejam resíduos são utilizados novamente para o mesmo fim para que foram concebidos.
A41: Tratamento | B41: Operação de valorização ou de eliminação de resíduos, incluindo a preparação prévia à valorização ou eliminação.
A42: Triagem | B42: Ato de separação de resíduos mediante processos manuais ou mecânicos, sem alteração das suas características, com vista ao seu tratamento.
A43: Triagem preliminar | B43: Ato de separação de resíduos mediante processos manuais, sem alteração das suas características, enquanto parte do processo de recolha, com vista ao seu envio para tratamento.
A44: Valorização | B44: Operação de tratamento de resíduos cujo resultado principal seja a utilização, com ou sem transformação, dos resíduos de modo a servirem um fim útil, substituindo outros materiais que, caso contrário, teriam sido utilizados para um fim específico ou a preparação dos resíduos para esse fim na instalação ou conjunto da economia.
A45: Valorização material | B45: Operação de valorização, que não seja a valorização energética nem o reprocessamento em materiais que são utilizados como combustíveis ou outros meios de produção de energia, incluindo, entre outras, a preparação para reutilização a reciclagem e o enchimento.

Sheet Ref (hidden)
B2: Nome | C2: Código | D2: Massa volúmica | E2: Unidade | G2: Natureza do resíduos | I2: Localização
B3: betão | C3: 17 01 01 | D3: 2300 | E3: kg/m3 | I3: Fundações
B4: tijolos | C4: 17 01 02 | D4: 1920 | E4: kg/m3 | G4: Inerte/Não perigoso | I4: Elementos verticais
B5: ladrilhos, telhas e materiais cerâmicos | C5: 17 01 03 | D5: 830.6 | E5: kg/m3 | G5: Perigoso | I5: Pavimentos
B6: misturas ou frações separadas de betão, tijolos, ladrilhos, telhas e materiais cerâmicos, contendo substâncias perigosas | C6: 17 01 06* | D6: 830 | E6: kg/m3 | I6: Estrutura da cobertura
B7: misturas de betão, tijolos, ladrilhos, telhas e materiais cerâmicos, não abrangidas em 17 01 06 | C7: 17 01 07 | D7: 830 | E7: kg/m3 | G7: Ensaio positivo | I7: Revestimento da cobertura em terraço
B8: madeira | C8: 17 02 01 | D8: 700 | E8: kg/m3 | G8: Ensaio negativo | I8: Revestimento da cobertura inclinada
B9: vidro | C9: 17 02 02 | D9: 2500 | E9: kg/m3 | I9: Composição da esteira do teto
B10: plástico | C10: 17 02 03 | D10: 1250 | E10: kg/m3 | I10: Tosco paredes exteriores
B11: vidro, plástico e madeira contendo ou contaminados com substâncias perigosas | C11: 17 02 04* | E11: kg/m3 | G11: Unidade | I11: Revestimento dos paramentos exteriores
B12: misturas betuminosas contendo alcatrão | C12: 17 03 01* | D12: 2243 | E12: kg/m3 | G12: m | I12: Material dos caixilhos de vãos exteriores
B13: misturas betuminosas não abrangidas em 17 03 01 | C13: 17 03 02 | D13: 2243 | E13: kg/m3 | G13: m2 | I13: Tipo de envidraçado de vãos exteriores
B14: alcatrão e produtos de alcatrão | C14: 17 03 03* | D14: 1010 | E14: kg/m3 | G14: m3 | I14: Tosco de paredes interiores
B15: cobre, bronze e latão | C15: 17 04 01 | D15: 8470 | E15: kg/m3 | G15: kg | I15: Revestimento dos paramentos interiores
B16: alumínio | C16: 17 04 02 | D16: 2700 | E16: kg/m3 | G16: unidade | I16: Revestimento de piso
B17: chumbo | C17: 17 04 03 | D17: 7280 | E17: kg/m3
B18: zinco | C18: 17 04 04 | D18: 7140 | E18: kg/m3 | G18: Estrutura | H18: Fundações | I18: Alvenaria de pedra
B19: ferro e aço | C19: 17 04 05 | D19: 7800 | E19: kg/m3 | G19: Estrutura | H19: Fundações | I19: Alvenaria de tijolo
B20: estanho | C20: 17 04 06 | D20: 7300 | E20: kg/m3 | G20: Estrutura | H20: Fundações | I20: Sapatas de betão
B21: misturas de metais | C21: 17 04 07 | D21: 5000 | E21: kg/m3 | G21: Estrutura | H21: Fundações | I21: Ensoleiramento geral
B22: resíduos metálicos contaminados com substâncias perigosas | C22: 17 04 09* | D22: 593.3 | E22: kg/m3 | G22: Estrutura | H22: Fundações | I22: Estacas de madeira
B23: cabos contendo hidrocarbonetos, alcatrão ou outras substâncias perigosas | C23: 17 04 10* | G23: Estrutura | H23: Fundações | I23: Estacas de betão
B24: cabos não abrangidos em 17 04 11 | C24: 17 04 11 | G24: Estrutura | H24: Elementos verticais | I24: Paredes resistentes de alvenaria de pedra
B25: solos e rochas, contendo substâncias perigosas | C25: 17 05 03* | D25: 1600 | E25: kg/m3 | G25: Estrutura | H25: Elementos verticais | I25: Paredes resistentes de alvenaria de tijolo ou de blocos de betão
B26: solos e rochas não abrangidos em 17 05 03 | C26: 17 05 04 | D26: 1600 | E26: kg/m3 | G26: Estrutura | H26: Elementos verticais | I26: Paredes resistentes de alvenaria confinada de tijolo maciço
B27: lamas de dragagem contendo substâncias perigosas | C27: 17 05 05* | G27: Estrutura | H27: Elementos verticais | I27: Pilares de betão armado
B28: lamas de dragagem não abrangidas em 17 05 05 | C28: 17 05 06 | G28: Estrutura | H28: Pavimentos | I28: Madeira
B29: balastros de linhas de caminho de ferro, contendo substâncias perigosas | C29: 17 05 07* | D29: 1720 | E29: kg/m3 | G29: Estrutura | H29: Pavimentos | I29: Madeira com vigas metálicas
B30: balastros de linhas de caminho de ferro não abrangidos em 17 05 07 | C30: 17 05 08 | D30: 1720 | E30: kg/m3 | G30: Estrutura | H30: Pavimentos | I30: Laje maciça de betão armado com vigas
B31: materiais de isolamento, contendo amianto | C31: 17 06 01* | G31: Estrutura | H31: Pavimentos | I31: Laje fungiforme maciça de betão armado
B32: outros materiais de isolamento contendo ou constituídos por substâncias perigosas | C32: 17 06 03* | G32: Estrutura | H32: Pavimentos | I32: Laje fungiforme aligeirada de betão armado
B33: materiais de isolamento não abrangidos em 17 06 01 e 17 06 03 | C33: 17 06 04 | G33: Estrutura | H33: Pavimentos | I33: Laje aligeirada de betão armado com vigotas
B34: materiais de construção contendo amianto | C34: 17 06 05* | D34: 2000 | E34: kg/m3 | G34: Estrutura | H34: Pavimentos | I34: Pranchas de betão armado ou pré-esforçado
B35: materiais de construção à base de gesso contaminados com substâncias perigosas | C35: 17 08 01* | D35: 1200 | E35: kg/m3 | G35: Estrutura | H35: Pavimentos | I35: Pré-lajes
B36: materiais de construção à base de gesso não abrangidos em 17 08 01 | C36: 17 08 02 | D36: 1200 | E36: kg/m3 | G36: Cobertura | H36: Estrutura | I36: Madeira
B37: resíduos de construção e demolição contendo mercúrio | C37: 17 09 01* | G37: Cobertura | H37: Estrutura | I37: Metálica
B38: resíduos de construção e demolição contendo PCB (por exemplo vedantes com PCB, revestimentos de piso à base de resinas com PCB, envidraçados vedados contendo PCB, condensadores com PCB) | C38: 17 09 02* | G38: Cobertura | H38: Estrutura | I38: Laje maciça de betão armado
B39: outros resíduos de construção e demolição (incluindo misturas de resíduos) contendo substâncias perigosas) | C39: 17 09 03* | G39: Cobertura | H39: Estrutura | I39: Laje aligeirada de betão armado com vigotas
B40: misturas de resíduos de construção e demolição não abrangidas em 17 09 01, 17 09 02 e 17 09 03 | C40: 17 09 04 | G40: Cobertura | H40: Estrutura | I40: Vigas / vigotas de betão armado com muretes de alvenaria
B41: transformadores e condensadores, contendo PCB | C41: 16 02 09* | G41: Cobertura | H41: Revestimento da cobertura em terraço | I41: Impermeabilização aparente
B42: equipamento fora de uso contendo ou contaminado por PCB, não abrangido em 16 02 09 | C42: 16 02 10* | G42: Cobertura | H42: Revestimento da cobertura em terraço | I42: Betonilha
B43: equipamento fora de uso contendo clorofluorcarbonetos, HCFC, HFC | C43: 16 02 11* | G43: Cobertura | H43: Revestimento da cobertura em terraço | I43: Ladrilho cerâmico ou hidráulico
B44: equipamento fora de uso contendo amianto livre | C44: 16 02 12* | G44: Cobertura | H44: Revestimento da cobertura em terraço | I44: Tijoleira
B45: equipamento fora de uso, contendo componentes perigosos (ver nota 1 do Índice do Anexo da Decisão 2014/955/EU, da Comissão, de 18 de dezembro de 2014) não abrangidos em 16 02 09 a 16 02 12 | C45: 16 02 13* | G45: Cobertura | H45: Revestimento da cobertura em terraço | I45: Seixo rolado
B46: equipamento fora de uso não abrangido em 16 02 09 a 16 02 13 | C46: 16 02 14 | G46: Cobertura | H46: Revestimento de cobertura inclinada | I46: Telha cerâmica
B47: componentes perigosos retirados de equipamento fora de uso | C47: 16 02 15* | G47: Cobertura | H47: Revestimento de cobertura inclinada | I47: Telha de betão
B48: componentes retirados de equipamento fora de uso não abrangidos em 16 02 15 | C48: 16 02 16* | G48: Cobertura | H48: Revestimento de cobertura inclinada | I48: Chapas metálicas
B49: lâmpadas fluorescentes e outros resíduos contendo mercúrio | C49: 20 01 21* | G49: Cobertura | H49: Revestimento de cobertura inclinada | I49: Chapas de fibrocimento
B50: equipamento fora de uso contendo clorofluorcarbonetos | C50: 20 01 23* | G50: Cobertura | H50: Revestimento de cobertura inclinada | I50: Chapas plásticas
B51: equipamento elétrico e eletrónico fora de uso, não abrangido em 20 01 21 ou 20 01 23, contendo componentes perigosos (ver nota 1 do Índice do Anexo da Decisão 2014/955/EU, da Comissão, de 18 de dezembro de 2014 | C51: 20 01 35* | G51: Cobertura | H51: Composição da esteira do teto | I51: Madeira ou derivados de madeira
B52: equipamento elétrico e eletrónico fora de uso não abrangido em 20 01 21, 20 01 23 ou 20 01 35 | C52: 20 01 36 | G52: Cobertura | H52: Composição da esteira do teto | I52: Laje maciça de betão armado
G53: Cobertura | H53: Composição da esteira do teto | I53: Laje aligeirada de betão armado
B54: https://fenix.tecnico.ulisboa.pt/downloadFile/395142107301/Indicadores%20de%20res%C3%ADduos%20de%20constru%C3%A7%C3%A3o%20e%20demoli%C3%A7%C3%A3o.pdf | G54: Cobertura | H54: Composição da esteira do teto | I54: Placas de gesso cartonado / laminado
B55: https://www.civillead.com/unit-weight-of-building-materials/ | G55: Cobertura | H55: Composição da esteira do teto | I55: Estafe
G56: Paredes exteriores | H56: Tosco | I56: Alvenaria de pedra
B57: Destino | G57: Paredes exteriores | H57: Tosco | I57: Alvenaria de tijolo com um pano
B58: Reutilização do elemento/material na obra | G58: Paredes exteriores | H58: Tosco | I58: Alvenaria de tijolo com dois panos
B59: Reutilização do elemento/material fora da obra | G59: Paredes exteriores | H59: Tosco | I59: Alvenaria de blocos de betão de agregados correntes
B60: Preparação para reutilizar elemento/material na obra | G60: Paredes exteriores | H60: Tosco | I60: Alvenaria de blocos de betão com agregados de argila expandida
B61: Preparação para reutilizar elemento/material fora da obra | G61: Paredes exteriores | H61: Tosco | I61: Alvenaria de blocos de betão celular autoclavado
B62: Reciclagem na obra | G62: Paredes exteriores | H62: Revestimento dos paramentos exteriores | I62: Reboco
B63: Reciclagem fora da obra | G63: Paredes exteriores | H63: Revestimento dos paramentos exteriores | I63: Azulejo
B64: Recuperação como combustível para produção de energia | G64: Paredes exteriores | H64: Revestimento dos paramentos exteriores | I64: Placas de pedra
B65: Eliminação por incineração | G65: Paredes exteriores | H65: Revestimento dos paramentos exteriores | I65: ETICS
B66: Aterro de resíduos inertes | G66: Paredes exteriores | H66: Revestimento dos paramentos exteriores | I66: Sistema de pintura
B67: Aterro de resíduos não perigosos | G67: Paredes exteriores | H67: Revestimento dos paramentos exteriores | I67: Sem revestimento
B68: Aterro de resíduos perigosos | G68: Vãos exteriores | H68: Material dos caixilhos | I68: Madeira
B69: Entrega em instalação de gestão de REEE | G69: Vãos exteriores | H69: Material dos caixilhos | I69: Alumínio simples
B70: Recuperação no local como material enchimento | G70: Vãos exteriores | H70: Material dos caixilhos | I70: Alumínio com corte térmico
B71: Recuperação fora do local como material de enchimento | G71: Vãos exteriores | H71: Material dos caixilhos | I71: PVC
B72: Aterro de resíduos perigosos não reativos estável | G72: Vãos exteriores | H72: Material dos caixilhos | I72: Ferro
G73: Vãos exteriores | H73: Material dos caixilhos | I73: Vãos sem caixilharia
B74: Condição | G74: Vãos exteriores | H74: Tipo de envidraçado | I74: Vidro simples
B75: Muito boa – Anomalias insignificantes | G75: Vãos exteriores | H75: Tipo de envidraçado | I75: Vidro duplo
B76: Boa – Anomalias estéticas | G76: Vãos exteriores | H76: Tipo de envidraçado | I76: Janela dupla
B77: Média – Anomalias podem prejudicar a reutilização | G77: Paredes interiores | H77: Tosco | I77: Alvenaria de pedra
B78: Má – Anomalias colocam em risco segurança/saúde. | G78: Paredes interiores | H78: Tosco | I78: Alvenaria de tijolo com um pano
G79: Paredes interiores | H79: Tosco | I79: Alvenaria de blocos de betão de agregados correntes
G80: Paredes interiores | H80: Tosco | I80: Alvenaria de blocos de betão agregados de argila expandida
G81: Paredes interiores | H81: Tosco | I81: Alvenaria de blocos de betão celular autoclavado
G82: Paredes interiores | H82: Tosco | I82: Tabique de madeira
G83: Paredes interiores | H83: Tosco | I83: Tabique de madeira e alvenaria
G84: Paredes interiores | H84: Tosco | I84: Divisórias leves com painéis de gesso cartonado / laminado
G85: Paredes interiores | H85: Revestimento | I85: Reboco
B86: Edifícios com estrutura de alvenaria (< 1755). | G86: Paredes interiores | H86: Revestimento | I86: Estuque
B87: Edifícios com estrutura de alvenaria da época pombalina e similares (1755 a 1880). | G87: Paredes interiores | H87: Revestimento | I87: Azulejo
B88: Edifícios com estrutura de alvenaria tipo gaioleiro (1880 a 1930). | G88: Paredes interiores | H88: Revestimento | I88: Placas de pedra natural
B89: Edifícios com estrutura mista de alvenaria e betão (1930 a 1940). | G89: Paredes interiores | H89: Revestimento | I89: Sistema de pintura
B90: Edifícios com estrutura mista de betão e alvenaria (1940 a 1960). | G90: Paredes interiores | H90: Revestimento | I90: Sem revestimento
B91: Edifícios recentes de betão armado (> 1960). | G91: Revestimentos de piso | H91: Material | I91: Madeira
G92: Revestimentos de piso | H92: Material | I92: Pedra natural
G93: Revestimentos de piso | H93: Material | I93: Ladrilho cerâmico
B94: Edifício exclusivamente residencial | G94: Revestimentos de piso | H94: Material | I94: Ladrilho hidráulico
B95: Edifício principalmente residencial | G95: Revestimentos de piso | H95: Material | I95: Linóleo
B96: Edifício principalmente não residencial | G96: Revestimentos de piso | H96: Material | I96: Vinílico
B97: Edifício exclusivamente residencial | G97: Revestimentos de piso | H97: Material | I97: Aglomerado de cortiça
G98: Revestimentos de piso | H98: Material | I98: Betonilha
B101: Reutilização adaptativa
B102: Reutilização expansiva | G102: Fácil de desmontar sem danificar
B103: Reutilização proativa | G103: Fácil de desmontar sem danificar, mas exige algum esforço
G104: Elemento parcialmente danificado durante a desmontagem e pode ser facilmente recuperado para ser reutilizado
G105: Elemento danificado durante a desmontagem e difícil de recuperar para ser reutilizado
G108: O elemento foi ensaiado e não contém substâncias perigosas
G109: O elemento foi ensaiado e contém uma substância perigosa podendo, eventualmente, ser reutilizado após tratamento
G110: O elemento não foi ensaiado e pode existir um perigo potencial devido a subª perigosas
G111: O elemento não foi ensaiado e não é de salientar um potencial perigo devido a subª perigosas
